Body Name,Body,Service Label    ,Service Code,Service Division Label,Service Division Code,Organisational Unit,Expenditure Category,Expenditure Code,CIPFA Detailed Expenditure Type,CIPFA Detailed Expenditure Code,Date,Transaction Number,  Net Amount  ,Supplier Name, Payment_Amount ,Payment Number
Liberty Leisure Limited,http://statistics.data.gov.uk/id/local-authority/37UD,Leisure,LEIS,Leisure Management,LMAN,Liberty Leisure Limited / Liberty Leisure Development,Third Party Payments,4200,Other Third Party Payments,OtherTP,09/04/2021,V005797,290800,Broxtowe Borough Council,348960,BAC003763
Liberty Leisure Limited,http://statistics.data.gov.uk/id/local-authority/37UD,Leisure,LEIS,Leisure Management,LMAN,Liberty Leisure Limited / Kimberley Leisure Centre,Service Contracts,3056,Other Supplies & Services,OtherSS,09/04/2021,V005793,551,Complete Cooling Services Limited,661.2,BAC003764
Liberty Leisure Limited,http://statistics.data.gov.uk/id/local-authority/37UD,Leisure,LEIS,Leisure Management,LMAN,Liberty Leisure Limited / Kimberley Leisure Centre,Chemicals,3152,Other Supplies & Services,OtherSS,09/04/2021,V005807,251.1,Cryoservice Limited,301.32,BAC003765
Liberty Leisure Limited,http://statistics.data.gov.uk/id/local-authority/37UD,Leisure,LEIS,Leisure Management,LMAN,Liberty Leisure Limited / Bramcote Leisure Centre,Annual Projects Contingency,3710,Other Supplies & Services,OtherSS,09/04/2021,V005799,790,Merrin Builders & Landscaping,790,BAC003773
Liberty Leisure Limited,http://statistics.data.gov.uk/id/local-authority/37UD,Leisure,LEIS,Leisure Management,LMAN,Liberty Leisure Limited / Liberty Leisure Development,Business Development,3088,Other Supplies & Services,OtherSS,09/04/2021,V005787,10561.2,Omnico Group UK Ltd,16446.43,BAC003771
Liberty Leisure Limited,http://statistics.data.gov.uk/id/local-authority/37UD,Leisure,LEIS,Leisure Management,LMAN,Liberty Leisure Limited / Liberty Leisure Development,Business Development,3088,Other Supplies & Services,OtherSS,09/04/2021,V005788,3144.16,Omnico Group UK Ltd,16446.43,BAC003771
Liberty Leisure Limited,http://statistics.data.gov.uk/id/local-authority/37UD,Leisure,LEIS,Leisure Management,LMAN,Liberty Leisure Limited / Kimberley Leisure Centre,Annual Projects Contingency,3710,Other Supplies & Services,OtherSS,09/04/2021,V005800,2420,Precision Fencing Ltd,2904,BAC003775
Liberty Leisure Limited,http://statistics.data.gov.uk/id/local-authority/37UD,Culture and Heritage,CULT,Heritage,LHER,Liberty Leisure Limited / DHL Museum,Repairs & Maintenance,1000,Central Pot,Central,09/04/2021,V005802,106,Slater Electrical Serv Limited,2613.58,BAC003766
Liberty Leisure Limited,http://statistics.data.gov.uk/id/local-authority/37UD,Leisure,LEIS,Leisure Management,LMAN,Liberty Leisure Limited / Bramcote Leisure Centre,Electrical Testing,1043,Central Pot,Central,09/04/2021,V005801,513,Slater Electrical Serv Limited,2613.58,BAC003766
Liberty Leisure Limited,http://statistics.data.gov.uk/id/local-authority/37UD,Leisure,LEIS,Leisure Management,LMAN,Liberty Leisure Limited / Chilwell Olympia,Electrical Testing,1043,Central Pot,Central,09/04/2021,V005803,316,Slater Electrical Serv Limited,2613.58,BAC003766
Liberty Leisure Limited,http://statistics.data.gov.uk/id/local-authority/37UD,Leisure,LEIS,Leisure Management,LMAN,Liberty Leisure Limited / Kimberley Leisure Centre,Electrical Testing,1043,Central Pot,Central,09/04/2021,V005804,471,Slater Electrical Serv Limited,2613.58,BAC003766
Liberty Leisure Limited,http://statistics.data.gov.uk/id/local-authority/37UD,Leisure,LEIS,Leisure Management,LMAN,Liberty Leisure Limited / Kimberley Leisure Centre,Electrical Testing,1043,Central Pot,Central,09/04/2021,V005792,771.98,Slater Electrical Serv Limited,2613.58,BAC003766
Liberty Leisure Limited,http://statistics.data.gov.uk/id/local-authority/37UD,Leisure,LEIS,Leisure Management,LMAN,Liberty Leisure Limited / Kimberley Leisure Centre,Gas,1320,Utilities,Utility,09/04/2021,V005790,2443.92,The Kimberley School (EMET),2932.7,BAC003769
Liberty Leisure Limited,http://statistics.data.gov.uk/id/local-authority/37UD,Leisure,LEIS,Leisure Management,LMAN,Liberty Leisure Limited / Bramcote Leisure Centre,Water Charges,1410,Utilities,Utility,09/04/2021,V005798,522.47,Waterplus,522.47,BAC003777
Liberty Leisure Limited,http://statistics.data.gov.uk/id/local-authority/37UD,Leisure,LEIS,Leisure Management,LMAN,Liberty Leisure Limited / Bramcote Leisure Centre,Repairs & Maintenance,1000,Central Pot,Central,09/04/2021,V005805,3235.75,Ylem Energy Limited,3882.9,BAC003778
Liberty Leisure Limited,http://statistics.data.gov.uk/id/local-authority/37UD,Leisure,LEIS,Leisure Management,LMAN,Liberty Leisure Limited / Kimberley Leisure Centre,Chemicals,3152,Other Supplies & Services,OtherSS,23/04/2021,V005812,401.22,Cryoservice Limited,893.96,BAC003780
Liberty Leisure Limited,http://statistics.data.gov.uk/id/local-authority/37UD,Leisure,LEIS,Leisure Management,LMAN,Liberty Leisure Limited / Kimberley Leisure Centre,Chemicals,3152,Other Supplies & Services,OtherSS,23/04/2021,V005813,323.69,Cryoservice Limited,893.96,BAC003780
Liberty Leisure Limited,http://statistics.data.gov.uk/id/local-authority/37UD,Leisure,LEIS,Leisure Management,LMAN,Liberty Leisure Limited / Kimberley Leisure Centre,Chemicals,3152,Other Supplies & Services,OtherSS,23/04/2021,V005811,10.54,Cryoservice Limited,893.96,BAC003780
Liberty Leisure Limited,http://statistics.data.gov.uk/id/local-authority/37UD,Leisure,LEIS,Leisure Management,LMAN,Liberty Leisure Limited / Kimberley Leisure Centre,Chemicals,3152,Other Supplies & Services,OtherSS,23/04/2021,V005814,9.52,Cryoservice Limited,893.96,BAC003780
Liberty Leisure Limited,http://statistics.data.gov.uk/id/local-authority/37UD,Leisure,LEIS,Leisure Management,LMAN,Liberty Leisure Limited / Bramcote Leisure Centre,Chemicals,3152,Other Supplies & Services,OtherSS,23/04/2021,V005822,748,Gaffey Technical Services,897.6,BAC003781
Liberty Leisure Limited,http://statistics.data.gov.uk/id/local-authority/37UD,Leisure,LEIS,Leisure Management,LMAN,Liberty Leisure Limited / Bramcote Leisure Centre,Repairs & Maintenance,1000,Central Pot,Central,23/04/2021,V005821,284.8,Local Vending,341.76,BAC003782
Liberty Leisure Limited,http://statistics.data.gov.uk/id/local-authority/37UD,Leisure,LEIS,Leisure Management,LMAN,Liberty Leisure Limited / Kimberley Leisure Centre,Cleaning Materials,1510,Other Prem,OthPrem,23/04/2021,V005808,360.8,Mark-Douglas Industrial Supplies Limited,432.96,BAC003784
Liberty Leisure Limited,http://statistics.data.gov.uk/id/local-authority/37UD,Leisure,LEIS,Leisure Management,LMAN,Liberty Leisure Limited / Liberty Leisure Development,Licences,3613,Other Supplies & Services,OtherSS,23/04/2021,V005810,1500,Three65 Media Solutions Ltd,1500,BAC003788
Liberty Leisure Limited,http://statistics.data.gov.uk/id/local-authority/37UD,Leisure,LEIS,Leisure Management,LMAN,Liberty Leisure Limited / Kimberley Leisure Centre,Electricity,1310,Utilities,Utility,23/04/2021,V005818,2512.12,Total Gas & Power Ltd,3014.55,BAC003785
Liberty Leisure Limited,http://statistics.data.gov.uk/id/local-authority/37UD,Leisure,LEIS,Leisure Management,LMAN,Liberty Leisure Limited / Kimberley Leisure Centre,Sewerage Charges,1420,Utilities,Utility,23/04/2021,V005815,268.02,Waterplus,1233.28,BAC003789
Liberty Leisure Limited,http://statistics.data.gov.uk/id/local-authority/37UD,Leisure,LEIS,Leisure Management,LMAN,Liberty Leisure Limited / Kimberley Leisure Centre,Sewerage Charges,1420,Utilities,Utility,23/04/2021,V005817,477.3,Waterplus,1233.28,BAC003789
Liberty Leisure Limited,http://statistics.data.gov.uk/id/local-authority/37UD,Leisure,LEIS,Leisure Management,LMAN,Liberty Leisure Limited / Kimberley Leisure Centre,Sewerage Charges,1420,Utilities,Utility,23/04/2021,V005816,487.96,Waterplus,1233.28,BAC003789
Liberty Leisure Limited,http://statistics.data.gov.uk/id/local-authority/37UD,Leisure,LEIS,Leisure Management,LMAN,Liberty Leisure Limited / Kimberley Leisure Centre,Chemicals,3152,Other Supplies & Services,OtherSS,07/05/2021,V005856,463.39,Cryoservice Limited,568.72,BAC003793
Liberty Leisure Limited,http://statistics.data.gov.uk/id/local-authority/37UD,Leisure,LEIS,Leisure Management,LMAN,Liberty Leisure Limited / Kimberley Leisure Centre,Chemicals,3152,Other Supplies & Services,OtherSS,07/05/2021,V005855,10.54,Cryoservice Limited,568.72,BAC003793
Liberty Leisure Limited,http://statistics.data.gov.uk/id/local-authority/37UD,Leisure,LEIS,Leisure Management,LMAN,Liberty Leisure Limited / Bramcote Leisure Centre,Electrical Testing,1043,Central Pot,Central,07/05/2021,V005866,750,JIH Electrical Ltd,750,BAC003810
Liberty Leisure Limited,http://statistics.data.gov.uk/id/local-authority/37UD,Leisure,LEIS,Leisure Management,LMAN,Liberty Leisure Limited / Bramcote Leisure Centre,Repairs & Maintenance,1000,Central Pot,Central,07/05/2021,V005867,560,Lee Jackson Air Conditioning Ltd,672,BAC003808
Liberty Leisure Limited,http://statistics.data.gov.uk/id/local-authority/37UD,Leisure,LEIS,Leisure Management,LMAN,Liberty Leisure Limited / Bramcote Leisure Centre,Repairs & Maintenance,1000,Central Pot,Central,07/05/2021,V005837,650,M A Technical Services Ltd,1338,BAC003794
Liberty Leisure Limited,http://statistics.data.gov.uk/id/local-authority/37UD,Leisure,LEIS,Leisure Management,LMAN,Liberty Leisure Limited / Kimberley Leisure Centre,Repairs & Maintenance,1000,Central Pot,Central,07/05/2021,V005830,465,M A Technical Services Ltd,1338,BAC003794
Liberty Leisure Limited,http://statistics.data.gov.uk/id/local-authority/37UD,Leisure,LEIS,Leisure Management,LMAN,Liberty Leisure Limited / Kimberley Leisure Centre,Cleaning Materials,1510,Other Prem,OthPrem,07/05/2021,V005864,365.2,Mark-Douglas Industrial Supplies Limited,438.24,BAC003801
Liberty Leisure Limited,http://statistics.data.gov.uk/id/local-authority/37UD,Leisure,LEIS,Leisure Management,LMAN,Liberty Leisure Limited / Liberty Leisure Development,Redundancy Costs,400,Indirect Employee Exp Oncosts,Oncosts,07/05/2021,V005868,833.18,Notts County Council Pensions,34760.85,BAC003811
Liberty Leisure Limited,http://statistics.data.gov.uk/id/local-authority/37UD,Leisure,LEIS,Leisure Management,LMAN,Liberty Leisure Limited / Kimberley Leisure Centre,Service Contracts,3056,Other Supplies & Services,OtherSS,07/05/2021,V005831,362.31,REPLAY Maintenance Ltd,434.77,BAC003806
Liberty Leisure Limited,http://statistics.data.gov.uk/id/local-authority/37UD,Leisure,LEIS,Leisure Management,LMAN,Liberty Leisure Limited / Bramcote Leisure Centre,Repairs & Maintenance,1000,Central Pot,Central,07/05/2021,V005827,530,Simons Decor,530,BAC003804
Liberty Leisure Limited,http://statistics.data.gov.uk/id/local-authority/37UD,Leisure,LEIS,Leisure Management,LMAN,Liberty Leisure Limited / Kimberley Leisure Centre,Repairs & Maintenance,1000,Central Pot,Central,07/05/2021,V005859,120,Slater Electrical Serv Limited,704.59,BAC003796
Liberty Leisure Limited,http://statistics.data.gov.uk/id/local-authority/37UD,Leisure,LEIS,Leisure Management,LMAN,Liberty Leisure Limited / Kimberley Leisure Centre,Repairs & Maintenance,1000,Central Pot,Central,07/05/2021,V005858,467.16,Slater Electrical Serv Limited,704.59,BAC003796
Liberty Leisure Limited,http://statistics.data.gov.uk/id/local-authority/37UD,Leisure,LEIS,Leisure Management,LMAN,Liberty Leisure Limited / Kimberley Leisure Centre,Sports Equipment - Sale,3004,Equipment,Equip,07/05/2021,V005861,740.66,Swim England Trading Ltd,888.79,BAC003790
Liberty Leisure Limited,http://statistics.data.gov.uk/id/local-authority/37UD,Leisure,LEIS,Leisure Management,LMAN,Liberty Leisure Limited / Kimberley Leisure Centre,Solid Fuel,1330,Utilities,Utility,07/05/2021,V005865,2697.45,The Kimberley School (EMET),3236.94,BAC003799
Liberty Leisure Limited,http://statistics.data.gov.uk/id/local-authority/37UD,Culture and Heritage,CULT,Heritage,LHER,Liberty Leisure Limited / DHL Museum,MDEM Expenditure,3671,Other Supplies & Services,OtherSS,07/05/2021,V005846,43.62,Total Gas & Power Ltd,6703.63,BAC003807
Liberty Leisure Limited,http://statistics.data.gov.uk/id/local-authority/37UD,Leisure,LEIS,Leisure Management,LMAN,Liberty Leisure Limited / Bramcote Leisure Centre,Electricity,1310,Utilities,Utility,07/05/2021,V005825,3211.3,Total Gas & Power Ltd,6703.63,BAC003807
Liberty Leisure Limited,http://statistics.data.gov.uk/id/local-authority/37UD,Leisure,LEIS,Leisure Management,LMAN,Liberty Leisure Limited / Bramcote Leisure Centre,Gas,1320,Utilities,Utility,07/05/2021,V005826,284.56,Total Gas & Power Ltd,6703.63,BAC003807
Liberty Leisure Limited,http://statistics.data.gov.uk/id/local-authority/37UD,Leisure,LEIS,Leisure Management,LMAN,Liberty Leisure Limited / Kimberley Leisure Centre,Electricity,1310,Utilities,Utility,07/05/2021,V005823,2634.93,Total Gas & Power Ltd,6703.63,BAC003807
Liberty Leisure Limited,http://statistics.data.gov.uk/id/local-authority/37UD,Leisure,LEIS,Leisure Management,LMAN,Liberty Leisure Limited / Bramcote Leisure Centre,Repairs & Maintenance,1000,Central Pot,Central,07/05/2021,V005828,749.5,Walker Fire (UK) Ltd,899.4,BAC003809
Liberty Leisure Limited,http://statistics.data.gov.uk/id/local-authority/37UD,Leisure,LEIS,Leisure Management,LMAN,Liberty Leisure Limited / Kimberley Leisure Centre,Service Contracts,3056,Other Supplies & Services,OtherSS,21/05/2021,V005882,530.85,BG Energy Solutions,637.02,BAC003828
Liberty Leisure Limited,http://statistics.data.gov.uk/id/local-authority/37UD,Leisure,LEIS,Leisure Management,LMAN,Liberty Leisure Limited / Chilwell Olympia,Electricity,1310,Utilities,Utility,21/05/2021,V005874,43.09,Chilwell School,3045.42,BAC003824
Liberty Leisure Limited,http://statistics.data.gov.uk/id/local-authority/37UD,Leisure,LEIS,Leisure Management,LMAN,Liberty Leisure Limited / Chilwell Olympia,Gas,1320,Utilities,Utility,21/05/2021,V005874,1562.04,Chilwell School,3045.42,BAC003824
Liberty Leisure Limited,http://statistics.data.gov.uk/id/local-authority/37UD,Leisure,LEIS,Leisure Management,LMAN,Liberty Leisure Limited / Chilwell Olympia,Water Charges,1410,Utilities,Utility,21/05/2021,V005874,1440.29,Chilwell School,3045.42,BAC003824
Liberty Leisure Limited,http://statistics.data.gov.uk/id/local-authority/37UD,Leisure,LEIS,Leisure Management,LMAN,Liberty Leisure Limited / Kimberley Leisure Centre,Repairs & Maintenance,1000,Central Pot,Central,21/05/2021,V005878,297,Deltron Lifts Limited,824.4,BAC003826
Liberty Leisure Limited,http://statistics.data.gov.uk/id/local-authority/37UD,Leisure,LEIS,Leisure Management,LMAN,Liberty Leisure Limited / Kimberley Leisure Centre,Repairs & Maintenance,1000,Central Pot,Central,21/05/2021,V005878,390,Deltron Lifts Limited,824.4,BAC003826
Liberty Leisure Limited,http://statistics.data.gov.uk/id/local-authority/37UD,Leisure,LEIS,Leisure Management,LMAN,Liberty Leisure Limited / Bramcote Leisure Centre,Repairs & Maintenance,1000,Central Pot,Central,21/05/2021,V005875,290,EME Power Systems,348,BAC003833
Liberty Leisure Limited,http://statistics.data.gov.uk/id/local-authority/37UD,Leisure,LEIS,Leisure Management,LMAN,Liberty Leisure Limited / Kimberley Leisure Centre,Service Contracts,3056,Other Supplies & Services,OtherSS,21/05/2021,V005884,413.82,FitServe Ltd,496.59,BAC003827
Liberty Leisure Limited,http://statistics.data.gov.uk/id/local-authority/37UD,Leisure,LEIS,Leisure Management,LMAN,Liberty Leisure Limited / Kimberley Leisure Centre,Repairs & Maintenance,1000,Central Pot,Central,21/05/2021,V005887,210,Geoff Green Joinery,252,BAC003823
Liberty Leisure Limited,http://statistics.data.gov.uk/id/local-authority/37UD,Leisure,LEIS,Leisure Management,LMAN,Liberty Leisure Limited / Kimberley Leisure Centre,Licences,3613,Other Supplies & Services,OtherSS,21/05/2021,V005877,150,Halo Leisure Enterprises Ltd,720,BAC003831
Liberty Leisure Limited,http://statistics.data.gov.uk/id/local-authority/37UD,Leisure,LEIS,Leisure Management,LMAN,Liberty Leisure Limited / Kimberley Leisure Centre,Licences,3613,Other Supplies & Services,OtherSS,21/05/2021,V005876,50,Halo Leisure Enterprises Ltd,720,BAC003831
Liberty Leisure Limited,http://statistics.data.gov.uk/id/local-authority/37UD,Leisure,LEIS,Leisure Management,LMAN,Liberty Leisure Limited / Kimberley Leisure Centre,Licences,3613,Other Supplies & Services,OtherSS,21/05/2021,V005877,150,Halo Leisure Enterprises Ltd,720,BAC003831
Liberty Leisure Limited,http://statistics.data.gov.uk/id/local-authority/37UD,Leisure,LEIS,Leisure Management,LMAN,Liberty Leisure Limited / Kimberley Leisure Centre,Licences,3613,Other Supplies & Services,OtherSS,21/05/2021,V005876,50,Halo Leisure Enterprises Ltd,720,BAC003831
Liberty Leisure Limited,http://statistics.data.gov.uk/id/local-authority/37UD,Leisure,LEIS,Leisure Management,LMAN,Liberty Leisure Limited / Kimberley Leisure Centre,Licences,3613,Other Supplies & Services,OtherSS,21/05/2021,V005877,150,Halo Leisure Enterprises Ltd,720,BAC003831
Liberty Leisure Limited,http://statistics.data.gov.uk/id/local-authority/37UD,Leisure,LEIS,Leisure Management,LMAN,Liberty Leisure Limited / Kimberley Leisure Centre,Licences,3613,Other Supplies & Services,OtherSS,21/05/2021,V005876,50,Halo Leisure Enterprises Ltd,720,BAC003831
Liberty Leisure Limited,http://statistics.data.gov.uk/id/local-authority/37UD,Leisure,LEIS,Leisure Management,LMAN,Liberty Leisure Limited / Chilwell Olympia,Cleaning Materials,1510,Other Prem,OthPrem,21/05/2021,V005888,55.52,Mark-Douglas Industrial Supplies Limited,374.63,BAC003825
Liberty Leisure Limited,http://statistics.data.gov.uk/id/local-authority/37UD,Leisure,LEIS,Leisure Management,LMAN,Liberty Leisure Limited / Chilwell Olympia,Cleaning Materials,1510,Other Prem,OthPrem,21/05/2021,V005888,39,Mark-Douglas Industrial Supplies Limited,374.63,BAC003825
Liberty Leisure Limited,http://statistics.data.gov.uk/id/local-authority/37UD,Leisure,LEIS,Leisure Management,LMAN,Liberty Leisure Limited / Chilwell Olympia,Cleaning Materials,1510,Other Prem,OthPrem,21/05/2021,V005888,27.72,Mark-Douglas Industrial Supplies Limited,374.63,BAC003825
Liberty Leisure Limited,http://statistics.data.gov.uk/id/local-authority/37UD,Leisure,LEIS,Leisure Management,LMAN,Liberty Leisure Limited / Chilwell Olympia,Cleaning Materials,1510,Other Prem,OthPrem,21/05/2021,V005888,15.8,Mark-Douglas Industrial Supplies Limited,374.63,BAC003825
Liberty Leisure Limited,http://statistics.data.gov.uk/id/local-authority/37UD,Leisure,LEIS,Leisure Management,LMAN,Liberty Leisure Limited / Chilwell Olympia,Cleaning Materials,1510,Other Prem,OthPrem,21/05/2021,V005888,44.54,Mark-Douglas Industrial Supplies Limited,374.63,BAC003825
Liberty Leisure Limited,http://statistics.data.gov.uk/id/local-authority/37UD,Leisure,LEIS,Leisure Management,LMAN,Liberty Leisure Limited / Chilwell Olympia,Cleaning Materials,1510,Other Prem,OthPrem,21/05/2021,V005888,33.5,Mark-Douglas Industrial Supplies Limited,374.63,BAC003825
Liberty Leisure Limited,http://statistics.data.gov.uk/id/local-authority/37UD,Leisure,LEIS,Leisure Management,LMAN,Liberty Leisure Limited / Chilwell Olympia,Cleaning Materials,1510,Other Prem,OthPrem,21/05/2021,V005888,12.28,Mark-Douglas Industrial Supplies Limited,374.63,BAC003825
Liberty Leisure Limited,http://statistics.data.gov.uk/id/local-authority/37UD,Leisure,LEIS,Leisure Management,LMAN,Liberty Leisure Limited / Chilwell Olympia,Cleaning Materials,1510,Other Prem,OthPrem,21/05/2021,V005888,13.62,Mark-Douglas Industrial Supplies Limited,374.63,BAC003825
Liberty Leisure Limited,http://statistics.data.gov.uk/id/local-authority/37UD,Leisure,LEIS,Leisure Management,LMAN,Liberty Leisure Limited / Chilwell Olympia,Cleaning Materials,1510,Other Prem,OthPrem,21/05/2021,V005888,29.2,Mark-Douglas Industrial Supplies Limited,374.63,BAC003825
Liberty Leisure Limited,http://statistics.data.gov.uk/id/local-authority/37UD,Leisure,LEIS,Leisure Management,LMAN,Liberty Leisure Limited / Chilwell Olympia,Cleaning Materials,1510,Other Prem,OthPrem,21/05/2021,V005888,11.82,Mark-Douglas Industrial Supplies Limited,374.63,BAC003825
Liberty Leisure Limited,http://statistics.data.gov.uk/id/local-authority/37UD,Leisure,LEIS,Leisure Management,LMAN,Liberty Leisure Limited / Chilwell Olympia,Cleaning Materials,1510,Other Prem,OthPrem,21/05/2021,V005888,29.2,Mark-Douglas Industrial Supplies Limited,374.63,BAC003825
Liberty Leisure Limited,http://statistics.data.gov.uk/id/local-authority/37UD,Leisure,LEIS,Leisure Management,LMAN,Liberty Leisure Limited / Kimberley Leisure Centre,Electricity,1310,Utilities,Utility,21/05/2021,V005881,2907.01,Total Gas & Power Ltd,3488.42,BAC003829
Liberty Leisure Limited,http://statistics.data.gov.uk/id/local-authority/37UD,Leisure,LEIS,Leisure Management,LMAN,Liberty Leisure Limited / Bramcote Leisure Centre,Water Charges,1410,Utilities,Utility,21/05/2021,V005872,844.7,Waterplus,844.7,BAC003834
Liberty Leisure Limited,http://statistics.data.gov.uk/id/local-authority/37UD,Leisure,LEIS,Leisure Management,LMAN,Liberty Leisure Limited / Kimberley Leisure Centre,Cleaning Materials,1510,Other Prem,OthPrem,28/05/2021,V005909,385.9,Mark-Douglas Industrial Supplies Limited,463.08,BAC003841
Liberty Leisure Limited,http://statistics.data.gov.uk/id/local-authority/37UD,Leisure,LEIS,Leisure Management,LMAN,Liberty Leisure Limited / Bramcote Leisure Centre,Service Contracts,3056,Other Supplies & Services,OtherSS,28/05/2021,V005901,124.19,NBE Fire and Security Limited,611.03,BAC003843
Liberty Leisure Limited,http://statistics.data.gov.uk/id/local-authority/37UD,Leisure,LEIS,Leisure Management,LMAN,Liberty Leisure Limited / Bramcote Leisure Centre,Service Contracts,3056,Other Supplies & Services,OtherSS,28/05/2021,V005902,385,NBE Fire and Security Limited,611.03,BAC003843
Liberty Leisure Limited,http://statistics.data.gov.uk/id/local-authority/37UD,Leisure,LEIS,Leisure Management,LMAN,Liberty Leisure Limited / Bramcote Leisure Centre,Repairs & Maintenance,1000,Central Pot,Central,28/05/2021,V005906,1140,Pumptec - Pump and Valve Repairs,1368,BAC003839
Liberty Leisure Limited,http://statistics.data.gov.uk/id/local-authority/37UD,Leisure,LEIS,Leisure Management,LMAN,Liberty Leisure Limited / Kimberley Leisure Centre,Water Charges,1410,Utilities,Utility,28/05/2021,V005907,624.81,The Kimberley School (EMET),1417.27,BAC003838
Liberty Leisure Limited,http://statistics.data.gov.uk/id/local-authority/37UD,Leisure,LEIS,Leisure Management,LMAN,Liberty Leisure Limited / Kimberley Leisure Centre,Water Charges,1410,Utilities,Utility,28/05/2021,V005908,556.25,The Kimberley School (EMET),1417.27,BAC003838
Liberty Leisure Limited,http://statistics.data.gov.uk/id/local-authority/37UD,Leisure,LEIS,Leisure Management,LMAN,Liberty Leisure Limited / Bramcote Leisure Centre,Water Charges,1410,Utilities,Utility,28/05/2021,V005891,602.85,Waterplus,602.85,BAC003847
Liberty Leisure Limited,http://statistics.data.gov.uk/id/local-authority/37UD,Culture and Heritage,CULT,Events,LEVE,Liberty Leisure Limited / Events,Promotion of The Arts,3066,Office Supplies,Offsup,04/06/2021,V005900,5336,Big TV (UK) Ltd,6403.2,BAC003856
Liberty Leisure Limited,http://statistics.data.gov.uk/id/local-authority/37UD,Culture and Heritage,CULT,Heritage,LHER,Liberty Leisure Limited / DHL Museum,Repairs & Maintenance,1000,Central Pot,Central,04/06/2021,V005925,60,FSE Fire Safety Systems Ltd,992.24,BAC003857
Liberty Leisure Limited,http://statistics.data.gov.uk/id/local-authority/37UD,Culture and Heritage,CULT,Heritage,LHER,Liberty Leisure Limited / DHL Museum,Repairs & Maintenance,1000,Central Pot,Central,04/06/2021,V005924,34.54,FSE Fire Safety Systems Ltd,992.24,BAC003857
Liberty Leisure Limited,http://statistics.data.gov.uk/id/local-authority/37UD,Culture and Heritage,CULT,Heritage,LHER,Liberty Leisure Limited / DHL Museum,Repairs & Maintenance,1000,Central Pot,Central,04/06/2021,V005921,18.49,FSE Fire Safety Systems Ltd,992.24,BAC003857
Liberty Leisure Limited,http://statistics.data.gov.uk/id/local-authority/37UD,Culture and Heritage,CULT,Heritage,LHER,Liberty Leisure Limited / DHL Museum,Service Contracts,3056,Other Supplies & Services,OtherSS,04/06/2021,V005923,432.64,FSE Fire Safety Systems Ltd,992.24,BAC003857
Liberty Leisure Limited,http://statistics.data.gov.uk/id/local-authority/37UD,Culture and Heritage,CULT,Heritage,LHER,Liberty Leisure Limited / DHL Museum,Service Contracts,3056,Other Supplies & Services,OtherSS,04/06/2021,V005922,281.22,FSE Fire Safety Systems Ltd,992.24,BAC003857
Liberty Leisure Limited,http://statistics.data.gov.uk/id/local-authority/37UD,Leisure,LEIS,Leisure Management,LMAN,Liberty Leisure Limited / Kimberley Leisure Centre,Repairs & Maintenance,1000,Central Pot,Central,04/06/2021,V005920,740,MG Lites,888,BAC003862
Liberty Leisure Limited,http://statistics.data.gov.uk/id/local-authority/37UD,Leisure,LEIS,Leisure Management,LMAN,Liberty Leisure Limited / Kimberley Leisure Centre,Repairs & Maintenance,1000,Central Pot,Central,04/06/2021,V005919,340.08,Slater Electrical Serv Limited,408.1,BAC003850
Liberty Leisure Limited,http://statistics.data.gov.uk/id/local-authority/37UD,Leisure,LEIS,Leisure Management,LMAN,Liberty Leisure Limited / Chilwell Olympia,Water Charges,1410,Utilities,Utility,18/06/2021,V005931,1245.79,Chilwell School,1245.79,BAC003874
Liberty Leisure Limited,http://statistics.data.gov.uk/id/local-authority/37UD,Leisure,LEIS,Leisure Management,LMAN,Liberty Leisure Limited / Kimberley Leisure Centre,Chemicals,3152,Other Supplies & Services,OtherSS,18/06/2021,V005932,219.52,Cryoservice Limited,344.94,BAC003865
Liberty Leisure Limited,http://statistics.data.gov.uk/id/local-authority/37UD,Leisure,LEIS,Leisure Management,LMAN,Liberty Leisure Limited / Kimberley Leisure Centre,Chemicals,3152,Other Supplies & Services,OtherSS,18/06/2021,V005950,10.54,Cryoservice Limited,344.94,BAC003865
Liberty Leisure Limited,http://statistics.data.gov.uk/id/local-authority/37UD,Leisure,LEIS,Leisure Management,LMAN,Liberty Leisure Limited / Kimberley Leisure Centre,Chemicals,3152,Other Supplies & Services,OtherSS,18/06/2021,V005932,13,Cryoservice Limited,344.94,BAC003865
Liberty Leisure Limited,http://statistics.data.gov.uk/id/local-authority/37UD,Leisure,LEIS,Leisure Management,LMAN,Liberty Leisure Limited / Kimberley Leisure Centre,Chemicals,3152,Other Supplies & Services,OtherSS,18/06/2021,V005932,44.39,Cryoservice Limited,344.94,BAC003865
Liberty Leisure Limited,http://statistics.data.gov.uk/id/local-authority/37UD,Leisure,LEIS,Leisure Management,LMAN,Liberty Leisure Limited / Bramcote Leisure Centre,Service Contracts,3056,Other Supplies & Services,OtherSS,18/06/2021,V005934,748,Gaffey Technical Services,897.6,BAC003867
Liberty Leisure Limited,http://statistics.data.gov.uk/id/local-authority/37UD,Leisure,LEIS,Leisure Management,LMAN,Liberty Leisure Limited / Kimberley Leisure Centre,Repairs & Maintenance,1000,Central Pot,Central,18/06/2021,V005943,99.99,Karcher (U.K.)Ltd,2511.25,BAC003876
Liberty Leisure Limited,http://statistics.data.gov.uk/id/local-authority/37UD,Leisure,LEIS,Leisure Management,LMAN,Liberty Leisure Limited / Kimberley Leisure Centre,Repairs & Maintenance,1000,Central Pot,Central,18/06/2021,V005943,1992.72,Karcher (U.K.)Ltd,2511.25,BAC003876
Liberty Leisure Limited,http://statistics.data.gov.uk/id/local-authority/37UD,Leisure,LEIS,Leisure Management,LMAN,Liberty Leisure Limited / Kimberley Leisure Centre,Cleaning Materials,1510,Other Prem,OthPrem,18/06/2021,V005951,244.26,Mark-Douglas Industrial Supplies Limited,293.12,BAC003875
Liberty Leisure Limited,http://statistics.data.gov.uk/id/local-authority/37UD,Leisure,LEIS,Leisure Management,LMAN,Liberty Leisure Limited / Bramcote Leisure Centre,Repairs & Maintenance,1000,Central Pot,Central,18/06/2021,V005938,236.32,NBE Fire and Security Limited,283.58,BAC003881
Liberty Leisure Limited,http://statistics.data.gov.uk/id/local-authority/37UD,Leisure,LEIS,Leisure Management,LMAN,Liberty Leisure Limited / Chilwell Olympia,NBA Expenditure,3520,Other Supplies & Services,OtherSS,18/06/2021,V005930,1165.9,Nottinghamshire Badminton Association,1165.9,BAC003873
Liberty Leisure Limited,http://statistics.data.gov.uk/id/local-authority/37UD,Leisure,LEIS,Leisure Management,LMAN,Liberty Leisure Limited / Bramcote Leisure Centre,Repairs & Maintenance,1000,Central Pot,Central,18/06/2021,V005928,547,Sterilizing Services,656.4,BAC003871
Liberty Leisure Limited,http://statistics.data.gov.uk/id/local-authority/37UD,Leisure,LEIS,Leisure Management,LMAN,Liberty Leisure Limited / Bramcote Leisure Centre,Gas,1320,Utilities,Utility,18/06/2021,V005929,4480.57,Total Gas & Power Ltd,8499.85,BAC003880
Liberty Leisure Limited,http://statistics.data.gov.uk/id/local-authority/37UD,Leisure,LEIS,Leisure Management,LMAN,Liberty Leisure Limited / Kimberley Leisure Centre,Electricity,1310,Utilities,Utility,18/06/2021,V005949,3349.39,Total Gas & Power Ltd,8499.85,BAC003880
Liberty Leisure Limited,http://statistics.data.gov.uk/id/local-authority/37UD,Leisure,LEIS,Leisure Management,LMAN,Liberty Leisure Limited / Bramcote Leisure Centre,Chemicals,3152,Other Supplies & Services,OtherSS,18/06/2021,V005935,29.5,Univar Solutions BV,495.87,BAC003872
Liberty Leisure Limited,http://statistics.data.gov.uk/id/local-authority/37UD,Leisure,LEIS,Leisure Management,LMAN,Liberty Leisure Limited / Bramcote Leisure Centre,Chemicals,3152,Other Supplies & Services,OtherSS,18/06/2021,V005936,14.5,Univar Solutions BV,495.87,BAC003872
Liberty Leisure Limited,http://statistics.data.gov.uk/id/local-authority/37UD,Leisure,LEIS,Leisure Management,LMAN,Liberty Leisure Limited / Bramcote Leisure Centre,Chemicals,3152,Other Supplies & Services,OtherSS,18/06/2021,V005936,35.55,Univar Solutions BV,495.87,BAC003872
Liberty Leisure Limited,http://statistics.data.gov.uk/id/local-authority/37UD,Leisure,LEIS,Leisure Management,LMAN,Liberty Leisure Limited / Bramcote Leisure Centre,Chemicals,3152,Other Supplies & Services,OtherSS,18/06/2021,V005948,23.78,Univar Solutions BV,495.87,BAC003872
Liberty Leisure Limited,http://statistics.data.gov.uk/id/local-authority/37UD,Leisure,LEIS,Leisure Management,LMAN,Liberty Leisure Limited / Bramcote Leisure Centre,Chemicals,3152,Other Supplies & Services,OtherSS,18/06/2021,V005948,24.02,Univar Solutions BV,495.87,BAC003872
Liberty Leisure Limited,http://statistics.data.gov.uk/id/local-authority/37UD,Leisure,LEIS,Leisure Management,LMAN,Liberty Leisure Limited / Bramcote Leisure Centre,Chemicals,3152,Other Supplies & Services,OtherSS,18/06/2021,V005948,26.86,Univar Solutions BV,495.87,BAC003872
Liberty Leisure Limited,http://statistics.data.gov.uk/id/local-authority/37UD,Leisure,LEIS,Leisure Management,LMAN,Liberty Leisure Limited / Bramcote Leisure Centre,Chemicals,3152,Other Supplies & Services,OtherSS,18/06/2021,V005935,259.02,Univar Solutions BV,495.87,BAC003872
Liberty Leisure Limited,http://statistics.data.gov.uk/id/local-authority/37UD,Culture and Heritage,CULT,Events,LEVE,Liberty Leisure Limited / Events,Promotion of The Arts,3066,Office Supplies,Offsup,02/07/2021,V005970,1296.5,Big TV (UK) Ltd,1555.8,BAC003900
Liberty Leisure Limited,http://statistics.data.gov.uk/id/local-authority/37UD,Leisure,LEIS,Leisure Management,LMAN,Liberty Leisure Limited / Kimberley Leisure Centre,Repairs & Maintenance,1000,Central Pot,Central,02/07/2021,V005974,18.32,Deltron Lifts Limited,1851.98,BAC003892
Liberty Leisure Limited,http://statistics.data.gov.uk/id/local-authority/37UD,Leisure,LEIS,Leisure Management,LMAN,Liberty Leisure Limited / Kimberley Leisure Centre,Repairs & Maintenance,1000,Central Pot,Central,02/07/2021,V005967,1300,Deltron Lifts Limited,1851.98,BAC003892
Liberty Leisure Limited,http://statistics.data.gov.uk/id/local-authority/37UD,Leisure,LEIS,Leisure Management,LMAN,Liberty Leisure Limited / Kimberley Leisure Centre,Service Contracts,3056,Other Supplies & Services,OtherSS,02/07/2021,V005973,225,Deltron Lifts Limited,1851.98,BAC003892
Liberty Leisure Limited,http://statistics.data.gov.uk/id/local-authority/37UD,Leisure,LEIS,Leisure Management,LMAN,Liberty Leisure Limited / Kimberley Leisure Centre,Service Contracts,3056,Other Supplies & Services,OtherSS,02/07/2021,V005964,300,FitServe Ltd,360,BAC003894
Liberty Leisure Limited,http://statistics.data.gov.uk/id/local-authority/37UD,Leisure,LEIS,Leisure Management,LMAN,Liberty Leisure Limited / Bramcote Leisure Centre,Repairs & Maintenance,1000,Central Pot,Central,02/07/2021,V005961,615,G & S Sign Services Ltd,738,BAC003903
Liberty Leisure Limited,http://statistics.data.gov.uk/id/local-authority/37UD,Leisure,LEIS,Leisure Management,LMAN,Liberty Leisure Limited / Bramcote Leisure Centre,Service Contracts,3056,Other Supplies & Services,OtherSS,02/07/2021,V005954,748,Gaffey Technical Services,897.6,BAC003885
Liberty Leisure Limited,http://statistics.data.gov.uk/id/local-authority/37UD,Leisure,LEIS,Leisure Management,LMAN,Liberty Leisure Limited / Chilwell Olympia,Cleaning Materials,1510,Other Prem,OthPrem,02/07/2021,V005960,78,Mark-Douglas Industrial Supplies Limited,287.4,BAC003891
Liberty Leisure Limited,http://statistics.data.gov.uk/id/local-authority/37UD,Leisure,LEIS,Leisure Management,LMAN,Liberty Leisure Limited / Chilwell Olympia,Cleaning Materials,1510,Other Prem,OthPrem,02/07/2021,V005960,10.5,Mark-Douglas Industrial Supplies Limited,287.4,BAC003891
Liberty Leisure Limited,http://statistics.data.gov.uk/id/local-authority/37UD,Leisure,LEIS,Leisure Management,LMAN,Liberty Leisure Limited / Chilwell Olympia,Cleaning Materials,1510,Other Prem,OthPrem,02/07/2021,V005960,65,Mark-Douglas Industrial Supplies Limited,287.4,BAC003891
Liberty Leisure Limited,http://statistics.data.gov.uk/id/local-authority/37UD,Leisure,LEIS,Leisure Management,LMAN,Liberty Leisure Limited / Chilwell Olympia,Cleaning Materials,1510,Other Prem,OthPrem,02/07/2021,V005960,86,Mark-Douglas Industrial Supplies Limited,287.4,BAC003891
Liberty Leisure Limited,http://statistics.data.gov.uk/id/local-authority/37UD,Leisure,LEIS,Leisure Management,LMAN,Liberty Leisure Limited / Kimberley Leisure Centre,Repairs & Maintenance,1000,Central Pot,Central,02/07/2021,V005968,223.12,Nottingham Audio Visual Service Limited,267.74,BAC003887
Liberty Leisure Limited,http://statistics.data.gov.uk/id/local-authority/37UD,Culture and Heritage,CULT,Heritage,LHER,Liberty Leisure Limited / DHL Museum,Service Contracts,3056,Other Supplies & Services,OtherSS,02/07/2021,V005959,300,Samson Technical Services,360,BAC003898
Liberty Leisure Limited,http://statistics.data.gov.uk/id/local-authority/37UD,Leisure,LEIS,Leisure Management,LMAN,Liberty Leisure Limited / Kimberley Leisure Centre,Service Contracts,3056,Other Supplies & Services,OtherSS,02/07/2021,V005965,67.2,Solutions For Leisure Ltd,942.24,BAC003890
Liberty Leisure Limited,http://statistics.data.gov.uk/id/local-authority/37UD,Leisure,LEIS,Leisure Management,LMAN,Liberty Leisure Limited / Kimberley Leisure Centre,Service Contracts,3056,Other Supplies & Services,OtherSS,02/07/2021,V005965,73.6,Solutions For Leisure Ltd,942.24,BAC003890
Liberty Leisure Limited,http://statistics.data.gov.uk/id/local-authority/37UD,Leisure,LEIS,Leisure Management,LMAN,Liberty Leisure Limited / Kimberley Leisure Centre,Service Contracts,3056,Other Supplies & Services,OtherSS,02/07/2021,V005965,54.4,Solutions For Leisure Ltd,942.24,BAC003890
Liberty Leisure Limited,http://statistics.data.gov.uk/id/local-authority/37UD,Leisure,LEIS,Leisure Management,LMAN,Liberty Leisure Limited / Kimberley Leisure Centre,Service Contracts,3056,Other Supplies & Services,OtherSS,02/07/2021,V005965,590,Solutions For Leisure Ltd,942.24,BAC003890
Liberty Leisure Limited,http://statistics.data.gov.uk/id/local-authority/37UD,Culture and Heritage,CULT,Heritage,LHER,Liberty Leisure Limited / DHL Museum,Electricity,1310,Utilities,Utility,02/07/2021,V005956,1135.38,Total Gas & Power Ltd,1362.45,BAC003897
Liberty Leisure Limited,http://statistics.data.gov.uk/id/local-authority/37UD,Leisure,LEIS,Leisure Management,LMAN,Liberty Leisure Limited / Bramcote Leisure Centre,Service Contracts,3056,Other Supplies & Services,OtherSS,02/07/2021,V005953,3235.75,Ylem Energy Limited,3882.9,BAC003902
Liberty Leisure Limited,http://statistics.data.gov.uk/id/local-authority/37UD,Leisure,LEIS,Leisure Management,LMAN,Liberty Leisure Limited / Kimberley Leisure Centre,Chemicals,3152,Other Supplies & Services,OtherSS,16/07/2021,V005985,513.09,Cryoservice Limited,615.71,BAC003907
Liberty Leisure Limited,http://statistics.data.gov.uk/id/local-authority/37UD,Leisure,LEIS,Leisure Management,LMAN,Liberty Leisure Limited / Bramcote Leisure Centre,Service Contracts,3056,Other Supplies & Services,OtherSS,16/07/2021,V005997,748,Gaffey Technical Services,897.6,BAC003908
Liberty Leisure Limited,http://statistics.data.gov.uk/id/local-authority/37UD,Leisure,LEIS,Leisure Management,LMAN,Liberty Leisure Limited / Bramcote Leisure Centre,Repairs & Maintenance,1000,Central Pot,Central,16/07/2021,V005998,636,Lee Jackson Air Conditioning Ltd,763.2,BAC003919
Liberty Leisure Limited,http://statistics.data.gov.uk/id/local-authority/37UD,Leisure,LEIS,Leisure Management,LMAN,Liberty Leisure Limited / Bramcote Leisure Centre,Repairs & Maintenance,1000,Central Pot,Central,16/07/2021,V005983,249.9,NBE Fire and Security Limited,448.91,BAC003918
Liberty Leisure Limited,http://statistics.data.gov.uk/id/local-authority/37UD,Leisure,LEIS,Leisure Management,LMAN,Liberty Leisure Limited / Bramcote Leisure Centre,Service Contracts,3056,Other Supplies & Services,OtherSS,16/07/2021,V005984,124.19,NBE Fire and Security Limited,448.91,BAC003918
Liberty Leisure Limited,http://statistics.data.gov.uk/id/local-authority/37UD,Leisure,LEIS,Leisure Management,LMAN,Liberty Leisure Limited / Bramcote Leisure Centre,Annual Projects Contingency,3710,Other Supplies & Services,OtherSS,16/07/2021,V005971,1164.82,Nottingham Audio Visual Service Limited,1572.73,BAC003911
Liberty Leisure Limited,http://statistics.data.gov.uk/id/local-authority/37UD,Leisure,LEIS,Leisure Management,LMAN,Liberty Leisure Limited / Kimberley Leisure Centre,Repairs & Maintenance,1000,Central Pot,Central,16/07/2021,V005986,10,Nottingham Audio Visual Service Limited,1572.73,BAC003911
Liberty Leisure Limited,http://statistics.data.gov.uk/id/local-authority/37UD,Leisure,LEIS,Leisure Management,LMAN,Liberty Leisure Limited / Kimberley Leisure Centre,Repairs & Maintenance,1000,Central Pot,Central,16/07/2021,V005986,135.78,Nottingham Audio Visual Service Limited,1572.73,BAC003911
Liberty Leisure Limited,http://statistics.data.gov.uk/id/local-authority/37UD,Leisure,LEIS,Leisure Management,LMAN,Liberty Leisure Limited / Kimberley Leisure Centre,Gas,1320,Utilities,Utility,16/07/2021,V005978,3405.56,The Kimberley School (EMET),4086.07,BAC003913
Liberty Leisure Limited,http://statistics.data.gov.uk/id/local-authority/37UD,Leisure,LEIS,Leisure Management,LMAN,Liberty Leisure Limited / Kimberley Leisure Centre,Gas,1320,Utilities,Utility,16/07/2021,V005979,-0.5,The Kimberley School (EMET),4086.07,BAC003913
Liberty Leisure Limited,http://statistics.data.gov.uk/id/local-authority/37UD,Leisure,LEIS,Leisure Management,LMAN,Liberty Leisure Limited / Bramcote Leisure Centre,Gas,1320,Utilities,Utility,16/07/2021,V006000,4424.13,Total Gas & Power Ltd,5956.1,BAC003917
Liberty Leisure Limited,http://statistics.data.gov.uk/id/local-authority/37UD,Leisure,LEIS,Leisure Management,LMAN,Liberty Leisure Limited / Bramcote Leisure Centre,Gas,1320,Utilities,Utility,16/07/2021,V006002,1276.64,Total Gas & Power Ltd,5956.1,BAC003917
Liberty Leisure Limited,http://statistics.data.gov.uk/id/local-authority/37UD,Leisure,LEIS,Leisure Management,LMAN,Liberty Leisure Limited / Chilwell Olympia,Solid Fuel,1330,Utilities,Utility,30/07/2021,V005990,356.54,Chilwell School,2160.72,BAC003931
Liberty Leisure Limited,http://statistics.data.gov.uk/id/local-authority/37UD,Leisure,LEIS,Leisure Management,LMAN,Liberty Leisure Limited / Chilwell Olympia,Water Charges,1410,Utilities,Utility,30/07/2021,V005990,1245.79,Chilwell School,2160.72,BAC003931
Liberty Leisure Limited,http://statistics.data.gov.uk/id/local-authority/37UD,Leisure,LEIS,Leisure Management,LMAN,Liberty Leisure Limited / Chilwell Olympia,Water Charges,1410,Utilities,Utility,30/07/2021,V005990,558.39,Chilwell School,2160.72,BAC003931
Liberty Leisure Limited,http://statistics.data.gov.uk/id/local-authority/37UD,Leisure,LEIS,Leisure Management,LMAN,Liberty Leisure Limited / Kimberley Leisure Centre,Repairs & Maintenance,1000,Central Pot,Central,30/07/2021,V006013,350,Deltron Lifts Limited,420,BAC003933
Liberty Leisure Limited,http://statistics.data.gov.uk/id/local-authority/37UD,Leisure,LEIS,Leisure Management,LMAN,Liberty Leisure Limited / Kimberley Leisure Centre,Service Contracts,3056,Other Supplies & Services,OtherSS,30/07/2021,V006039,652,ESG Pool Ventilation Ltd,782.4,BAC003935
Liberty Leisure Limited,http://statistics.data.gov.uk/id/local-authority/37UD,Leisure,LEIS,Leisure Management,LMAN,Liberty Leisure Limited / Kimberley Leisure Centre,Pool Equipment Purchase,3020,Other Supplies & Services,OtherSS,30/07/2021,V006036,14.35,J P Lennard Limited,592.62,BAC003924
Liberty Leisure Limited,http://statistics.data.gov.uk/id/local-authority/37UD,Leisure,LEIS,Leisure Management,LMAN,Liberty Leisure Limited / Kimberley Leisure Centre,Pool Equipment Purchase,3020,Other Supplies & Services,OtherSS,30/07/2021,V006037,-50.45,J P Lennard Limited,592.62,BAC003924
Liberty Leisure Limited,http://statistics.data.gov.uk/id/local-authority/37UD,Leisure,LEIS,Leisure Management,LMAN,Liberty Leisure Limited / Kimberley Leisure Centre,Pool Equipment Purchase,3020,Other Supplies & Services,OtherSS,30/07/2021,V006038,62.35,J P Lennard Limited,592.62,BAC003924
Liberty Leisure Limited,http://statistics.data.gov.uk/id/local-authority/37UD,Leisure,LEIS,Leisure Management,LMAN,Liberty Leisure Limited / Kimberley Leisure Centre,Pool Equipment Purchase,3020,Other Supplies & Services,OtherSS,30/07/2021,V006036,50.45,J P Lennard Limited,592.62,BAC003924
Liberty Leisure Limited,http://statistics.data.gov.uk/id/local-authority/37UD,Leisure,LEIS,Leisure Management,LMAN,Liberty Leisure Limited / Kimberley Leisure Centre,Pool Equipment Purchase,3020,Other Supplies & Services,OtherSS,30/07/2021,V006036,15.6,J P Lennard Limited,592.62,BAC003924
Liberty Leisure Limited,http://statistics.data.gov.uk/id/local-authority/37UD,Leisure,LEIS,Leisure Management,LMAN,Liberty Leisure Limited / Kimberley Leisure Centre,Pool Equipment Purchase,3020,Other Supplies & Services,OtherSS,30/07/2021,V006036,384,J P Lennard Limited,592.62,BAC003924
Liberty Leisure Limited,http://statistics.data.gov.uk/id/local-authority/37UD,Leisure,LEIS,Leisure Management,LMAN,Liberty Leisure Limited / Kimberley Leisure Centre,Pool Equipment Purchase,3020,Other Supplies & Services,OtherSS,30/07/2021,V006036,17.55,J P Lennard Limited,592.62,BAC003924
Liberty Leisure Limited,http://statistics.data.gov.uk/id/local-authority/37UD,Leisure,LEIS,Leisure Management,LMAN,Liberty Leisure Limited / Chilwell Olympia,Repairs & Maintenance,1000,Central Pot,Central,30/07/2021,V006026,295.71,Long Eaton Glass,354.85,BAC003925
Liberty Leisure Limited,http://statistics.data.gov.uk/id/local-authority/37UD,Leisure,LEIS,Leisure Management,LMAN,Liberty Leisure Limited / Kimberley Leisure Centre,Service Contracts,3056,Other Supplies & Services,OtherSS,30/07/2021,V006040,600,Manor Environmental Service,600,BAC003926
Liberty Leisure Limited,http://statistics.data.gov.uk/id/local-authority/37UD,Leisure,LEIS,Leisure Management,LMAN,Liberty Leisure Limited / Bramcote Leisure Centre,Cleaning Materials,1510,Other Prem,OthPrem,30/07/2021,V006014,12.5,Mark-Douglas Industrial Supplies Limited,1844.18,BAC003932
Liberty Leisure Limited,http://statistics.data.gov.uk/id/local-authority/37UD,Leisure,LEIS,Leisure Management,LMAN,Liberty Leisure Limited / Bramcote Leisure Centre,Cleaning Materials,1510,Other Prem,OthPrem,30/07/2021,V006017,32.5,Mark-Douglas Industrial Supplies Limited,1844.18,BAC003932
Liberty Leisure Limited,http://statistics.data.gov.uk/id/local-authority/37UD,Leisure,LEIS,Leisure Management,LMAN,Liberty Leisure Limited / Bramcote Leisure Centre,Cleaning Materials,1510,Other Prem,OthPrem,30/07/2021,V006015,15.22,Mark-Douglas Industrial Supplies Limited,1844.18,BAC003932
Liberty Leisure Limited,http://statistics.data.gov.uk/id/local-authority/37UD,Leisure,LEIS,Leisure Management,LMAN,Liberty Leisure Limited / Bramcote Leisure Centre,Cleaning Materials,1510,Other Prem,OthPrem,30/07/2021,V006012,32.5,Mark-Douglas Industrial Supplies Limited,1844.18,BAC003932
Liberty Leisure Limited,http://statistics.data.gov.uk/id/local-authority/37UD,Leisure,LEIS,Leisure Management,LMAN,Liberty Leisure Limited / Bramcote Leisure Centre,Cleaning Materials,1510,Other Prem,OthPrem,30/07/2021,V006023,1.44,Mark-Douglas Industrial Supplies Limited,1844.18,BAC003932
Liberty Leisure Limited,http://statistics.data.gov.uk/id/local-authority/37UD,Leisure,LEIS,Leisure Management,LMAN,Liberty Leisure Limited / Bramcote Leisure Centre,Cleaning Materials,1510,Other Prem,OthPrem,30/07/2021,V006015,12.5,Mark-Douglas Industrial Supplies Limited,1844.18,BAC003932
Liberty Leisure Limited,http://statistics.data.gov.uk/id/local-authority/37UD,Leisure,LEIS,Leisure Management,LMAN,Liberty Leisure Limited / Bramcote Leisure Centre,Cleaning Materials,1510,Other Prem,OthPrem,30/07/2021,V006012,12.5,Mark-Douglas Industrial Supplies Limited,1844.18,BAC003932
Liberty Leisure Limited,http://statistics.data.gov.uk/id/local-authority/37UD,Leisure,LEIS,Leisure Management,LMAN,Liberty Leisure Limited / Bramcote Leisure Centre,Cleaning Materials,1510,Other Prem,OthPrem,30/07/2021,V006012,86,Mark-Douglas Industrial Supplies Limited,1844.18,BAC003932
Liberty Leisure Limited,http://statistics.data.gov.uk/id/local-authority/37UD,Leisure,LEIS,Leisure Management,LMAN,Liberty Leisure Limited / Bramcote Leisure Centre,Cleaning Materials,1510,Other Prem,OthPrem,30/07/2021,V006017,103.2,Mark-Douglas Industrial Supplies Limited,1844.18,BAC003932
Liberty Leisure Limited,http://statistics.data.gov.uk/id/local-authority/37UD,Leisure,LEIS,Leisure Management,LMAN,Liberty Leisure Limited / Bramcote Leisure Centre,Cleaning Materials,1510,Other Prem,OthPrem,30/07/2021,V006018,39,Mark-Douglas Industrial Supplies Limited,1844.18,BAC003932
Liberty Leisure Limited,http://statistics.data.gov.uk/id/local-authority/37UD,Leisure,LEIS,Leisure Management,LMAN,Liberty Leisure Limited / Bramcote Leisure Centre,Cleaning Materials,1510,Other Prem,OthPrem,30/07/2021,V006017,30.44,Mark-Douglas Industrial Supplies Limited,1844.18,BAC003932
Liberty Leisure Limited,http://statistics.data.gov.uk/id/local-authority/37UD,Leisure,LEIS,Leisure Management,LMAN,Liberty Leisure Limited / Bramcote Leisure Centre,Cleaning Materials,1510,Other Prem,OthPrem,30/07/2021,V006012,12.28,Mark-Douglas Industrial Supplies Limited,1844.18,BAC003932
Liberty Leisure Limited,http://statistics.data.gov.uk/id/local-authority/37UD,Leisure,LEIS,Leisure Management,LMAN,Liberty Leisure Limited / Bramcote Leisure Centre,Cleaning Materials,1510,Other Prem,OthPrem,30/07/2021,V006017,12.28,Mark-Douglas Industrial Supplies Limited,1844.18,BAC003932
Liberty Leisure Limited,http://statistics.data.gov.uk/id/local-authority/37UD,Leisure,LEIS,Leisure Management,LMAN,Liberty Leisure Limited / Bramcote Leisure Centre,Cleaning Materials,1510,Other Prem,OthPrem,30/07/2021,V006017,8.5,Mark-Douglas Industrial Supplies Limited,1844.18,BAC003932
Liberty Leisure Limited,http://statistics.data.gov.uk/id/local-authority/37UD,Leisure,LEIS,Leisure Management,LMAN,Liberty Leisure Limited / Bramcote Leisure Centre,Cleaning Materials,1510,Other Prem,OthPrem,30/07/2021,V006012,8.5,Mark-Douglas Industrial Supplies Limited,1844.18,BAC003932
Liberty Leisure Limited,http://statistics.data.gov.uk/id/local-authority/37UD,Leisure,LEIS,Leisure Management,LMAN,Liberty Leisure Limited / Bramcote Leisure Centre,Cleaning Materials,1510,Other Prem,OthPrem,30/07/2021,V006018,24,Mark-Douglas Industrial Supplies Limited,1844.18,BAC003932
Liberty Leisure Limited,http://statistics.data.gov.uk/id/local-authority/37UD,Leisure,LEIS,Leisure Management,LMAN,Liberty Leisure Limited / Bramcote Leisure Centre,Cleaning Materials,1510,Other Prem,OthPrem,30/07/2021,V006023,14.6,Mark-Douglas Industrial Supplies Limited,1844.18,BAC003932
Liberty Leisure Limited,http://statistics.data.gov.uk/id/local-authority/37UD,Leisure,LEIS,Leisure Management,LMAN,Liberty Leisure Limited / Bramcote Leisure Centre,Cleaning Materials,1510,Other Prem,OthPrem,30/07/2021,V006015,14.6,Mark-Douglas Industrial Supplies Limited,1844.18,BAC003932
Liberty Leisure Limited,http://statistics.data.gov.uk/id/local-authority/37UD,Leisure,LEIS,Leisure Management,LMAN,Liberty Leisure Limited / Bramcote Leisure Centre,Cleaning Materials,1510,Other Prem,OthPrem,30/07/2021,V006021,172,Mark-Douglas Industrial Supplies Limited,1844.18,BAC003932
Liberty Leisure Limited,http://statistics.data.gov.uk/id/local-authority/37UD,Leisure,LEIS,Leisure Management,LMAN,Liberty Leisure Limited / Bramcote Leisure Centre,Cleaning Materials,1510,Other Prem,OthPrem,30/07/2021,V006018,18,Mark-Douglas Industrial Supplies Limited,1844.18,BAC003932
Liberty Leisure Limited,http://statistics.data.gov.uk/id/local-authority/37UD,Leisure,LEIS,Leisure Management,LMAN,Liberty Leisure Limited / Bramcote Leisure Centre,Cleaning Materials,1510,Other Prem,OthPrem,30/07/2021,V006012,45.66,Mark-Douglas Industrial Supplies Limited,1844.18,BAC003932
Liberty Leisure Limited,http://statistics.data.gov.uk/id/local-authority/37UD,Leisure,LEIS,Leisure Management,LMAN,Liberty Leisure Limited / Bramcote Leisure Centre,Cleaning Materials,1510,Other Prem,OthPrem,30/07/2021,V006017,37.5,Mark-Douglas Industrial Supplies Limited,1844.18,BAC003932
Liberty Leisure Limited,http://statistics.data.gov.uk/id/local-authority/37UD,Leisure,LEIS,Leisure Management,LMAN,Liberty Leisure Limited / Bramcote Leisure Centre,Cleaning Materials,1510,Other Prem,OthPrem,30/07/2021,V006022,60.88,Mark-Douglas Industrial Supplies Limited,1844.18,BAC003932
Liberty Leisure Limited,http://statistics.data.gov.uk/id/local-authority/37UD,Leisure,LEIS,Leisure Management,LMAN,Liberty Leisure Limited / Bramcote Leisure Centre,Cleaning Materials,1510,Other Prem,OthPrem,30/07/2021,V006023,60.88,Mark-Douglas Industrial Supplies Limited,1844.18,BAC003932
Liberty Leisure Limited,http://statistics.data.gov.uk/id/local-authority/37UD,Leisure,LEIS,Leisure Management,LMAN,Liberty Leisure Limited / Bramcote Leisure Centre,Cleaning Materials,1510,Other Prem,OthPrem,30/07/2021,V006022,130,Mark-Douglas Industrial Supplies Limited,1844.18,BAC003932
Liberty Leisure Limited,http://statistics.data.gov.uk/id/local-authority/37UD,Leisure,LEIS,Leisure Management,LMAN,Liberty Leisure Limited / Bramcote Leisure Centre,Cleaning Materials,1510,Other Prem,OthPrem,30/07/2021,V006022,50,Mark-Douglas Industrial Supplies Limited,1844.18,BAC003932
Liberty Leisure Limited,http://statistics.data.gov.uk/id/local-authority/37UD,Leisure,LEIS,Leisure Management,LMAN,Liberty Leisure Limited / Bramcote Leisure Centre,Cleaning Materials,1510,Other Prem,OthPrem,30/07/2021,V006023,2.4,Mark-Douglas Industrial Supplies Limited,1844.18,BAC003932
Liberty Leisure Limited,http://statistics.data.gov.uk/id/local-authority/37UD,Leisure,LEIS,Leisure Management,LMAN,Liberty Leisure Limited / Bramcote Leisure Centre,Cleaning Materials,1510,Other Prem,OthPrem,30/07/2021,V006023,3.75,Mark-Douglas Industrial Supplies Limited,1844.18,BAC003932
Liberty Leisure Limited,http://statistics.data.gov.uk/id/local-authority/37UD,Leisure,LEIS,Leisure Management,LMAN,Liberty Leisure Limited / Bramcote Leisure Centre,Cleaning Materials,1510,Other Prem,OthPrem,30/07/2021,V006021,117,Mark-Douglas Industrial Supplies Limited,1844.18,BAC003932
Liberty Leisure Limited,http://statistics.data.gov.uk/id/local-authority/37UD,Leisure,LEIS,Leisure Management,LMAN,Liberty Leisure Limited / Bramcote Leisure Centre,Cleaning Materials,1510,Other Prem,OthPrem,30/07/2021,V006021,36.84,Mark-Douglas Industrial Supplies Limited,1844.18,BAC003932
Liberty Leisure Limited,http://statistics.data.gov.uk/id/local-authority/37UD,Leisure,LEIS,Leisure Management,LMAN,Liberty Leisure Limited / Bramcote Leisure Centre,Cleaning Materials,1510,Other Prem,OthPrem,30/07/2021,V006023,68.8,Mark-Douglas Industrial Supplies Limited,1844.18,BAC003932
Liberty Leisure Limited,http://statistics.data.gov.uk/id/local-authority/37UD,Leisure,LEIS,Leisure Management,LMAN,Liberty Leisure Limited / Bramcote Leisure Centre,Cleaning Materials,1510,Other Prem,OthPrem,30/07/2021,V006022,68.8,Mark-Douglas Industrial Supplies Limited,1844.18,BAC003932
Liberty Leisure Limited,http://statistics.data.gov.uk/id/local-authority/37UD,Leisure,LEIS,Leisure Management,LMAN,Liberty Leisure Limited / Chilwell Olympia,Cleaning Materials,1510,Other Prem,OthPrem,30/07/2021,V006030,40.48,Mark-Douglas Industrial Supplies Limited,1844.18,BAC003932
Liberty Leisure Limited,http://statistics.data.gov.uk/id/local-authority/37UD,Leisure,LEIS,Leisure Management,LMAN,Liberty Leisure Limited / Kimberley Leisure Centre,Cleaning Materials,1510,Other Prem,OthPrem,30/07/2021,V006007,151.25,Mark-Douglas Industrial Supplies Limited,1844.18,BAC003932
Liberty Leisure Limited,http://statistics.data.gov.uk/id/local-authority/37UD,Culture and Heritage,CULT,Heritage,LHER,Liberty Leisure Limited / DHL Museum,Repairs & Maintenance,1000,Central Pot,Central,30/07/2021,V006027,250,Samson Technical Services,300,BAC003940
Liberty Leisure Limited,http://statistics.data.gov.uk/id/local-authority/37UD,Leisure,LEIS,Leisure Management,LMAN,Liberty Leisure Limited / Kimberley Leisure Centre,Electricity,1310,Utilities,Utility,30/07/2021,V006019,275.91,Siemens plc,331.09,BAC003943
Liberty Leisure Limited,http://statistics.data.gov.uk/id/local-authority/37UD,Leisure,LEIS,Leisure Management,LMAN,Liberty Leisure Limited / Bramcote Leisure Centre,Service Contracts,3056,Other Supplies & Services,OtherSS,30/07/2021,V006041,268.54,Sterling Hydrotech Limited,322.25,BAC003928
Liberty Leisure Limited,http://statistics.data.gov.uk/id/local-authority/37UD,Culture and Heritage,CULT,Heritage,LHER,Liberty Leisure Limited / DHL Museum,Gas,1320,Utilities,Utility,30/07/2021,V006029,40.28,Total Gas & Power Ltd,3907.79,BAC003939
Liberty Leisure Limited,http://statistics.data.gov.uk/id/local-authority/37UD,Leisure,LEIS,Leisure Management,LMAN,Liberty Leisure Limited / Kimberley Leisure Centre,Electricity,1310,Utilities,Utility,30/07/2021,V006006,3221.25,Total Gas & Power Ltd,3907.79,BAC003939
Liberty Leisure Limited,http://statistics.data.gov.uk/id/local-authority/37UD,Leisure,LEIS,Leisure Management,LMAN,Liberty Leisure Limited / Kimberley Leisure Centre,Chemicals,3152,Other Supplies & Services,OtherSS,30/07/2021,V006008,95.21,Univar Solutions BV,737.85,BAC003930
Liberty Leisure Limited,http://statistics.data.gov.uk/id/local-authority/37UD,Leisure,LEIS,Leisure Management,LMAN,Liberty Leisure Limited / Kimberley Leisure Centre,Chemicals,3152,Other Supplies & Services,OtherSS,30/07/2021,V006009,39.5,Univar Solutions BV,737.85,BAC003930
Liberty Leisure Limited,http://statistics.data.gov.uk/id/local-authority/37UD,Leisure,LEIS,Leisure Management,LMAN,Liberty Leisure Limited / Kimberley Leisure Centre,Chemicals,3152,Other Supplies & Services,OtherSS,30/07/2021,V006009,70.08,Univar Solutions BV,737.85,BAC003930
Liberty Leisure Limited,http://statistics.data.gov.uk/id/local-authority/37UD,Leisure,LEIS,Leisure Management,LMAN,Liberty Leisure Limited / Kimberley Leisure Centre,Chemicals,3152,Other Supplies & Services,OtherSS,30/07/2021,V006009,70.4,Univar Solutions BV,737.85,BAC003930
Liberty Leisure Limited,http://statistics.data.gov.uk/id/local-authority/37UD,Leisure,LEIS,Leisure Management,LMAN,Liberty Leisure Limited / Kimberley Leisure Centre,Chemicals,3152,Other Supplies & Services,OtherSS,30/07/2021,V006008,29,Univar Solutions BV,737.85,BAC003930
Liberty Leisure Limited,http://statistics.data.gov.uk/id/local-authority/37UD,Leisure,LEIS,Leisure Management,LMAN,Liberty Leisure Limited / Kimberley Leisure Centre,Chemicals,3152,Other Supplies & Services,OtherSS,30/07/2021,V006008,310.68,Univar Solutions BV,737.85,BAC003930
Liberty Leisure Limited,http://statistics.data.gov.uk/id/local-authority/37UD,Leisure,LEIS,Leisure Management,LMAN,Liberty Leisure Limited / Chilwell Olympia,Water Charges,1410,Utilities,Utility,30/07/2021,V005999,23.84,Waterplus,505.26,BAC003945
Liberty Leisure Limited,http://statistics.data.gov.uk/id/local-authority/37UD,Leisure,LEIS,Leisure Management,LMAN,Liberty Leisure Limited / Kimberley Leisure Centre,Sewerage Charges,1420,Utilities,Utility,30/07/2021,V006016,481.42,Waterplus,505.26,BAC003945
Liberty Leisure Limited,http://statistics.data.gov.uk/id/local-authority/37UD,Leisure,LEIS,Leisure Management,LMAN,Liberty Leisure Limited / Kimberley Leisure Centre,Vending Provisions  - Purchase,3204,Catering,Cat,13/08/2021,V006045,22.74,A1 Coffee Ltd,1098.09,BAC003969
Liberty Leisure Limited,http://statistics.data.gov.uk/id/local-authority/37UD,Leisure,LEIS,Leisure Management,LMAN,Liberty Leisure Limited / Kimberley Leisure Centre,Vending Provisions  - Purchase,3204,Catering,Cat,13/08/2021,V006045,14.78,A1 Coffee Ltd,1098.09,BAC003969
Liberty Leisure Limited,http://statistics.data.gov.uk/id/local-authority/37UD,Leisure,LEIS,Leisure Management,LMAN,Liberty Leisure Limited / Kimberley Leisure Centre,Vending Provisions  - Purchase,3204,Catering,Cat,13/08/2021,V006045,223.93,A1 Coffee Ltd,1098.09,BAC003969
Liberty Leisure Limited,http://statistics.data.gov.uk/id/local-authority/37UD,Leisure,LEIS,Leisure Management,LMAN,Liberty Leisure Limited / Kimberley Leisure Centre,Vending Provisions  - Purchase,3204,Catering,Cat,13/08/2021,V006045,461.94,A1 Coffee Ltd,1098.09,BAC003969
Liberty Leisure Limited,http://statistics.data.gov.uk/id/local-authority/37UD,Leisure,LEIS,Leisure Management,LMAN,Liberty Leisure Limited / Kimberley Leisure Centre,Vending Provisions  - Purchase,3204,Catering,Cat,13/08/2021,V006045,230.93,A1 Coffee Ltd,1098.09,BAC003969
Liberty Leisure Limited,http://statistics.data.gov.uk/id/local-authority/37UD,Leisure,LEIS,Leisure Management,LMAN,Liberty Leisure Limited / Kimberley Leisure Centre,Vending Provisions  - Purchase,3204,Catering,Cat,13/08/2021,V006045,71.97,A1 Coffee Ltd,1098.09,BAC003969
Liberty Leisure Limited,http://statistics.data.gov.uk/id/local-authority/37UD,Leisure,LEIS,Leisure Management,LMAN,Liberty Leisure Limited / Kimberley Leisure Centre,Vending Provisions  - Purchase,3204,Catering,Cat,13/08/2021,V006045,25.98,A1 Coffee Ltd,1098.09,BAC003969
Liberty Leisure Limited,http://statistics.data.gov.uk/id/local-authority/37UD,Leisure,LEIS,Leisure Management,LMAN,Liberty Leisure Limited / Kimberley Leisure Centre,Vending Provisions  - Purchase,3204,Catering,Cat,13/08/2021,V006045,33.98,A1 Coffee Ltd,1098.09,BAC003969
Liberty Leisure Limited,http://statistics.data.gov.uk/id/local-authority/37UD,Leisure,LEIS,Leisure Management,LMAN,Liberty Leisure Limited / Kimberley Leisure Centre,Vending Provisions  - Purchase,3204,Catering,Cat,13/08/2021,V006045,9.87,A1 Coffee Ltd,1098.09,BAC003969
Liberty Leisure Limited,http://statistics.data.gov.uk/id/local-authority/37UD,Leisure,LEIS,Leisure Management,LMAN,Liberty Leisure Limited / Kimberley Leisure Centre,Vending Provisions  - Purchase,3204,Catering,Cat,13/08/2021,V006047,230.92,Automatic Retailing northern Ltd,1783.31,BAC003966
Liberty Leisure Limited,http://statistics.data.gov.uk/id/local-authority/37UD,Leisure,LEIS,Leisure Management,LMAN,Liberty Leisure Limited / Kimberley Leisure Centre,Vending Provisions  - Purchase,3204,Catering,Cat,13/08/2021,V006047,1293.66,Automatic Retailing northern Ltd,1783.31,BAC003966
Liberty Leisure Limited,http://statistics.data.gov.uk/id/local-authority/37UD,Leisure,LEIS,Leisure Management,LMAN,Liberty Leisure Limited / Bramcote Leisure Centre,Chemicals,3152,Other Supplies & Services,OtherSS,13/08/2021,V006055,1562.5,Brenntag UK Limited,1875,BAC003961
Liberty Leisure Limited,http://statistics.data.gov.uk/id/local-authority/37UD,Leisure,LEIS,Leisure Management,LMAN,Liberty Leisure Limited / Kimberley Leisure Centre,Chemicals,3152,Other Supplies & Services,OtherSS,13/08/2021,V006071,261.62,Cryoservice Limited,313.94,BAC003950
Liberty Leisure Limited,http://statistics.data.gov.uk/id/local-authority/37UD,Leisure,LEIS,Leisure Centres,LCEN,Liberty Leisure Limited / Kimberley Leisure Centre,Repairs & Maintenance,1000,Central Pot,Central,13/08/2021,V006043,705.83,East Midlands Vending,847,BAC003971
Liberty Leisure Limited,http://statistics.data.gov.uk/id/local-authority/37UD,Leisure,LEIS,Leisure Management,LMAN,Liberty Leisure Limited / Kimberley Leisure Centre,Repairs & Maintenance,1000,Central Pot,Central,13/08/2021,V006048,288.01,FitServe Ltd,345.61,BAC003958
Liberty Leisure Limited,http://statistics.data.gov.uk/id/local-authority/37UD,Leisure,LEIS,Leisure Management,LMAN,Liberty Leisure Limited / Bramcote Leisure Centre,Repairs & Maintenance,1000,Central Pot,Central,13/08/2021,V006064,553.1,JIH Electrical Ltd,1329.3,BAC003963
Liberty Leisure Limited,http://statistics.data.gov.uk/id/local-authority/37UD,Leisure,LEIS,Leisure Management,LMAN,Liberty Leisure Limited / Bramcote Leisure Centre,Repairs & Maintenance,1000,Central Pot,Central,13/08/2021,V006050,776.2,JIH Electrical Ltd,1329.3,BAC003963
Liberty Leisure Limited,http://statistics.data.gov.uk/id/local-authority/37UD,Leisure,LEIS,Leisure Management,LMAN,Liberty Leisure Limited / Kimberley Leisure Centre,Repairs & Maintenance,1000,Central Pot,Central,13/08/2021,V006068,654,Langley Mill Contract Floor,784.8,BAC003951
Liberty Leisure Limited,http://statistics.data.gov.uk/id/local-authority/37UD,Leisure,LEIS,Leisure Management,LMAN,Liberty Leisure Limited / Bramcote Leisure Centre,Cleaning Materials,1510,Other Prem,OthPrem,13/08/2021,V006053,8.5,Mark-Douglas Industrial Supplies Limited,904.8,BAC003955
Liberty Leisure Limited,http://statistics.data.gov.uk/id/local-authority/37UD,Leisure,LEIS,Leisure Management,LMAN,Liberty Leisure Limited / Bramcote Leisure Centre,Cleaning Materials,1510,Other Prem,OthPrem,13/08/2021,V006053,35.85,Mark-Douglas Industrial Supplies Limited,904.8,BAC003955
Liberty Leisure Limited,http://statistics.data.gov.uk/id/local-authority/37UD,Leisure,LEIS,Leisure Management,LMAN,Liberty Leisure Limited / Bramcote Leisure Centre,Cleaning Materials,1510,Other Prem,OthPrem,13/08/2021,V006054,7.3,Mark-Douglas Industrial Supplies Limited,904.8,BAC003955
Liberty Leisure Limited,http://statistics.data.gov.uk/id/local-authority/37UD,Leisure,LEIS,Leisure Management,LMAN,Liberty Leisure Limited / Bramcote Leisure Centre,Cleaning Materials,1510,Other Prem,OthPrem,13/08/2021,V006053,30.44,Mark-Douglas Industrial Supplies Limited,904.8,BAC003955
Liberty Leisure Limited,http://statistics.data.gov.uk/id/local-authority/37UD,Leisure,LEIS,Leisure Management,LMAN,Liberty Leisure Limited / Bramcote Leisure Centre,Cleaning Materials,1510,Other Prem,OthPrem,13/08/2021,V006053,34.4,Mark-Douglas Industrial Supplies Limited,904.8,BAC003955
Liberty Leisure Limited,http://statistics.data.gov.uk/id/local-authority/37UD,Leisure,LEIS,Leisure Management,LMAN,Liberty Leisure Limited / Bramcote Leisure Centre,Cleaning Materials,1510,Other Prem,OthPrem,13/08/2021,V006054,7.3,Mark-Douglas Industrial Supplies Limited,904.8,BAC003955
Liberty Leisure Limited,http://statistics.data.gov.uk/id/local-authority/37UD,Leisure,LEIS,Leisure Management,LMAN,Liberty Leisure Limited / Chilwell Olympia,Cleaning Materials,1510,Other Prem,OthPrem,13/08/2021,V006063,15.51,Mark-Douglas Industrial Supplies Limited,904.8,BAC003955
Liberty Leisure Limited,http://statistics.data.gov.uk/id/local-authority/37UD,Leisure,LEIS,Leisure Management,LMAN,Liberty Leisure Limited / Chilwell Olympia,Cleaning Materials,1510,Other Prem,OthPrem,13/08/2021,V006063,67,Mark-Douglas Industrial Supplies Limited,904.8,BAC003955
Liberty Leisure Limited,http://statistics.data.gov.uk/id/local-authority/37UD,Leisure,LEIS,Leisure Management,LMAN,Liberty Leisure Limited / Kimberley Leisure Centre,Cleaning Materials,1510,Other Prem,OthPrem,13/08/2021,V006044,447.4,Mark-Douglas Industrial Supplies Limited,904.8,BAC003955
Liberty Leisure Limited,http://statistics.data.gov.uk/id/local-authority/37UD,Leisure,LEIS,Leisure Management,LMAN,Liberty Leisure Limited / Kimberley Leisure Centre,Cleaning Materials,1510,Other Prem,OthPrem,13/08/2021,V006072,100.3,Mark-Douglas Industrial Supplies Limited,904.8,BAC003955
Liberty Leisure Limited,http://statistics.data.gov.uk/id/local-authority/37UD,Culture and Heritage,CULT,Heritage,LHER,Liberty Leisure Limited / DHL Museum,Licences,3613,Other Supplies & Services,OtherSS,13/08/2021,V006075,219,MODES Users Association,262.8,BAC003968
Liberty Leisure Limited,http://statistics.data.gov.uk/id/local-authority/37UD,Culture and Heritage,CULT,Heritage,LHER,Liberty Leisure Limited / DHL Museum,Repairs & Maintenance,1000,Central Pot,Central,13/08/2021,V006042,250,Samson Technical Services,300,BAC003960
Liberty Leisure Limited,http://statistics.data.gov.uk/id/local-authority/37UD,Leisure,LEIS,Leisure Management,LMAN,Liberty Leisure Limited / Bramcote Leisure Centre,Legionella Testing,1042,Central Pot,Central,13/08/2021,V006058,87,Sterilizing Services,585.6,BAC003953
Liberty Leisure Limited,http://statistics.data.gov.uk/id/local-authority/37UD,Leisure,LEIS,Leisure Management,LMAN,Liberty Leisure Limited / Bramcote Leisure Centre,Legionella Testing,1042,Central Pot,Central,13/08/2021,V006051,58,Sterilizing Services,585.6,BAC003953
Liberty Leisure Limited,http://statistics.data.gov.uk/id/local-authority/37UD,Leisure,LEIS,Leisure Management,LMAN,Liberty Leisure Limited / Bramcote Leisure Centre,Legionella Testing,1042,Central Pot,Central,13/08/2021,V006052,343,Sterilizing Services,585.6,BAC003953
Liberty Leisure Limited,http://statistics.data.gov.uk/id/local-authority/37UD,Leisure,LEIS,Leisure Management,LMAN,Liberty Leisure Limited / Bramcote Leisure Centre,Purchase of Miscellaneous Items for Sale,3160,Other Supplies & Services,OtherSS,13/08/2021,V006049,660.3,Swim England Trading Ltd,792.36,BAC003949
Liberty Leisure Limited,http://statistics.data.gov.uk/id/local-authority/37UD,Leisure,LEIS,Leisure Management,LMAN,Liberty Leisure Limited / Kimberley Leisure Centre,Repairs & Maintenance,1000,Central Pot,Central,13/08/2021,V006070,292,The Arco Group,350.4,BAC003948
Liberty Leisure Limited,http://statistics.data.gov.uk/id/local-authority/37UD,Culture and Heritage,CULT,Heritage,LHER,Liberty Leisure Limited / DHL Museum,Electricity,1310,Utilities,Utility,13/08/2021,V006031,74.86,Total Gas & Power Ltd,12918.19,BAC003959
Liberty Leisure Limited,http://statistics.data.gov.uk/id/local-authority/37UD,Leisure,LEIS,Leisure Management,LMAN,Liberty Leisure Limited / Bramcote Leisure Centre,Electricity,1310,Utilities,Utility,13/08/2021,V006065,3179.49,Total Gas & Power Ltd,12918.19,BAC003959
Liberty Leisure Limited,http://statistics.data.gov.uk/id/local-authority/37UD,Leisure,LEIS,Leisure Management,LMAN,Liberty Leisure Limited / Bramcote Leisure Centre,Electricity,1310,Utilities,Utility,13/08/2021,V006066,3704.34,Total Gas & Power Ltd,12918.19,BAC003959
Liberty Leisure Limited,http://statistics.data.gov.uk/id/local-authority/37UD,Leisure,LEIS,Leisure Management,LMAN,Liberty Leisure Limited / Bramcote Leisure Centre,Electricity,1310,Utilities,Utility,13/08/2021,V006067,3815.83,Total Gas & Power Ltd,12918.19,BAC003959
Liberty Leisure Limited,http://statistics.data.gov.uk/id/local-authority/37UD,Leisure,LEIS,Leisure Management,LMAN,Liberty Leisure Limited / Bramcote Leisure Centre,Repairs & Maintenance,1000,Central Pot,Central,27/08/2021,V006088,320,Digitec Aerials,320,BAC003985
Liberty Leisure Limited,http://statistics.data.gov.uk/id/local-authority/37UD,Leisure,LEIS,Leisure Management,LMAN,Liberty Leisure Limited / Kimberley Leisure Centre,Repairs & Maintenance,1000,Central Pot,Central,27/08/2021,V006085,18.32,Duplex Cleaning Machines UK Ltd,291.98,BAC003976
Liberty Leisure Limited,http://statistics.data.gov.uk/id/local-authority/37UD,Leisure,LEIS,Leisure Management,LMAN,Liberty Leisure Limited / Kimberley Leisure Centre,Service Contracts,3056,Other Supplies & Services,OtherSS,27/08/2021,V006084,225,Duplex Cleaning Machines UK Ltd,291.98,BAC003976
Liberty Leisure Limited,http://statistics.data.gov.uk/id/local-authority/37UD,Culture and Heritage,CULT,Events,LEVE,Liberty Leisure Limited / DHL Museum,Promotion of The Arts,3066,Office Supplies,Offsup,27/08/2021,V006098,139,Filmbankmedia,1713.84,BAC003984
Liberty Leisure Limited,http://statistics.data.gov.uk/id/local-authority/37UD,Culture and Heritage,CULT,Events,LEVE,Liberty Leisure Limited / DHL Museum,Promotion of The Arts,3066,Office Supplies,Offsup,27/08/2021,V006099,139,Filmbankmedia,1713.84,BAC003984
Liberty Leisure Limited,http://statistics.data.gov.uk/id/local-authority/37UD,Culture and Heritage,CULT,Events,LEVE,Liberty Leisure Limited / DHL Museum,Promotion of The Arts,3066,Office Supplies,Offsup,27/08/2021,V006100,139,Filmbankmedia,1713.84,BAC003984
Liberty Leisure Limited,http://statistics.data.gov.uk/id/local-authority/37UD,Culture and Heritage,CULT,Events,LEVE,Liberty Leisure Limited / DHL Museum,Promotion of The Arts,3066,Office Supplies,Offsup,27/08/2021,V006101,139,Filmbankmedia,1713.84,BAC003984
Liberty Leisure Limited,http://statistics.data.gov.uk/id/local-authority/37UD,Culture and Heritage,CULT,Events,LEVE,Liberty Leisure Limited / DHL Museum,Promotion of The Arts,3066,Office Supplies,Offsup,27/08/2021,V006102,139,Filmbankmedia,1713.84,BAC003984
Liberty Leisure Limited,http://statistics.data.gov.uk/id/local-authority/37UD,Culture and Heritage,CULT,Events,LEVE,Liberty Leisure Limited / DHL Museum,Promotion of The Arts,3066,Office Supplies,Offsup,27/08/2021,V006103,139,Filmbankmedia,1713.84,BAC003984
Liberty Leisure Limited,http://statistics.data.gov.uk/id/local-authority/37UD,Culture and Heritage,CULT,Events,LEVE,Liberty Leisure Limited / DHL Museum,Promotion of The Arts,3066,Office Supplies,Offsup,27/08/2021,V006104,158.1,Filmbankmedia,1713.84,BAC003984
Liberty Leisure Limited,http://statistics.data.gov.uk/id/local-authority/37UD,Culture and Heritage,CULT,Events,LEVE,Liberty Leisure Limited / DHL Museum,Promotion of The Arts,3066,Office Supplies,Offsup,27/08/2021,V006105,139,Filmbankmedia,1713.84,BAC003984
Liberty Leisure Limited,http://statistics.data.gov.uk/id/local-authority/37UD,Culture and Heritage,CULT,Events,LEVE,Liberty Leisure Limited / DHL Museum,Promotion of The Arts,3066,Office Supplies,Offsup,27/08/2021,V006106,139,Filmbankmedia,1713.84,BAC003984
Liberty Leisure Limited,http://statistics.data.gov.uk/id/local-authority/37UD,Culture and Heritage,CULT,Events,LEVE,Liberty Leisure Limited / DHL Museum,Promotion of The Arts,3066,Office Supplies,Offsup,27/08/2021,V006107,158.1,Filmbankmedia,1713.84,BAC003984
Liberty Leisure Limited,http://statistics.data.gov.uk/id/local-authority/37UD,Leisure,LEIS,Leisure Management,LMAN,Liberty Leisure Limited / Bramcote Leisure Centre,Service Contracts,3056,Other Supplies & Services,OtherSS,27/08/2021,V006110,365,FitServe Ltd,438,BAC003980
Liberty Leisure Limited,http://statistics.data.gov.uk/id/local-authority/37UD,Leisure,LEIS,Leisure Management,LMAN,Liberty Leisure Limited / Kimberley Leisure Centre,Licences,3613,Other Supplies & Services,OtherSS,27/08/2021,V006079,150,Halo Leisure Enterprises Ltd,540,BAC003983
Liberty Leisure Limited,http://statistics.data.gov.uk/id/local-authority/37UD,Leisure,LEIS,Leisure Management,LMAN,Liberty Leisure Limited / Kimberley Leisure Centre,Licences,3613,Other Supplies & Services,OtherSS,27/08/2021,V006079,150,Halo Leisure Enterprises Ltd,540,BAC003983
Liberty Leisure Limited,http://statistics.data.gov.uk/id/local-authority/37UD,Leisure,LEIS,Leisure Management,LMAN,Liberty Leisure Limited / Kimberley Leisure Centre,Licences,3613,Other Supplies & Services,OtherSS,27/08/2021,V006079,150,Halo Leisure Enterprises Ltd,540,BAC003983
Liberty Leisure Limited,http://statistics.data.gov.uk/id/local-authority/37UD,Leisure,LEIS,Leisure Management,LMAN,Liberty Leisure Limited / Kimberley Leisure Centre,Repairs & Maintenance,1000,Central Pot,Central,27/08/2021,V006077,120,M A Technical Services Ltd,2754,BAC003974
Liberty Leisure Limited,http://statistics.data.gov.uk/id/local-authority/37UD,Leisure,LEIS,Leisure Management,LMAN,Liberty Leisure Limited / Kimberley Leisure Centre,Repairs & Maintenance,1000,Central Pot,Central,27/08/2021,V006082,650,M A Technical Services Ltd,2754,BAC003974
Liberty Leisure Limited,http://statistics.data.gov.uk/id/local-authority/37UD,Leisure,LEIS,Leisure Management,LMAN,Liberty Leisure Limited / Kimberley Leisure Centre,Repairs & Maintenance,1000,Central Pot,Central,27/08/2021,V006078,1000,M A Technical Services Ltd,2754,BAC003974
Liberty Leisure Limited,http://statistics.data.gov.uk/id/local-authority/37UD,Leisure,LEIS,Leisure Management,LMAN,Liberty Leisure Limited / Kimberley Leisure Centre,Legionella Testing,1042,Central Pot,Central,27/08/2021,V006076,525,M A Technical Services Ltd,2754,BAC003974
Liberty Leisure Limited,http://statistics.data.gov.uk/id/local-authority/37UD,Culture and Heritage,CULT,Events,LEVE,Liberty Leisure Limited / DHL Museum,Promotion of The Arts,3066,Office Supplies,Offsup,27/08/2021,V006108,1154.99,SA Atkin Services,1385.99,BAC003981
Liberty Leisure Limited,http://statistics.data.gov.uk/id/local-authority/37UD,Leisure,LEIS,Leisure Management,LMAN,Liberty Leisure Limited / Kimberley Leisure Centre,Repairs & Maintenance,1000,Central Pot,Central,27/08/2021,V006081,1130.32,Solutions For Leisure Ltd,1831.05,BAC003975
Liberty Leisure Limited,http://statistics.data.gov.uk/id/local-authority/37UD,Leisure,LEIS,Leisure Management,LMAN,Liberty Leisure Limited / Kimberley Leisure Centre,Repairs & Maintenance,1000,Central Pot,Central,27/08/2021,V006081,75,Solutions For Leisure Ltd,1831.05,BAC003975
Liberty Leisure Limited,http://statistics.data.gov.uk/id/local-authority/37UD,Leisure,LEIS,Leisure Management,LMAN,Liberty Leisure Limited / Kimberley Leisure Centre,Repairs & Maintenance,1000,Central Pot,Central,27/08/2021,V006081,320.56,Solutions For Leisure Ltd,1831.05,BAC003975
Liberty Leisure Limited,http://statistics.data.gov.uk/id/local-authority/37UD,Culture and Heritage,CULT,Heritage,LHER,Liberty Leisure Limited / DHL Museum,Electricity,1310,Utilities,Utility,27/08/2021,V006086,137.82,Total Gas & Power Ltd,4720.21,BAC003982
Liberty Leisure Limited,http://statistics.data.gov.uk/id/local-authority/37UD,Leisure,LEIS,Leisure Management,LMAN,Liberty Leisure Limited / Kimberley Leisure Centre,Electricity,1310,Utilities,Utility,27/08/2021,V006083,3812.92,Total Gas & Power Ltd,4720.21,BAC003982
Liberty Leisure Limited,http://statistics.data.gov.uk/id/local-authority/37UD,Leisure,LEIS,Leisure Management,LMAN,Liberty Leisure Limited / Bramcote Leisure Centre,Vending Provisions  - Purchase,3204,Catering,Cat,10/09/2021,V006140,119.9,Automatic Retailing northern Ltd,2959.76,BAC004009
Liberty Leisure Limited,http://statistics.data.gov.uk/id/local-authority/37UD,Leisure,LEIS,Leisure Management,LMAN,Liberty Leisure Limited / Bramcote Leisure Centre,Vending Provisions  - Purchase,3204,Catering,Cat,10/09/2021,V006140,1009.77,Automatic Retailing northern Ltd,2959.76,BAC004009
Liberty Leisure Limited,http://statistics.data.gov.uk/id/local-authority/37UD,Leisure,LEIS,Leisure Management,LMAN,Liberty Leisure Limited / Kimberley Leisure Centre,Vending Provisions  - Purchase,3204,Catering,Cat,10/09/2021,V006148,230.92,Automatic Retailing northern Ltd,2959.76,BAC004009
Liberty Leisure Limited,http://statistics.data.gov.uk/id/local-authority/37UD,Leisure,LEIS,Leisure Management,LMAN,Liberty Leisure Limited / Kimberley Leisure Centre,Vending Provisions  - Purchase,3204,Catering,Cat,10/09/2021,V006148,1164.35,Automatic Retailing northern Ltd,2959.76,BAC004009
Liberty Leisure Limited,http://statistics.data.gov.uk/id/local-authority/37UD,Leisure,LEIS,Leisure Management,LMAN,Liberty Leisure Limited / Kimberley Leisure Centre,Service Contracts,3056,Other Supplies & Services,OtherSS,10/09/2021,V006146,536.5,BG Energy Solutions,643.8,BAC004002
Liberty Leisure Limited,http://statistics.data.gov.uk/id/local-authority/37UD,Leisure,LEIS,Leisure Management,LMAN,Liberty Leisure Limited / Chilwell Olympia,Repairs & Maintenance,1000,Central Pot,Central,10/09/2021,V006125,595,Courtmasters,714,BAC004005
Liberty Leisure Limited,http://statistics.data.gov.uk/id/local-authority/37UD,Leisure,LEIS,Leisure Management,LMAN,Liberty Leisure Limited / Kimberley Leisure Centre,Chemicals,3152,Other Supplies & Services,OtherSS,10/09/2021,V006149,586.73,Cryoservice Limited,1111.93,BAC003989
Liberty Leisure Limited,http://statistics.data.gov.uk/id/local-authority/37UD,Leisure,LEIS,Leisure Management,LMAN,Liberty Leisure Limited / Kimberley Leisure Centre,Chemicals,3152,Other Supplies & Services,OtherSS,10/09/2021,V006150,339.88,Cryoservice Limited,1111.93,BAC003989
Liberty Leisure Limited,http://statistics.data.gov.uk/id/local-authority/37UD,Leisure,LEIS,Leisure Management,LMAN,Liberty Leisure Limited / Kimberley Leisure Centre,Repairs & Maintenance,1000,Central Pot,Central,10/09/2021,V006089,-18.32,Deltron Lifts Limited,1253.02,BAC003999
Liberty Leisure Limited,http://statistics.data.gov.uk/id/local-authority/37UD,Leisure,LEIS,Leisure Management,LMAN,Liberty Leisure Limited / Kimberley Leisure Centre,Repairs & Maintenance,1000,Central Pot,Central,10/09/2021,V006090,-225,Deltron Lifts Limited,1253.02,BAC003999
Liberty Leisure Limited,http://statistics.data.gov.uk/id/local-authority/37UD,Leisure,LEIS,Leisure Management,LMAN,Liberty Leisure Limited / Kimberley Leisure Centre,Repairs & Maintenance,1000,Central Pot,Central,10/09/2021,V006120,17.5,Deltron Lifts Limited,1253.02,BAC003999
Liberty Leisure Limited,http://statistics.data.gov.uk/id/local-authority/37UD,Leisure,LEIS,Leisure Management,LMAN,Liberty Leisure Limited / Kimberley Leisure Centre,Repairs & Maintenance,1000,Central Pot,Central,10/09/2021,V006124,350,Deltron Lifts Limited,1253.02,BAC003999
Liberty Leisure Limited,http://statistics.data.gov.uk/id/local-authority/37UD,Leisure,LEIS,Leisure Management,LMAN,Liberty Leisure Limited / Kimberley Leisure Centre,Service Contracts,3056,Other Supplies & Services,OtherSS,10/09/2021,V006153,920,Deltron Lifts Limited,1253.02,BAC003999
Liberty Leisure Limited,http://statistics.data.gov.uk/id/local-authority/37UD,Leisure,LEIS,Leisure Management,LMAN,Liberty Leisure Limited / Bramcote Leisure Centre,Service Contracts,3056,Other Supplies & Services,OtherSS,10/09/2021,V006133,748,Gaffey Technical Services,1795.2,BAC003990
Liberty Leisure Limited,http://statistics.data.gov.uk/id/local-authority/37UD,Leisure,LEIS,Leisure Management,LMAN,Liberty Leisure Limited / Bramcote Leisure Centre,Service Contracts,3056,Other Supplies & Services,OtherSS,10/09/2021,V006139,748,Gaffey Technical Services,1795.2,BAC003990
Liberty Leisure Limited,http://statistics.data.gov.uk/id/local-authority/37UD,Leisure,LEIS,Leisure Management,LMAN,Liberty Leisure Limited / Bramcote Leisure Centre,Repairs & Maintenance,1000,Central Pot,Central,10/09/2021,V006126,455,Gedling Welding Services Ltd,546,BAC004012
Liberty Leisure Limited,http://statistics.data.gov.uk/id/local-authority/37UD,Leisure,LEIS,Leisure Management,LMAN,Liberty Leisure Limited / Liberty Leisure Development,Professional Fees,730,Indirect Employee Exp Oncosts,Oncosts,10/09/2021,V006010,6000,Haines Watts Nottingham Ltd,6960,BAC004010
Liberty Leisure Limited,http://statistics.data.gov.uk/id/local-authority/37UD,Leisure,LEIS,Leisure Management,LMAN,Liberty Leisure Limited / Liberty Leisure Development,Professional Fees,730,Indirect Employee Exp Oncosts,Oncosts,10/09/2021,V006010,960,Haines Watts Nottingham Ltd,6960,BAC004010
Liberty Leisure Limited,http://statistics.data.gov.uk/id/local-authority/37UD,Leisure,LEIS,Leisure Management,LMAN,Liberty Leisure Limited / Bramcote Leisure Centre,Repairs & Maintenance,1000,Central Pot,Central,10/09/2021,V006117,120,Lee Jackson Air Conditioning Ltd,480,BAC004004
Liberty Leisure Limited,http://statistics.data.gov.uk/id/local-authority/37UD,Leisure,LEIS,Leisure Management,LMAN,Liberty Leisure Limited / Chilwell Olympia,Repairs & Maintenance,1000,Central Pot,Central,10/09/2021,V006128,280,Lee Jackson Air Conditioning Ltd,480,BAC004004
Liberty Leisure Limited,http://statistics.data.gov.uk/id/local-authority/37UD,Leisure,LEIS,Leisure Management,LMAN,Liberty Leisure Limited / Chilwell Olympia,Cleaning Materials,1510,Other Prem,OthPrem,10/09/2021,V006121,12.75,Mark-Douglas Industrial Supplies Limited,654.79,BAC003998
Liberty Leisure Limited,http://statistics.data.gov.uk/id/local-authority/37UD,Leisure,LEIS,Leisure Management,LMAN,Liberty Leisure Limited / Chilwell Olympia,Cleaning Materials,1510,Other Prem,OthPrem,10/09/2021,V006121,65,Mark-Douglas Industrial Supplies Limited,654.79,BAC003998
Liberty Leisure Limited,http://statistics.data.gov.uk/id/local-authority/37UD,Leisure,LEIS,Leisure Management,LMAN,Liberty Leisure Limited / Chilwell Olympia,Cleaning Materials,1510,Other Prem,OthPrem,10/09/2021,V006121,12.25,Mark-Douglas Industrial Supplies Limited,654.79,BAC003998
Liberty Leisure Limited,http://statistics.data.gov.uk/id/local-authority/37UD,Leisure,LEIS,Leisure Management,LMAN,Liberty Leisure Limited / Chilwell Olympia,Cleaning Materials,1510,Other Prem,OthPrem,10/09/2021,V006121,10.5,Mark-Douglas Industrial Supplies Limited,654.79,BAC003998
Liberty Leisure Limited,http://statistics.data.gov.uk/id/local-authority/37UD,Leisure,LEIS,Leisure Management,LMAN,Liberty Leisure Limited / Chilwell Olympia,Cleaning Materials,1510,Other Prem,OthPrem,10/09/2021,V006121,24.56,Mark-Douglas Industrial Supplies Limited,654.79,BAC003998
Liberty Leisure Limited,http://statistics.data.gov.uk/id/local-authority/37UD,Leisure,LEIS,Leisure Management,LMAN,Liberty Leisure Limited / Chilwell Olympia,Cleaning Materials,1510,Other Prem,OthPrem,10/09/2021,V006121,23.64,Mark-Douglas Industrial Supplies Limited,654.79,BAC003998
Liberty Leisure Limited,http://statistics.data.gov.uk/id/local-authority/37UD,Leisure,LEIS,Leisure Management,LMAN,Liberty Leisure Limited / Kimberley Leisure Centre,Cleaning Materials,1510,Other Prem,OthPrem,10/09/2021,V006123,167.5,Mark-Douglas Industrial Supplies Limited,654.79,BAC003998
Liberty Leisure Limited,http://statistics.data.gov.uk/id/local-authority/37UD,Leisure,LEIS,Leisure Management,LMAN,Liberty Leisure Limited / Kimberley Leisure Centre,Cleaning Materials,1510,Other Prem,OthPrem,10/09/2021,V006152,229.46,Mark-Douglas Industrial Supplies Limited,654.79,BAC003998
Liberty Leisure Limited,http://statistics.data.gov.uk/id/local-authority/37UD,Leisure,LEIS,Leisure Management,LMAN,Liberty Leisure Limited / Bramcote Leisure Centre,Repairs & Maintenance,1000,Central Pot,Central,10/09/2021,V006130,112.5,Nationwide Alarmcall Ltd,849,BAC003996
Liberty Leisure Limited,http://statistics.data.gov.uk/id/local-authority/37UD,Leisure,LEIS,Leisure Management,LMAN,Liberty Leisure Limited / Chilwell Olympia,Service Contracts,3056,Other Supplies & Services,OtherSS,10/09/2021,V006132,595,Nationwide Alarmcall Ltd,849,BAC003996
Liberty Leisure Limited,http://statistics.data.gov.uk/id/local-authority/37UD,Culture and Heritage,CULT,Events,LEVE,Liberty Leisure Limited / DHL Museum,Promotion of The Arts,3066,Office Supplies,Offsup,10/09/2021,V006109,600,SA Atkin Services,4159.32,BAC004001
Liberty Leisure Limited,http://statistics.data.gov.uk/id/local-authority/37UD,Culture and Heritage,CULT,Events,LEVE,Liberty Leisure Limited / DHL Museum,Promotion of The Arts,3066,Office Supplies,Offsup,10/09/2021,V006109,156,SA Atkin Services,4159.32,BAC004001
Liberty Leisure Limited,http://statistics.data.gov.uk/id/local-authority/37UD,Culture and Heritage,CULT,Events,LEVE,Liberty Leisure Limited / DHL Museum,Promotion of The Arts,3066,Office Supplies,Offsup,10/09/2021,V006109,156,SA Atkin Services,4159.32,BAC004001
Liberty Leisure Limited,http://statistics.data.gov.uk/id/local-authority/37UD,Culture and Heritage,CULT,Events,LEVE,Liberty Leisure Limited / DHL Museum,Promotion of The Arts,3066,Office Supplies,Offsup,10/09/2021,V006109,156,SA Atkin Services,4159.32,BAC004001
Liberty Leisure Limited,http://statistics.data.gov.uk/id/local-authority/37UD,Culture and Heritage,CULT,Events,LEVE,Liberty Leisure Limited / DHL Museum,Promotion of The Arts,3066,Office Supplies,Offsup,10/09/2021,V006109,156,SA Atkin Services,4159.32,BAC004001
Liberty Leisure Limited,http://statistics.data.gov.uk/id/local-authority/37UD,Culture and Heritage,CULT,Events,LEVE,Liberty Leisure Limited / DHL Museum,Promotion of The Arts,3066,Office Supplies,Offsup,10/09/2021,V006109,156,SA Atkin Services,4159.32,BAC004001
Liberty Leisure Limited,http://statistics.data.gov.uk/id/local-authority/37UD,Culture and Heritage,CULT,Events,LEVE,Liberty Leisure Limited / DHL Museum,Promotion of The Arts,3066,Office Supplies,Offsup,10/09/2021,V006109,156,SA Atkin Services,4159.32,BAC004001
Liberty Leisure Limited,http://statistics.data.gov.uk/id/local-authority/37UD,Culture and Heritage,CULT,Events,LEVE,Liberty Leisure Limited / DHL Museum,Promotion of The Arts,3066,Office Supplies,Offsup,10/09/2021,V006109,156,SA Atkin Services,4159.32,BAC004001
Liberty Leisure Limited,http://statistics.data.gov.uk/id/local-authority/37UD,Culture and Heritage,CULT,Events,LEVE,Liberty Leisure Limited / DHL Museum,Promotion of The Arts,3066,Office Supplies,Offsup,10/09/2021,V006109,37,SA Atkin Services,4159.32,BAC004001
Liberty Leisure Limited,http://statistics.data.gov.uk/id/local-authority/37UD,Culture and Heritage,CULT,Events,LEVE,Liberty Leisure Limited / DHL Museum,Promotion of The Arts,3066,Office Supplies,Offsup,10/09/2021,V006109,0,SA Atkin Services,4159.32,BAC004001
Liberty Leisure Limited,http://statistics.data.gov.uk/id/local-authority/37UD,Culture and Heritage,CULT,Events,LEVE,Liberty Leisure Limited / DHL Museum,Promotion of The Arts,3066,Office Supplies,Offsup,10/09/2021,V006109,140.6,SA Atkin Services,4159.32,BAC004001
Liberty Leisure Limited,http://statistics.data.gov.uk/id/local-authority/37UD,Culture and Heritage,CULT,Events,LEVE,Liberty Leisure Limited / DHL Museum,Promotion of The Arts,3066,Office Supplies,Offsup,10/09/2021,V006109,380,SA Atkin Services,4159.32,BAC004001
Liberty Leisure Limited,http://statistics.data.gov.uk/id/local-authority/37UD,Culture and Heritage,CULT,Events,LEVE,Liberty Leisure Limited / DHL Museum,Promotion of The Arts,3066,Office Supplies,Offsup,10/09/2021,V006109,38,SA Atkin Services,4159.32,BAC004001
Liberty Leisure Limited,http://statistics.data.gov.uk/id/local-authority/37UD,Culture and Heritage,CULT,Events,LEVE,Liberty Leisure Limited / DHL Museum,Promotion of The Arts,3066,Office Supplies,Offsup,10/09/2021,V006109,0,SA Atkin Services,4159.32,BAC004001
Liberty Leisure Limited,http://statistics.data.gov.uk/id/local-authority/37UD,Culture and Heritage,CULT,Events,LEVE,Liberty Leisure Limited / DHL Museum,Promotion of The Arts,3066,Office Supplies,Offsup,10/09/2021,V006109,175.5,SA Atkin Services,4159.32,BAC004001
Liberty Leisure Limited,http://statistics.data.gov.uk/id/local-authority/37UD,Culture and Heritage,CULT,Events,LEVE,Liberty Leisure Limited / DHL Museum,Promotion of The Arts,3066,Office Supplies,Offsup,10/09/2021,V006109,175.5,SA Atkin Services,4159.32,BAC004001
Liberty Leisure Limited,http://statistics.data.gov.uk/id/local-authority/37UD,Culture and Heritage,CULT,Events,LEVE,Liberty Leisure Limited / DHL Museum,Promotion of The Arts,3066,Office Supplies,Offsup,10/09/2021,V006109,175.5,SA Atkin Services,4159.32,BAC004001
Liberty Leisure Limited,http://statistics.data.gov.uk/id/local-authority/37UD,Culture and Heritage,CULT,Events,LEVE,Liberty Leisure Limited / DHL Museum,Promotion of The Arts,3066,Office Supplies,Offsup,10/09/2021,V006109,175.5,SA Atkin Services,4159.32,BAC004001
Liberty Leisure Limited,http://statistics.data.gov.uk/id/local-authority/37UD,Culture and Heritage,CULT,Events,LEVE,Liberty Leisure Limited / DHL Museum,Promotion of The Arts,3066,Office Supplies,Offsup,10/09/2021,V006109,175.5,SA Atkin Services,4159.32,BAC004001
Liberty Leisure Limited,http://statistics.data.gov.uk/id/local-authority/37UD,Culture and Heritage,CULT,Events,LEVE,Liberty Leisure Limited / DHL Museum,Promotion of The Arts,3066,Office Supplies,Offsup,10/09/2021,V006109,145,SA Atkin Services,4159.32,BAC004001
Liberty Leisure Limited,http://statistics.data.gov.uk/id/local-authority/37UD,Culture and Heritage,CULT,Events,LEVE,Liberty Leisure Limited / DHL Museum,Promotion of The Arts,3066,Office Supplies,Offsup,10/09/2021,V006109,156,SA Atkin Services,4159.32,BAC004001
Liberty Leisure Limited,http://statistics.data.gov.uk/id/local-authority/37UD,Leisure,LEIS,Leisure Management,LMAN,Liberty Leisure Limited / Bramcote Leisure Centre,Repairs & Maintenance,1000,Central Pot,Central,10/09/2021,V006137,325,Sterling Hydrotech Limited,390,BAC003994
Liberty Leisure Limited,http://statistics.data.gov.uk/id/local-authority/37UD,Leisure,LEIS,Leisure Management,LMAN,Liberty Leisure Limited / Bramcote Leisure Centre,Purchase of Miscellaneous Items for Sale,3160,Other Supplies & Services,OtherSS,10/09/2021,V006134,13.5,Swim England Trading Ltd,1678.8,BAC003988
Liberty Leisure Limited,http://statistics.data.gov.uk/id/local-authority/37UD,Leisure,LEIS,Leisure Management,LMAN,Liberty Leisure Limited / Bramcote Leisure Centre,Purchase of Miscellaneous Items for Sale,3160,Other Supplies & Services,OtherSS,10/09/2021,V006138,13.5,Swim England Trading Ltd,1678.8,BAC003988
Liberty Leisure Limited,http://statistics.data.gov.uk/id/local-authority/37UD,Leisure,LEIS,Leisure Management,LMAN,Liberty Leisure Limited / Bramcote Leisure Centre,Purchase of Miscellaneous Items for Sale,3160,Other Supplies & Services,OtherSS,10/09/2021,V006134,98,Swim England Trading Ltd,1678.8,BAC003988
Liberty Leisure Limited,http://statistics.data.gov.uk/id/local-authority/37UD,Leisure,LEIS,Leisure Management,LMAN,Liberty Leisure Limited / Bramcote Leisure Centre,Purchase of Miscellaneous Items for Sale,3160,Other Supplies & Services,OtherSS,10/09/2021,V006134,98,Swim England Trading Ltd,1678.8,BAC003988
Liberty Leisure Limited,http://statistics.data.gov.uk/id/local-authority/37UD,Leisure,LEIS,Leisure Management,LMAN,Liberty Leisure Limited / Bramcote Leisure Centre,Purchase of Miscellaneous Items for Sale,3160,Other Supplies & Services,OtherSS,10/09/2021,V006138,98,Swim England Trading Ltd,1678.8,BAC003988
Liberty Leisure Limited,http://statistics.data.gov.uk/id/local-authority/37UD,Leisure,LEIS,Leisure Management,LMAN,Liberty Leisure Limited / Bramcote Leisure Centre,Purchase of Miscellaneous Items for Sale,3160,Other Supplies & Services,OtherSS,10/09/2021,V006138,98,Swim England Trading Ltd,1678.8,BAC003988
Liberty Leisure Limited,http://statistics.data.gov.uk/id/local-authority/37UD,Leisure,LEIS,Leisure Management,LMAN,Liberty Leisure Limited / Bramcote Leisure Centre,Purchase of Miscellaneous Items for Sale,3160,Other Supplies & Services,OtherSS,10/09/2021,V006134,98,Swim England Trading Ltd,1678.8,BAC003988
Liberty Leisure Limited,http://statistics.data.gov.uk/id/local-authority/37UD,Leisure,LEIS,Leisure Management,LMAN,Liberty Leisure Limited / Bramcote Leisure Centre,Purchase of Miscellaneous Items for Sale,3160,Other Supplies & Services,OtherSS,10/09/2021,V006138,98,Swim England Trading Ltd,1678.8,BAC003988
Liberty Leisure Limited,http://statistics.data.gov.uk/id/local-authority/37UD,Leisure,LEIS,Leisure Management,LMAN,Liberty Leisure Limited / Bramcote Leisure Centre,Purchase of Miscellaneous Items for Sale,3160,Other Supplies & Services,OtherSS,10/09/2021,V006134,98,Swim England Trading Ltd,1678.8,BAC003988
Liberty Leisure Limited,http://statistics.data.gov.uk/id/local-authority/37UD,Leisure,LEIS,Leisure Management,LMAN,Liberty Leisure Limited / Bramcote Leisure Centre,Purchase of Miscellaneous Items for Sale,3160,Other Supplies & Services,OtherSS,10/09/2021,V006138,98,Swim England Trading Ltd,1678.8,BAC003988
Liberty Leisure Limited,http://statistics.data.gov.uk/id/local-authority/37UD,Leisure,LEIS,Leisure Management,LMAN,Liberty Leisure Limited / Bramcote Leisure Centre,Purchase of Miscellaneous Items for Sale,3160,Other Supplies & Services,OtherSS,10/09/2021,V006138,98,Swim England Trading Ltd,1678.8,BAC003988
Liberty Leisure Limited,http://statistics.data.gov.uk/id/local-authority/37UD,Leisure,LEIS,Leisure Management,LMAN,Liberty Leisure Limited / Bramcote Leisure Centre,Purchase of Miscellaneous Items for Sale,3160,Other Supplies & Services,OtherSS,10/09/2021,V006138,98,Swim England Trading Ltd,1678.8,BAC003988
Liberty Leisure Limited,http://statistics.data.gov.uk/id/local-authority/37UD,Leisure,LEIS,Leisure Management,LMAN,Liberty Leisure Limited / Bramcote Leisure Centre,Purchase of Miscellaneous Items for Sale,3160,Other Supplies & Services,OtherSS,10/09/2021,V006138,98,Swim England Trading Ltd,1678.8,BAC003988
Liberty Leisure Limited,http://statistics.data.gov.uk/id/local-authority/37UD,Leisure,LEIS,Leisure Management,LMAN,Liberty Leisure Limited / Bramcote Leisure Centre,Purchase of Miscellaneous Items for Sale,3160,Other Supplies & Services,OtherSS,10/09/2021,V006134,98,Swim England Trading Ltd,1678.8,BAC003988
Liberty Leisure Limited,http://statistics.data.gov.uk/id/local-authority/37UD,Leisure,LEIS,Leisure Management,LMAN,Liberty Leisure Limited / Bramcote Leisure Centre,Purchase of Miscellaneous Items for Sale,3160,Other Supplies & Services,OtherSS,10/09/2021,V006138,98,Swim England Trading Ltd,1678.8,BAC003988
Liberty Leisure Limited,http://statistics.data.gov.uk/id/local-authority/37UD,Leisure,LEIS,Leisure Management,LMAN,Liberty Leisure Limited / Bramcote Leisure Centre,Purchase of Miscellaneous Items for Sale,3160,Other Supplies & Services,OtherSS,10/09/2021,V006134,98,Swim England Trading Ltd,1678.8,BAC003988
Liberty Leisure Limited,http://statistics.data.gov.uk/id/local-authority/37UD,Leisure,LEIS,Leisure Management,LMAN,Liberty Leisure Limited / Bramcote Leisure Centre,Electricity,1310,Utilities,Utility,10/09/2021,V006118,4448.27,TotalEnergies Gas & Power Ltd,4448.27,BAC004003
Liberty Leisure Limited,http://statistics.data.gov.uk/id/local-authority/37UD,Leisure,LEIS,Leisure Management,LMAN,Liberty Leisure Limited / Bramcote Leisure Centre,Chemicals,3152,Other Supplies & Services,OtherSS,10/09/2021,V006119,39.5,Univar Solutions BV,521.33,BAC003995
Liberty Leisure Limited,http://statistics.data.gov.uk/id/local-authority/37UD,Leisure,LEIS,Leisure Management,LMAN,Liberty Leisure Limited / Bramcote Leisure Centre,Chemicals,3152,Other Supplies & Services,OtherSS,10/09/2021,V006113,14.5,Univar Solutions BV,521.33,BAC003995
Liberty Leisure Limited,http://statistics.data.gov.uk/id/local-authority/37UD,Leisure,LEIS,Leisure Management,LMAN,Liberty Leisure Limited / Bramcote Leisure Centre,Chemicals,3152,Other Supplies & Services,OtherSS,10/09/2021,V006114,29,Univar Solutions BV,521.33,BAC003995
Liberty Leisure Limited,http://statistics.data.gov.uk/id/local-authority/37UD,Leisure,LEIS,Leisure Management,LMAN,Liberty Leisure Limited / Bramcote Leisure Centre,Chemicals,3152,Other Supplies & Services,OtherSS,10/09/2021,V006113,17.77,Univar Solutions BV,521.33,BAC003995
Liberty Leisure Limited,http://statistics.data.gov.uk/id/local-authority/37UD,Leisure,LEIS,Leisure Management,LMAN,Liberty Leisure Limited / Bramcote Leisure Centre,Chemicals,3152,Other Supplies & Services,OtherSS,10/09/2021,V006119,23.78,Univar Solutions BV,521.33,BAC003995
Liberty Leisure Limited,http://statistics.data.gov.uk/id/local-authority/37UD,Leisure,LEIS,Leisure Management,LMAN,Liberty Leisure Limited / Bramcote Leisure Centre,Chemicals,3152,Other Supplies & Services,OtherSS,10/09/2021,V006119,24.02,Univar Solutions BV,521.33,BAC003995
Liberty Leisure Limited,http://statistics.data.gov.uk/id/local-authority/37UD,Leisure,LEIS,Leisure Management,LMAN,Liberty Leisure Limited / Bramcote Leisure Centre,Chemicals,3152,Other Supplies & Services,OtherSS,10/09/2021,V006119,26.86,Univar Solutions BV,521.33,BAC003995
Liberty Leisure Limited,http://statistics.data.gov.uk/id/local-authority/37UD,Leisure,LEIS,Leisure Management,LMAN,Liberty Leisure Limited / Bramcote Leisure Centre,Chemicals,3152,Other Supplies & Services,OtherSS,10/09/2021,V006114,259.02,Univar Solutions BV,521.33,BAC003995
Liberty Leisure Limited,http://statistics.data.gov.uk/id/local-authority/37UD,Leisure,LEIS,Leisure Management,LMAN,Liberty Leisure Limited / Bramcote Leisure Centre,Water Charges,1410,Utilities,Utility,10/09/2021,V006115,1059.34,Waterplus,3807.2,BAC004011
Liberty Leisure Limited,http://statistics.data.gov.uk/id/local-authority/37UD,Leisure,LEIS,Leisure Management,LMAN,Liberty Leisure Limited / Bramcote Leisure Centre,Water Charges,1410,Utilities,Utility,10/09/2021,V006122,1401.02,Waterplus,3807.2,BAC004011
Liberty Leisure Limited,http://statistics.data.gov.uk/id/local-authority/37UD,Leisure,LEIS,Leisure Management,LMAN,Liberty Leisure Limited / Bramcote Leisure Centre,Water Charges,1410,Utilities,Utility,10/09/2021,V006116,1346.84,Waterplus,3807.2,BAC004011
Liberty Leisure Limited,http://statistics.data.gov.uk/id/local-authority/37UD,Culture and Heritage,CULT,Heritage,LHER,Liberty Leisure Limited / DHL Museum,Purchase of Miscellaneous Items for Sale,3160,Other Supplies & Services,OtherSS,24/09/2021,V006173,250,Artemis & Bear Ltd,250,BAC004040
Liberty Leisure Limited,http://statistics.data.gov.uk/id/local-authority/37UD,Culture and Heritage,CULT,Events,LEVE,Liberty Leisure Limited / DHL Museum,Promotion of The Arts,3066,Office Supplies,Offsup,24/09/2021,V006174,5336,Big TV (UK) Ltd,7959,BAC004033
Liberty Leisure Limited,http://statistics.data.gov.uk/id/local-authority/37UD,Culture and Heritage,CULT,Events,LEVE,Liberty Leisure Limited / DHL Museum,Promotion of The Arts,3066,Office Supplies,Offsup,24/09/2021,V006175,1296.5,Big TV (UK) Ltd,7959,BAC004033
Liberty Leisure Limited,http://statistics.data.gov.uk/id/local-authority/37UD,Culture and Heritage,CULT,Events,LEVE,Liberty Leisure Limited / DHL Museum,Promotion of The Arts,3066,Office Supplies,Offsup,24/09/2021,V006176,1544,Central Medical Services,1852.8,BAC004036
Liberty Leisure Limited,http://statistics.data.gov.uk/id/local-authority/37UD,Leisure,LEIS,Leisure Management,LMAN,Liberty Leisure Limited / Bramcote Leisure Centre,Repairs & Maintenance,1000,Central Pot,Central,24/09/2021,V006145,325,Gedling Welding Services Ltd,390,BAC004038
Liberty Leisure Limited,http://statistics.data.gov.uk/id/local-authority/37UD,Culture and Heritage,CULT,Events,LEVE,Liberty Leisure Limited / DHL Museum,Promotion of The Arts,3066,Office Supplies,Offsup,24/09/2021,V006178,550,Kniftons Mobile Toilets,2400,BAC004024
Liberty Leisure Limited,http://statistics.data.gov.uk/id/local-authority/37UD,Culture and Heritage,CULT,Events,LEVE,Liberty Leisure Limited / DHL Museum,Promotion of The Arts,3066,Office Supplies,Offsup,24/09/2021,V006178,-240,Kniftons Mobile Toilets,2400,BAC004024
Liberty Leisure Limited,http://statistics.data.gov.uk/id/local-authority/37UD,Culture and Heritage,CULT,Events,LEVE,Liberty Leisure Limited / DHL Museum,Promotion of The Arts,3066,Office Supplies,Offsup,24/09/2021,V006178,550,Kniftons Mobile Toilets,2400,BAC004024
Liberty Leisure Limited,http://statistics.data.gov.uk/id/local-authority/37UD,Culture and Heritage,CULT,Events,LEVE,Liberty Leisure Limited / DHL Museum,Promotion of The Arts,3066,Office Supplies,Offsup,24/09/2021,V006178,550,Kniftons Mobile Toilets,2400,BAC004024
Liberty Leisure Limited,http://statistics.data.gov.uk/id/local-authority/37UD,Culture and Heritage,CULT,Events,LEVE,Liberty Leisure Limited / DHL Museum,Promotion of The Arts,3066,Office Supplies,Offsup,24/09/2021,V006178,550,Kniftons Mobile Toilets,2400,BAC004024
Liberty Leisure Limited,http://statistics.data.gov.uk/id/local-authority/37UD,Leisure,LEIS,Leisure Management,LMAN,Liberty Leisure Limited / Bramcote Leisure Centre,Cleaning Materials,1510,Other Prem,OthPrem,24/09/2021,V006168,10.2,Mark-Douglas Industrial Supplies Limited,506.38,BAC004025
Liberty Leisure Limited,http://statistics.data.gov.uk/id/local-authority/37UD,Leisure,LEIS,Leisure Management,LMAN,Liberty Leisure Limited / Bramcote Leisure Centre,Cleaning Materials,1510,Other Prem,OthPrem,24/09/2021,V006168,12.48,Mark-Douglas Industrial Supplies Limited,506.38,BAC004025
Liberty Leisure Limited,http://statistics.data.gov.uk/id/local-authority/37UD,Leisure,LEIS,Leisure Management,LMAN,Liberty Leisure Limited / Bramcote Leisure Centre,Cleaning Materials,1510,Other Prem,OthPrem,24/09/2021,V006168,8.5,Mark-Douglas Industrial Supplies Limited,506.38,BAC004025
Liberty Leisure Limited,http://statistics.data.gov.uk/id/local-authority/37UD,Leisure,LEIS,Leisure Management,LMAN,Liberty Leisure Limited / Bramcote Leisure Centre,Cleaning Materials,1510,Other Prem,OthPrem,24/09/2021,V006168,65,Mark-Douglas Industrial Supplies Limited,506.38,BAC004025
Liberty Leisure Limited,http://statistics.data.gov.uk/id/local-authority/37UD,Leisure,LEIS,Leisure Management,LMAN,Liberty Leisure Limited / Bramcote Leisure Centre,Cleaning Materials,1510,Other Prem,OthPrem,24/09/2021,V006168,24,Mark-Douglas Industrial Supplies Limited,506.38,BAC004025
Liberty Leisure Limited,http://statistics.data.gov.uk/id/local-authority/37UD,Leisure,LEIS,Leisure Management,LMAN,Liberty Leisure Limited / Bramcote Leisure Centre,Cleaning Materials,1510,Other Prem,OthPrem,24/09/2021,V006168,25,Mark-Douglas Industrial Supplies Limited,506.38,BAC004025
Liberty Leisure Limited,http://statistics.data.gov.uk/id/local-authority/37UD,Leisure,LEIS,Leisure Management,LMAN,Liberty Leisure Limited / Bramcote Leisure Centre,Cleaning Materials,1510,Other Prem,OthPrem,24/09/2021,V006168,18,Mark-Douglas Industrial Supplies Limited,506.38,BAC004025
Liberty Leisure Limited,http://statistics.data.gov.uk/id/local-authority/37UD,Leisure,LEIS,Leisure Management,LMAN,Liberty Leisure Limited / Bramcote Leisure Centre,Cleaning Materials,1510,Other Prem,OthPrem,24/09/2021,V006168,60.88,Mark-Douglas Industrial Supplies Limited,506.38,BAC004025
Liberty Leisure Limited,http://statistics.data.gov.uk/id/local-authority/37UD,Leisure,LEIS,Leisure Management,LMAN,Liberty Leisure Limited / Bramcote Leisure Centre,Cleaning Materials,1510,Other Prem,OthPrem,24/09/2021,V006168,68.8,Mark-Douglas Industrial Supplies Limited,506.38,BAC004025
Liberty Leisure Limited,http://statistics.data.gov.uk/id/local-authority/37UD,Leisure,LEIS,Leisure Management,LMAN,Liberty Leisure Limited / Bramcote Leisure Centre,Cleaning Materials,1510,Other Prem,OthPrem,24/09/2021,V006158,41.64,Mark-Douglas Industrial Supplies Limited,506.38,BAC004025
Liberty Leisure Limited,http://statistics.data.gov.uk/id/local-authority/37UD,Leisure,LEIS,Leisure Management,LMAN,Liberty Leisure Limited / Kimberley Leisure Centre,Cleaning Materials,1510,Other Prem,OthPrem,24/09/2021,V006182,94.42,Mark-Douglas Industrial Supplies Limited,506.38,BAC004025
Liberty Leisure Limited,http://statistics.data.gov.uk/id/local-authority/37UD,Leisure,LEIS,Leisure Management,LMAN,Liberty Leisure Limited / Kimberley Leisure Centre,Service Contracts,3056,Other Supplies & Services,OtherSS,24/09/2021,V006156,451,Neuro Systems Ltd,973.2,BAC004027
Liberty Leisure Limited,http://statistics.data.gov.uk/id/local-authority/37UD,Leisure,LEIS,Leisure Management,LMAN,Liberty Leisure Limited / Kimberley Leisure Centre,Service Contracts,3056,Other Supplies & Services,OtherSS,24/09/2021,V006156,360,Neuro Systems Ltd,973.2,BAC004027
Liberty Leisure Limited,http://statistics.data.gov.uk/id/local-authority/37UD,Leisure,LEIS,Leisure Management,LMAN,Liberty Leisure Limited / Kimberley Leisure Centre,Repairs & Maintenance,1000,Central Pot,Central,24/09/2021,V006155,25,Nottingham Audio Visual Service Limited,590.99,BAC004018
Liberty Leisure Limited,http://statistics.data.gov.uk/id/local-authority/37UD,Leisure,LEIS,Leisure Management,LMAN,Liberty Leisure Limited / Kimberley Leisure Centre,Repairs & Maintenance,1000,Central Pot,Central,24/09/2021,V006155,467.49,Nottingham Audio Visual Service Limited,590.99,BAC004018
Liberty Leisure Limited,http://statistics.data.gov.uk/id/local-authority/37UD,Leisure,LEIS,Leisure Management,LMAN,Liberty Leisure Limited / Chilwell Olympia,Repairs & Maintenance,1000,Central Pot,Central,24/09/2021,V006181,4799.57,Nottinghamshire County Council,5759.48,BAC004019
Liberty Leisure Limited,http://statistics.data.gov.uk/id/local-authority/37UD,Leisure,LEIS,Leisure Management,LMAN,Liberty Leisure Limited / Liberty Leisure Development,Professional Fees,730,Indirect Employee Exp Oncosts,Oncosts,24/09/2021,V006165,475,The Copyright Licensing Agency,570,BAC004032
Liberty Leisure Limited,http://statistics.data.gov.uk/id/local-authority/37UD,Leisure,LEIS,Leisure Management,LMAN,Liberty Leisure Limited / Kimberley Leisure Centre,Gas,1320,Utilities,Utility,24/09/2021,V006163,2481.57,The Kimberley School (EMET),19150.64,BAC004023
Liberty Leisure Limited,http://statistics.data.gov.uk/id/local-authority/37UD,Leisure,LEIS,Leisure Management,LMAN,Liberty Leisure Limited / Kimberley Leisure Centre,Gas,1320,Utilities,Utility,24/09/2021,V006163,2389.91,The Kimberley School (EMET),19150.64,BAC004023
Liberty Leisure Limited,http://statistics.data.gov.uk/id/local-authority/37UD,Leisure,LEIS,Leisure Management,LMAN,Liberty Leisure Limited / Kimberley Leisure Centre,Gas,1320,Utilities,Utility,24/09/2021,V006163,3544.06,The Kimberley School (EMET),19150.64,BAC004023
Liberty Leisure Limited,http://statistics.data.gov.uk/id/local-authority/37UD,Leisure,LEIS,Leisure Management,LMAN,Liberty Leisure Limited / Kimberley Leisure Centre,Water Charges,1410,Utilities,Utility,24/09/2021,V006185,4714.46,The Kimberley School (EMET),19150.64,BAC004023
Liberty Leisure Limited,http://statistics.data.gov.uk/id/local-authority/37UD,Leisure,LEIS,Leisure Management,LMAN,Liberty Leisure Limited / Kimberley Leisure Centre,Water Charges,1410,Utilities,Utility,24/09/2021,V006186,2828.87,The Kimberley School (EMET),19150.64,BAC004023
Liberty Leisure Limited,http://statistics.data.gov.uk/id/local-authority/37UD,Culture and Heritage,CULT,Heritage,LHER,Liberty Leisure Limited / DHL Museum,Gas,1320,Utilities,Utility,24/09/2021,V006143,23.12,TotalEnergies Gas & Power Ltd,15540.84,BAC004029
Liberty Leisure Limited,http://statistics.data.gov.uk/id/local-authority/37UD,Culture and Heritage,CULT,Heritage,LHER,Liberty Leisure Limited / DHL Museum,Gas,1320,Utilities,Utility,24/09/2021,V006177,42.65,TotalEnergies Gas & Power Ltd,15540.84,BAC004029
Liberty Leisure Limited,http://statistics.data.gov.uk/id/local-authority/37UD,Leisure,LEIS,Leisure Management,LMAN,Liberty Leisure Limited / Bramcote Leisure Centre,Electricity,1310,Utilities,Utility,24/09/2021,V006172,1867.66,TotalEnergies Gas & Power Ltd,15540.84,BAC004029
Liberty Leisure Limited,http://statistics.data.gov.uk/id/local-authority/37UD,Leisure,LEIS,Leisure Management,LMAN,Liberty Leisure Limited / Bramcote Leisure Centre,Gas,1320,Utilities,Utility,24/09/2021,V006166,7338.02,TotalEnergies Gas & Power Ltd,15540.84,BAC004029
Liberty Leisure Limited,http://statistics.data.gov.uk/id/local-authority/37UD,Leisure,LEIS,Leisure Management,LMAN,Liberty Leisure Limited / Kimberley Leisure Centre,Electricity,1310,Utilities,Utility,24/09/2021,V006171,3687.47,TotalEnergies Gas & Power Ltd,15540.84,BAC004029
Liberty Leisure Limited,http://statistics.data.gov.uk/id/local-authority/37UD,Leisure,LEIS,Leisure Management,LMAN,Liberty Leisure Limited / Kimberley Leisure Centre,Chemicals,3152,Other Supplies & Services,OtherSS,24/09/2021,V006164,208.34,Univar Solutions BV,250.01,BAC004022
Liberty Leisure Limited,http://statistics.data.gov.uk/id/local-authority/37UD,Culture and Heritage,CULT,Events,LEVE,Liberty Leisure Limited / DHL Museum,Promotion of The Arts,3066,Office Supplies,Offsup,08/10/2021,V006232,250,Adams & Co,250,BAC004079
Liberty Leisure Limited,http://statistics.data.gov.uk/id/local-authority/37UD,Leisure,LEIS,Leisure Management,LMAN,Liberty Leisure Limited / Kimberley Leisure Centre,Repairs & Maintenance,1000,Central Pot,Central,08/10/2021,V006210,290,Automatic Access Ltd,348,BAC004061
Liberty Leisure Limited,http://statistics.data.gov.uk/id/local-authority/37UD,Leisure,LEIS,Leisure Management,LMAN,Liberty Leisure Limited / Chilwell Olympia,Sports Equipment,3002,Equipment,Equip,08/10/2021,V006220,1011,Bricks 4 Kidz,1011,BAC004074
Liberty Leisure Limited,http://statistics.data.gov.uk/id/local-authority/37UD,Leisure,LEIS,Leisure Management,LMAN,Liberty Leisure Limited / Chilwell Olympia,Electricity,1310,Utilities,Utility,08/10/2021,V006202,942.75,Chilwell School,12105.14,BAC004055
Liberty Leisure Limited,http://statistics.data.gov.uk/id/local-authority/37UD,Leisure,LEIS,Leisure Management,LMAN,Liberty Leisure Limited / Chilwell Olympia,Electricity,1310,Utilities,Utility,08/10/2021,V006202,2458.72,Chilwell School,12105.14,BAC004055
Liberty Leisure Limited,http://statistics.data.gov.uk/id/local-authority/37UD,Leisure,LEIS,Leisure Management,LMAN,Liberty Leisure Limited / Chilwell Olympia,Electricity,1310,Utilities,Utility,08/10/2021,V006202,2637.34,Chilwell School,12105.14,BAC004055
Liberty Leisure Limited,http://statistics.data.gov.uk/id/local-authority/37UD,Leisure,LEIS,Leisure Management,LMAN,Liberty Leisure Limited / Chilwell Olympia,Electricity,1310,Utilities,Utility,08/10/2021,V006203,1626.45,Chilwell School,12105.14,BAC004055
Liberty Leisure Limited,http://statistics.data.gov.uk/id/local-authority/37UD,Leisure,LEIS,Leisure Management,LMAN,Liberty Leisure Limited / Chilwell Olympia,Electricity,1310,Utilities,Utility,08/10/2021,V006203,2084.87,Chilwell School,12105.14,BAC004055
Liberty Leisure Limited,http://statistics.data.gov.uk/id/local-authority/37UD,Leisure,LEIS,Leisure Management,LMAN,Liberty Leisure Limited / Chilwell Olympia,Electricity,1310,Utilities,Utility,08/10/2021,V006203,286.01,Chilwell School,12105.14,BAC004055
Liberty Leisure Limited,http://statistics.data.gov.uk/id/local-authority/37UD,Leisure,LEIS,Leisure Management,LMAN,Liberty Leisure Limited / Chilwell Olympia,Gas,1320,Utilities,Utility,08/10/2021,V006202,1120.79,Chilwell School,12105.14,BAC004055
Liberty Leisure Limited,http://statistics.data.gov.uk/id/local-authority/37UD,Leisure,LEIS,Leisure Management,LMAN,Liberty Leisure Limited / Chilwell Olympia,Gas,1320,Utilities,Utility,08/10/2021,V006202,516.72,Chilwell School,12105.14,BAC004055
Liberty Leisure Limited,http://statistics.data.gov.uk/id/local-authority/37UD,Leisure,LEIS,Leisure Management,LMAN,Liberty Leisure Limited / Chilwell Olympia,Gas,1320,Utilities,Utility,08/10/2021,V006202,276.27,Chilwell School,12105.14,BAC004055
Liberty Leisure Limited,http://statistics.data.gov.uk/id/local-authority/37UD,Leisure,LEIS,Leisure Management,LMAN,Liberty Leisure Limited / Chilwell Olympia,Gas,1320,Utilities,Utility,08/10/2021,V006203,155.22,Chilwell School,12105.14,BAC004055
Liberty Leisure Limited,http://statistics.data.gov.uk/id/local-authority/37UD,Culture and Heritage,CULT,Events,LEVE,Liberty Leisure Limited / DHL Museum,Promotion of The Arts,3066,Office Supplies,Offsup,08/10/2021,V006230,250,Dj expression,250,BAC004071
Liberty Leisure Limited,http://statistics.data.gov.uk/id/local-authority/37UD,Culture and Heritage,CULT,Events,LEVE,Liberty Leisure Limited / DHL Museum,Promotion of The Arts,3066,Office Supplies,Offsup,08/10/2021,V006192,200,JTH Concerts and Live Events Limited,1800,BAC004068
Liberty Leisure Limited,http://statistics.data.gov.uk/id/local-authority/37UD,Culture and Heritage,CULT,Events,LEVE,Liberty Leisure Limited / DHL Museum,Promotion of The Arts,3066,Office Supplies,Offsup,08/10/2021,V006192,50,JTH Concerts and Live Events Limited,1800,BAC004068
Liberty Leisure Limited,http://statistics.data.gov.uk/id/local-authority/37UD,Culture and Heritage,CULT,Events,LEVE,Liberty Leisure Limited / DHL Museum,Promotion of The Arts,3066,Office Supplies,Offsup,08/10/2021,V006192,1250,JTH Concerts and Live Events Limited,1800,BAC004068
Liberty Leisure Limited,http://statistics.data.gov.uk/id/local-authority/37UD,Leisure,LEIS,Leisure Management,LMAN,Liberty Leisure Limited / Bramcote Leisure Centre,Repairs & Maintenance,1000,Central Pot,Central,08/10/2021,V006227,1964,Lee Jackson Air Conditioning Ltd,2356.8,BAC004066
Liberty Leisure Limited,http://statistics.data.gov.uk/id/local-authority/37UD,Leisure,LEIS,Leisure Management,LMAN,Liberty Leisure Limited / Chilwell Olympia,Repairs & Maintenance,1000,Central Pot,Central,08/10/2021,V006197,326.8,Long Eaton Glass,392.16,BAC004046
Liberty Leisure Limited,http://statistics.data.gov.uk/id/local-authority/37UD,Leisure,LEIS,Leisure Management,LMAN,Liberty Leisure Limited / Bramcote Leisure Centre,Repairs & Maintenance,1000,Central Pot,Central,08/10/2021,V006216,300,M A Technical Services Ltd,1188,BAC004047
Liberty Leisure Limited,http://statistics.data.gov.uk/id/local-authority/37UD,Leisure,LEIS,Leisure Management,LMAN,Liberty Leisure Limited / Kimberley Leisure Centre,Repairs & Maintenance,1000,Central Pot,Central,08/10/2021,V006209,220,M A Technical Services Ltd,1188,BAC004047
Liberty Leisure Limited,http://statistics.data.gov.uk/id/local-authority/37UD,Leisure,LEIS,Leisure Management,LMAN,Liberty Leisure Limited / Kimberley Leisure Centre,Repairs & Maintenance,1000,Central Pot,Central,08/10/2021,V006217,120,M A Technical Services Ltd,1188,BAC004047
Liberty Leisure Limited,http://statistics.data.gov.uk/id/local-authority/37UD,Leisure,LEIS,Leisure Management,LMAN,Liberty Leisure Limited / Kimberley Leisure Centre,Repairs & Maintenance,1000,Central Pot,Central,08/10/2021,V006208,350,M A Technical Services Ltd,1188,BAC004047
Liberty Leisure Limited,http://statistics.data.gov.uk/id/local-authority/37UD,Leisure,LEIS,Leisure Management,LMAN,Liberty Leisure Limited / Bramcote Leisure Centre,Cleaning Materials,1510,Other Prem,OthPrem,08/10/2021,V006219,2.1,Mark-Douglas Industrial Supplies Limited,316.28,BAC004056
Liberty Leisure Limited,http://statistics.data.gov.uk/id/local-authority/37UD,Leisure,LEIS,Leisure Management,LMAN,Liberty Leisure Limited / Bramcote Leisure Centre,Cleaning Materials,1510,Other Prem,OthPrem,08/10/2021,V006219,9.04,Mark-Douglas Industrial Supplies Limited,316.28,BAC004056
Liberty Leisure Limited,http://statistics.data.gov.uk/id/local-authority/37UD,Leisure,LEIS,Leisure Management,LMAN,Liberty Leisure Limited / Bramcote Leisure Centre,Cleaning Materials,1510,Other Prem,OthPrem,08/10/2021,V006219,12.28,Mark-Douglas Industrial Supplies Limited,316.28,BAC004056
Liberty Leisure Limited,http://statistics.data.gov.uk/id/local-authority/37UD,Leisure,LEIS,Leisure Management,LMAN,Liberty Leisure Limited / Bramcote Leisure Centre,Cleaning Materials,1510,Other Prem,OthPrem,08/10/2021,V006219,8.5,Mark-Douglas Industrial Supplies Limited,316.28,BAC004056
Liberty Leisure Limited,http://statistics.data.gov.uk/id/local-authority/37UD,Leisure,LEIS,Leisure Management,LMAN,Liberty Leisure Limited / Bramcote Leisure Centre,Cleaning Materials,1510,Other Prem,OthPrem,08/10/2021,V006219,65,Mark-Douglas Industrial Supplies Limited,316.28,BAC004056
Liberty Leisure Limited,http://statistics.data.gov.uk/id/local-authority/37UD,Leisure,LEIS,Leisure Management,LMAN,Liberty Leisure Limited / Bramcote Leisure Centre,Cleaning Materials,1510,Other Prem,OthPrem,08/10/2021,V006219,2.1,Mark-Douglas Industrial Supplies Limited,316.28,BAC004056
Liberty Leisure Limited,http://statistics.data.gov.uk/id/local-authority/37UD,Leisure,LEIS,Leisure Management,LMAN,Liberty Leisure Limited / Bramcote Leisure Centre,Cleaning Materials,1510,Other Prem,OthPrem,08/10/2021,V006219,2.1,Mark-Douglas Industrial Supplies Limited,316.28,BAC004056
Liberty Leisure Limited,http://statistics.data.gov.uk/id/local-authority/37UD,Leisure,LEIS,Leisure Management,LMAN,Liberty Leisure Limited / Bramcote Leisure Centre,Cleaning Materials,1510,Other Prem,OthPrem,08/10/2021,V006219,25,Mark-Douglas Industrial Supplies Limited,316.28,BAC004056
Liberty Leisure Limited,http://statistics.data.gov.uk/id/local-authority/37UD,Leisure,LEIS,Leisure Management,LMAN,Liberty Leisure Limited / Bramcote Leisure Centre,Cleaning Materials,1510,Other Prem,OthPrem,08/10/2021,V006219,24.96,Mark-Douglas Industrial Supplies Limited,316.28,BAC004056
Liberty Leisure Limited,http://statistics.data.gov.uk/id/local-authority/37UD,Leisure,LEIS,Leisure Management,LMAN,Liberty Leisure Limited / Bramcote Leisure Centre,Cleaning Materials,1510,Other Prem,OthPrem,08/10/2021,V006219,60.88,Mark-Douglas Industrial Supplies Limited,316.28,BAC004056
Liberty Leisure Limited,http://statistics.data.gov.uk/id/local-authority/37UD,Leisure,LEIS,Leisure Management,LMAN,Liberty Leisure Limited / Bramcote Leisure Centre,Cleaning Materials,1510,Other Prem,OthPrem,08/10/2021,V006219,51.6,Mark-Douglas Industrial Supplies Limited,316.28,BAC004056
Liberty Leisure Limited,http://statistics.data.gov.uk/id/local-authority/37UD,Culture and Heritage,CULT,Events,LEVE,Liberty Leisure Limited / DHL Museum,Promotion of The Arts,3066,Office Supplies,Offsup,08/10/2021,V006229,350,Miss J C Barton,350,BAC004063
Liberty Leisure Limited,http://statistics.data.gov.uk/id/local-authority/37UD,Culture and Heritage,CULT,Heritage,LHER,Liberty Leisure Limited / DHL Museum,Membership,3870,Other Supplies & Services,OtherSS,08/10/2021,V006194,420,Nottingham Partners,504,BAC004064
Liberty Leisure Limited,http://statistics.data.gov.uk/id/local-authority/37UD,Leisure,LEIS,Leisure Management,LMAN,Liberty Leisure Limited / Chilwell Olympia,Service Contracts,3056,Other Supplies & Services,OtherSS,08/10/2021,V006198,1393.85,PHS Group Plc,1672.62,BAC004048
Liberty Leisure Limited,http://statistics.data.gov.uk/id/local-authority/37UD,Culture and Heritage,CULT,Events,LEVE,Liberty Leisure Limited / DHL Museum,Promotion of The Arts,3066,Office Supplies,Offsup,08/10/2021,V006193,156,SA Atkin Services,1321.02,BAC004062
Liberty Leisure Limited,http://statistics.data.gov.uk/id/local-authority/37UD,Culture and Heritage,CULT,Events,LEVE,Liberty Leisure Limited / DHL Museum,Promotion of The Arts,3066,Office Supplies,Offsup,08/10/2021,V006193,156,SA Atkin Services,1321.02,BAC004062
Liberty Leisure Limited,http://statistics.data.gov.uk/id/local-authority/37UD,Culture and Heritage,CULT,Events,LEVE,Liberty Leisure Limited / DHL Museum,Promotion of The Arts,3066,Office Supplies,Offsup,08/10/2021,V006193,37,SA Atkin Services,1321.02,BAC004062
Liberty Leisure Limited,http://statistics.data.gov.uk/id/local-authority/37UD,Culture and Heritage,CULT,Events,LEVE,Liberty Leisure Limited / DHL Museum,Promotion of The Arts,3066,Office Supplies,Offsup,08/10/2021,V006193,60,SA Atkin Services,1321.02,BAC004062
Liberty Leisure Limited,http://statistics.data.gov.uk/id/local-authority/37UD,Culture and Heritage,CULT,Events,LEVE,Liberty Leisure Limited / DHL Museum,Promotion of The Arts,3066,Office Supplies,Offsup,08/10/2021,V006193,104,SA Atkin Services,1321.02,BAC004062
Liberty Leisure Limited,http://statistics.data.gov.uk/id/local-authority/37UD,Culture and Heritage,CULT,Events,LEVE,Liberty Leisure Limited / DHL Museum,Promotion of The Arts,3066,Office Supplies,Offsup,08/10/2021,V006193,75.85,SA Atkin Services,1321.02,BAC004062
Liberty Leisure Limited,http://statistics.data.gov.uk/id/local-authority/37UD,Culture and Heritage,CULT,Events,LEVE,Liberty Leisure Limited / DHL Museum,Promotion of The Arts,3066,Office Supplies,Offsup,08/10/2021,V006193,205,SA Atkin Services,1321.02,BAC004062
Liberty Leisure Limited,http://statistics.data.gov.uk/id/local-authority/37UD,Culture and Heritage,CULT,Events,LEVE,Liberty Leisure Limited / DHL Museum,Promotion of The Arts,3066,Office Supplies,Offsup,08/10/2021,V006193,19,SA Atkin Services,1321.02,BAC004062
Liberty Leisure Limited,http://statistics.data.gov.uk/id/local-authority/37UD,Culture and Heritage,CULT,Events,LEVE,Liberty Leisure Limited / DHL Museum,Promotion of The Arts,3066,Office Supplies,Offsup,08/10/2021,V006193,143,SA Atkin Services,1321.02,BAC004062
Liberty Leisure Limited,http://statistics.data.gov.uk/id/local-authority/37UD,Culture and Heritage,CULT,Events,LEVE,Liberty Leisure Limited / DHL Museum,Promotion of The Arts,3066,Office Supplies,Offsup,08/10/2021,V006193,145,SA Atkin Services,1321.02,BAC004062
Liberty Leisure Limited,http://statistics.data.gov.uk/id/local-authority/37UD,Leisure,LEIS,Leisure Management,LMAN,Liberty Leisure Limited / Bramcote Leisure Centre,Repairs & Maintenance,1000,Central Pot,Central,08/10/2021,V006222,2764.65,Slater Electrical Serv Limited,3484.14,BAC004049
Liberty Leisure Limited,http://statistics.data.gov.uk/id/local-authority/37UD,Leisure,LEIS,Leisure Management,LMAN,Liberty Leisure Limited / Kimberley Leisure Centre,Repairs & Maintenance,1000,Central Pot,Central,08/10/2021,V006206,138.8,Slater Electrical Serv Limited,3484.14,BAC004049
Liberty Leisure Limited,http://statistics.data.gov.uk/id/local-authority/37UD,Leisure,LEIS,Leisure Management,LMAN,Liberty Leisure Limited / Bramcote Leisure Centre,Legionella Testing,1042,Central Pot,Central,08/10/2021,V006224,87,Sterilizing Services,583.2,BAC004050
Liberty Leisure Limited,http://statistics.data.gov.uk/id/local-authority/37UD,Leisure,LEIS,Leisure Management,LMAN,Liberty Leisure Limited / Bramcote Leisure Centre,Legionella Testing,1042,Central Pot,Central,08/10/2021,V006200,399,Sterilizing Services,583.2,BAC004050
Liberty Leisure Limited,http://statistics.data.gov.uk/id/local-authority/37UD,Leisure,LEIS,Leisure Management,LMAN,Liberty Leisure Limited / Bramcote Leisure Centre,Repairs & Maintenance,1000,Central Pot,Central,08/10/2021,V006188,411.96,Sterling Hydrotech Limited,494.35,BAC004051
Liberty Leisure Limited,http://statistics.data.gov.uk/id/local-authority/37UD,Leisure,LEIS,Leisure Management,LMAN,Liberty Leisure Limited / Kimberley Leisure Centre,Gas,1320,Utilities,Utility,08/10/2021,V006205,1993.25,The Kimberley School (EMET),2849.51,BAC004053
Liberty Leisure Limited,http://statistics.data.gov.uk/id/local-authority/37UD,Leisure,LEIS,Leisure Management,LMAN,Liberty Leisure Limited / Kimberley Leisure Centre,Water Charges,1410,Utilities,Utility,08/10/2021,V006204,856.26,The Kimberley School (EMET),2849.51,BAC004053
Liberty Leisure Limited,http://statistics.data.gov.uk/id/local-authority/37UD,Culture and Heritage,CULT,Events,LEVE,Liberty Leisure Limited / DHL Museum,Promotion of The Arts,3066,Office Supplies,Offsup,08/10/2021,V006231,300,The SKA`s C/O Paul Darbyshire,650,BAC004073
Liberty Leisure Limited,http://statistics.data.gov.uk/id/local-authority/37UD,Culture and Heritage,CULT,Events,LEVE,Liberty Leisure Limited / DHL Museum,Promotion of The Arts,3066,Office Supplies,Offsup,08/10/2021,V006231,350,The SKA`s C/O Paul Darbyshire,650,BAC004073
Liberty Leisure Limited,http://statistics.data.gov.uk/id/local-authority/37UD,Leisure,LEIS,Leisure Management,LMAN,Liberty Leisure Limited / Liberty Leisure Development,Licences,3613,Other Supplies & Services,OtherSS,08/10/2021,V006201,1045,Three65 Media Solutions Ltd,1310,BAC004072
Liberty Leisure Limited,http://statistics.data.gov.uk/id/local-authority/37UD,Leisure,LEIS,Leisure Management,LMAN,Liberty Leisure Limited / Liberty Leisure Development,Licences,3613,Other Supplies & Services,OtherSS,08/10/2021,V006201,265,Three65 Media Solutions Ltd,1310,BAC004072
Liberty Leisure Limited,http://statistics.data.gov.uk/id/local-authority/37UD,Leisure,LEIS,Leisure Management,LMAN,Liberty Leisure Limited / Bramcote Leisure Centre,Water Charges,1410,Utilities,Utility,08/10/2021,V006199,1263.56,Waterplus,1263.56,BAC004076
Liberty Leisure Limited,http://statistics.data.gov.uk/id/local-authority/37UD,Leisure,LEIS,Leisure Management,LMAN,Liberty Leisure Limited / Bramcote Leisure Centre,Service Contracts,3056,Other Supplies & Services,OtherSS,08/10/2021,V006189,3235.75,Ylem Energy Limited,3882.9,BAC004078
Liberty Leisure Limited,http://statistics.data.gov.uk/id/local-authority/37UD,Leisure,LEIS,Leisure Management,LMAN,Liberty Leisure Limited / Kimberley Leisure Centre,Vending Provisions  - Purchase,3204,Catering,Cat,22/10/2021,V006243,247.56,Automatic Retailing northern Ltd,402.48,BAC004093
Liberty Leisure Limited,http://statistics.data.gov.uk/id/local-authority/37UD,Leisure,LEIS,Leisure Management,LMAN,Liberty Leisure Limited / Kimberley Leisure Centre,Vending Provisions  - Purchase,3204,Catering,Cat,22/10/2021,V006244,59.54,Automatic Retailing northern Ltd,402.48,BAC004093
Liberty Leisure Limited,http://statistics.data.gov.uk/id/local-authority/37UD,Leisure,LEIS,Leisure Management,LMAN,Liberty Leisure Limited / Kimberley Leisure Centre,Vending Provisions  - Purchase,3204,Catering,Cat,22/10/2021,V006243,33.96,Automatic Retailing northern Ltd,402.48,BAC004093
Liberty Leisure Limited,http://statistics.data.gov.uk/id/local-authority/37UD,Culture and Heritage,CULT,Events,LEVE,Liberty Leisure Limited / Events,Promotion of The Arts,3066,Office Supplies,Offsup,22/10/2021,V006261,272,Central Medical Services,326.4,BAC004099
Liberty Leisure Limited,http://statistics.data.gov.uk/id/local-authority/37UD,Leisure,LEIS,Leisure Management,LMAN,Liberty Leisure Limited / Kimberley Leisure Centre,Repairs & Maintenance,1000,Central Pot,Central,22/10/2021,V006264,109,Complete Cooling Services Limited,418.8,BAC004081
Liberty Leisure Limited,http://statistics.data.gov.uk/id/local-authority/37UD,Leisure,LEIS,Leisure Management,LMAN,Liberty Leisure Limited / Kimberley Leisure Centre,Repairs & Maintenance,1000,Central Pot,Central,22/10/2021,V006265,240,Complete Cooling Services Limited,418.8,BAC004081
Liberty Leisure Limited,http://statistics.data.gov.uk/id/local-authority/37UD,Leisure,LEIS,Leisure Management,LMAN,Liberty Leisure Limited / Kimberley Leisure Centre,Chemicals,3152,Other Supplies & Services,OtherSS,22/10/2021,V006258,10.8,Cryoservice Limited,940.24,BAC004082
Liberty Leisure Limited,http://statistics.data.gov.uk/id/local-authority/37UD,Leisure,LEIS,Leisure Management,LMAN,Liberty Leisure Limited / Kimberley Leisure Centre,Licences,3613,Other Supplies & Services,OtherSS,22/10/2021,V006221,772.73,Cryoservice Limited,940.24,BAC004082
Liberty Leisure Limited,http://statistics.data.gov.uk/id/local-authority/37UD,Leisure,LEIS,Leisure Centres,LCEN,Liberty Leisure Limited / Kimberley Leisure Centre,Repairs & Maintenance,1000,Central Pot,Central,22/10/2021,V006241,1660,East Midlands Vending,1992,BAC004101
Liberty Leisure Limited,http://statistics.data.gov.uk/id/local-authority/37UD,Culture and Heritage,CULT,Events,LEVE,Liberty Leisure Limited / DHL Museum,Promotion of The Arts,3066,Office Supplies,Offsup,22/10/2021,V006239,165,G H Platts Services,1188,BAC004085
Liberty Leisure Limited,http://statistics.data.gov.uk/id/local-authority/37UD,Culture and Heritage,CULT,Events,LEVE,Liberty Leisure Limited / DHL Museum,Promotion of The Arts,3066,Office Supplies,Offsup,22/10/2021,V006240,165,G H Platts Services,1188,BAC004085
Liberty Leisure Limited,http://statistics.data.gov.uk/id/local-authority/37UD,Culture and Heritage,CULT,Events,LEVE,Liberty Leisure Limited / DHL Museum,Promotion of The Arts,3066,Office Supplies,Offsup,22/10/2021,V006240,165,G H Platts Services,1188,BAC004085
Liberty Leisure Limited,http://statistics.data.gov.uk/id/local-authority/37UD,Culture and Heritage,CULT,Events,LEVE,Liberty Leisure Limited / DHL Museum,Promotion of The Arts,3066,Office Supplies,Offsup,22/10/2021,V006240,165,G H Platts Services,1188,BAC004085
Liberty Leisure Limited,http://statistics.data.gov.uk/id/local-authority/37UD,Culture and Heritage,CULT,Events,LEVE,Liberty Leisure Limited / DHL Museum,Promotion of The Arts,3066,Office Supplies,Offsup,22/10/2021,V006240,165,G H Platts Services,1188,BAC004085
Liberty Leisure Limited,http://statistics.data.gov.uk/id/local-authority/37UD,Culture and Heritage,CULT,Events,LEVE,Liberty Leisure Limited / DHL Museum,Promotion of The Arts,3066,Office Supplies,Offsup,22/10/2021,V006240,165,G H Platts Services,1188,BAC004085
Liberty Leisure Limited,http://statistics.data.gov.uk/id/local-authority/37UD,Leisure,LEIS,Leisure Management,LMAN,Liberty Leisure Limited / Bramcote Leisure Centre,Service Contracts,3056,Other Supplies & Services,OtherSS,22/10/2021,V006235,748,Gaffey Technical Services,897.6,BAC004083
Liberty Leisure Limited,http://statistics.data.gov.uk/id/local-authority/37UD,Leisure,LEIS,Leisure Management,LMAN,Liberty Leisure Limited / Kimberley Leisure Centre,Licences,3613,Other Supplies & Services,OtherSS,22/10/2021,V006246,150,Halo Leisure Enterprises Ltd,540,BAC004094
Liberty Leisure Limited,http://statistics.data.gov.uk/id/local-authority/37UD,Leisure,LEIS,Leisure Management,LMAN,Liberty Leisure Limited / Kimberley Leisure Centre,Licences,3613,Other Supplies & Services,OtherSS,22/10/2021,V006246,150,Halo Leisure Enterprises Ltd,540,BAC004094
Liberty Leisure Limited,http://statistics.data.gov.uk/id/local-authority/37UD,Leisure,LEIS,Leisure Management,LMAN,Liberty Leisure Limited / Kimberley Leisure Centre,Licences,3613,Other Supplies & Services,OtherSS,22/10/2021,V006246,150,Halo Leisure Enterprises Ltd,540,BAC004094
Liberty Leisure Limited,http://statistics.data.gov.uk/id/local-authority/37UD,Leisure,LEIS,Leisure Management,LMAN,Liberty Leisure Limited / Bramcote Leisure Centre,Repairs & Maintenance,1000,Central Pot,Central,22/10/2021,V006237,670,M A Technical Services Ltd,1164,BAC004084
Liberty Leisure Limited,http://statistics.data.gov.uk/id/local-authority/37UD,Leisure,LEIS,Leisure Management,LMAN,Liberty Leisure Limited / Kimberley Leisure Centre,Repairs & Maintenance,1000,Central Pot,Central,22/10/2021,V006260,300,M A Technical Services Ltd,1164,BAC004084
Liberty Leisure Limited,http://statistics.data.gov.uk/id/local-authority/37UD,Leisure,LEIS,Leisure Management,LMAN,Liberty Leisure Limited / Kimberley Leisure Centre,Cleaning Materials,1510,Other Prem,OthPrem,22/10/2021,V006245,447.3,Mark-Douglas Industrial Supplies Limited,536.76,BAC004088
Liberty Leisure Limited,http://statistics.data.gov.uk/id/local-authority/37UD,Culture and Heritage,CULT,Events,LEVE,Liberty Leisure Limited / DHL Museum,Promotion of The Arts,3066,Office Supplies,Offsup,22/10/2021,V006233,20.8,Nottingham City Sercurity Services,6170.28,BAC004098
Liberty Leisure Limited,http://statistics.data.gov.uk/id/local-authority/37UD,Culture and Heritage,CULT,Events,LEVE,Liberty Leisure Limited / DHL Museum,Promotion of The Arts,3066,Office Supplies,Offsup,22/10/2021,V006233,328.4,Nottingham City Sercurity Services,6170.28,BAC004098
Liberty Leisure Limited,http://statistics.data.gov.uk/id/local-authority/37UD,Culture and Heritage,CULT,Events,LEVE,Liberty Leisure Limited / DHL Museum,Promotion of The Arts,3066,Office Supplies,Offsup,22/10/2021,V006233,328.4,Nottingham City Sercurity Services,6170.28,BAC004098
Liberty Leisure Limited,http://statistics.data.gov.uk/id/local-authority/37UD,Culture and Heritage,CULT,Events,LEVE,Liberty Leisure Limited / DHL Museum,Promotion of The Arts,3066,Office Supplies,Offsup,22/10/2021,V006233,328.4,Nottingham City Sercurity Services,6170.28,BAC004098
Liberty Leisure Limited,http://statistics.data.gov.uk/id/local-authority/37UD,Culture and Heritage,CULT,Events,LEVE,Liberty Leisure Limited / DHL Museum,Promotion of The Arts,3066,Office Supplies,Offsup,22/10/2021,V006233,328.4,Nottingham City Sercurity Services,6170.28,BAC004098
Liberty Leisure Limited,http://statistics.data.gov.uk/id/local-authority/37UD,Culture and Heritage,CULT,Events,LEVE,Liberty Leisure Limited / DHL Museum,Promotion of The Arts,3066,Office Supplies,Offsup,22/10/2021,V006233,0,Nottingham City Sercurity Services,6170.28,BAC004098
Liberty Leisure Limited,http://statistics.data.gov.uk/id/local-authority/37UD,Culture and Heritage,CULT,Events,LEVE,Liberty Leisure Limited / DHL Museum,Promotion of The Arts,3066,Office Supplies,Offsup,22/10/2021,V006233,560,Nottingham City Sercurity Services,6170.28,BAC004098
Liberty Leisure Limited,http://statistics.data.gov.uk/id/local-authority/37UD,Culture and Heritage,CULT,Events,LEVE,Liberty Leisure Limited / DHL Museum,Promotion of The Arts,3066,Office Supplies,Offsup,22/10/2021,V006233,560,Nottingham City Sercurity Services,6170.28,BAC004098
Liberty Leisure Limited,http://statistics.data.gov.uk/id/local-authority/37UD,Culture and Heritage,CULT,Events,LEVE,Liberty Leisure Limited / DHL Museum,Promotion of The Arts,3066,Office Supplies,Offsup,22/10/2021,V006233,560,Nottingham City Sercurity Services,6170.28,BAC004098
Liberty Leisure Limited,http://statistics.data.gov.uk/id/local-authority/37UD,Culture and Heritage,CULT,Events,LEVE,Liberty Leisure Limited / DHL Museum,Promotion of The Arts,3066,Office Supplies,Offsup,22/10/2021,V006233,560,Nottingham City Sercurity Services,6170.28,BAC004098
Liberty Leisure Limited,http://statistics.data.gov.uk/id/local-authority/37UD,Culture and Heritage,CULT,Events,LEVE,Liberty Leisure Limited / DHL Museum,Promotion of The Arts,3066,Office Supplies,Offsup,22/10/2021,V006233,229.5,Nottingham City Sercurity Services,6170.28,BAC004098
Liberty Leisure Limited,http://statistics.data.gov.uk/id/local-authority/37UD,Culture and Heritage,CULT,Events,LEVE,Liberty Leisure Limited / DHL Museum,Promotion of The Arts,3066,Office Supplies,Offsup,22/10/2021,V006233,229.5,Nottingham City Sercurity Services,6170.28,BAC004098
Liberty Leisure Limited,http://statistics.data.gov.uk/id/local-authority/37UD,Culture and Heritage,CULT,Events,LEVE,Liberty Leisure Limited / DHL Museum,Promotion of The Arts,3066,Office Supplies,Offsup,22/10/2021,V006233,229.5,Nottingham City Sercurity Services,6170.28,BAC004098
Liberty Leisure Limited,http://statistics.data.gov.uk/id/local-authority/37UD,Culture and Heritage,CULT,Events,LEVE,Liberty Leisure Limited / DHL Museum,Promotion of The Arts,3066,Office Supplies,Offsup,22/10/2021,V006233,229.5,Nottingham City Sercurity Services,6170.28,BAC004098
Liberty Leisure Limited,http://statistics.data.gov.uk/id/local-authority/37UD,Culture and Heritage,CULT,Events,LEVE,Liberty Leisure Limited / DHL Museum,Promotion of The Arts,3066,Office Supplies,Offsup,22/10/2021,V006233,229.5,Nottingham City Sercurity Services,6170.28,BAC004098
Liberty Leisure Limited,http://statistics.data.gov.uk/id/local-authority/37UD,Leisure,LEIS,Leisure Management,LMAN,Liberty Leisure Limited / Kimberley Leisure Centre,Sports Equipment - Sale,3004,Equipment,Equip,22/10/2021,V006257,13.5,Swim England Trading Ltd,933.48,BAC004080
Liberty Leisure Limited,http://statistics.data.gov.uk/id/local-authority/37UD,Leisure,LEIS,Leisure Management,LMAN,Liberty Leisure Limited / Kimberley Leisure Centre,Sports Equipment - Sale,3004,Equipment,Equip,22/10/2021,V006257,58.8,Swim England Trading Ltd,933.48,BAC004080
Liberty Leisure Limited,http://statistics.data.gov.uk/id/local-authority/37UD,Leisure,LEIS,Leisure Management,LMAN,Liberty Leisure Limited / Kimberley Leisure Centre,Sports Equipment - Sale,3004,Equipment,Equip,22/10/2021,V006257,98,Swim England Trading Ltd,933.48,BAC004080
Liberty Leisure Limited,http://statistics.data.gov.uk/id/local-authority/37UD,Leisure,LEIS,Leisure Management,LMAN,Liberty Leisure Limited / Kimberley Leisure Centre,Sports Equipment - Sale,3004,Equipment,Equip,22/10/2021,V006257,58.8,Swim England Trading Ltd,933.48,BAC004080
Liberty Leisure Limited,http://statistics.data.gov.uk/id/local-authority/37UD,Leisure,LEIS,Leisure Management,LMAN,Liberty Leisure Limited / Kimberley Leisure Centre,Sports Equipment - Sale,3004,Equipment,Equip,22/10/2021,V006257,58.8,Swim England Trading Ltd,933.48,BAC004080
Liberty Leisure Limited,http://statistics.data.gov.uk/id/local-authority/37UD,Leisure,LEIS,Leisure Management,LMAN,Liberty Leisure Limited / Kimberley Leisure Centre,Sports Equipment - Sale,3004,Equipment,Equip,22/10/2021,V006257,98,Swim England Trading Ltd,933.48,BAC004080
Liberty Leisure Limited,http://statistics.data.gov.uk/id/local-authority/37UD,Leisure,LEIS,Leisure Management,LMAN,Liberty Leisure Limited / Kimberley Leisure Centre,Sports Equipment - Sale,3004,Equipment,Equip,22/10/2021,V006257,98,Swim England Trading Ltd,933.48,BAC004080
Liberty Leisure Limited,http://statistics.data.gov.uk/id/local-authority/37UD,Leisure,LEIS,Leisure Management,LMAN,Liberty Leisure Limited / Kimberley Leisure Centre,Sports Equipment - Sale,3004,Equipment,Equip,22/10/2021,V006257,78.4,Swim England Trading Ltd,933.48,BAC004080
Liberty Leisure Limited,http://statistics.data.gov.uk/id/local-authority/37UD,Leisure,LEIS,Leisure Management,LMAN,Liberty Leisure Limited / Kimberley Leisure Centre,Sports Equipment - Sale,3004,Equipment,Equip,22/10/2021,V006257,98,Swim England Trading Ltd,933.48,BAC004080
Liberty Leisure Limited,http://statistics.data.gov.uk/id/local-authority/37UD,Leisure,LEIS,Leisure Management,LMAN,Liberty Leisure Limited / Kimberley Leisure Centre,Sports Equipment - Sale,3004,Equipment,Equip,22/10/2021,V006257,39.2,Swim England Trading Ltd,933.48,BAC004080
Liberty Leisure Limited,http://statistics.data.gov.uk/id/local-authority/37UD,Leisure,LEIS,Leisure Management,LMAN,Liberty Leisure Limited / Kimberley Leisure Centre,Sports Equipment - Sale,3004,Equipment,Equip,22/10/2021,V006257,39.2,Swim England Trading Ltd,933.48,BAC004080
Liberty Leisure Limited,http://statistics.data.gov.uk/id/local-authority/37UD,Leisure,LEIS,Leisure Management,LMAN,Liberty Leisure Limited / Kimberley Leisure Centre,Sports Equipment - Sale,3004,Equipment,Equip,22/10/2021,V006257,39.2,Swim England Trading Ltd,933.48,BAC004080
Liberty Leisure Limited,http://statistics.data.gov.uk/id/local-authority/37UD,Leisure,LEIS,Leisure Management,LMAN,Liberty Leisure Limited / Bramcote Leisure Centre,Electricity,1310,Utilities,Utility,22/10/2021,V006249,2010.58,TotalEnergies Gas & Power Ltd,6909.17,BAC004092
Liberty Leisure Limited,http://statistics.data.gov.uk/id/local-authority/37UD,Leisure,LEIS,Leisure Management,LMAN,Liberty Leisure Limited / Kimberley Leisure Centre,Electricity,1310,Utilities,Utility,22/10/2021,V006247,3747.06,TotalEnergies Gas & Power Ltd,6909.17,BAC004092
Liberty Leisure Limited,http://statistics.data.gov.uk/id/local-authority/37UD,Leisure,LEIS,Leisure Management,LMAN,Liberty Leisure Limited / Bramcote Leisure Centre,Chemicals,3152,Other Supplies & Services,OtherSS,22/10/2021,V006248,259.02,Univar Solutions BV,310.82,BAC004087
Liberty Leisure Limited,http://statistics.data.gov.uk/id/local-authority/37UD,Leisure,LEIS,Leisure Management,LMAN,Liberty Leisure Limited / Chilwell Olympia,Water Charges,1410,Utilities,Utility,22/10/2021,V006238,24.12,Waterplus,550.85,BAC004100
Liberty Leisure Limited,http://statistics.data.gov.uk/id/local-authority/37UD,Leisure,LEIS,Leisure Management,LMAN,Liberty Leisure Limited / Kimberley Leisure Centre,Sewerage Charges,1420,Utilities,Utility,22/10/2021,V006259,526.73,Waterplus,550.85,BAC004100
Liberty Leisure Limited,http://statistics.data.gov.uk/id/local-authority/37UD,Leisure,LEIS,Leisure Management,LMAN,Liberty Leisure Limited / Bramcote Leisure Centre,Vending Provisions  - Purchase,3204,Catering,Cat,05/11/2021,V006282,71.94,Automatic Retailing northern Ltd,1162.26,BAC004115
Liberty Leisure Limited,http://statistics.data.gov.uk/id/local-authority/37UD,Leisure,LEIS,Leisure Management,LMAN,Liberty Leisure Limited / Bramcote Leisure Centre,Vending Provisions  - Purchase,3204,Catering,Cat,05/11/2021,V006282,908.6,Automatic Retailing northern Ltd,1162.26,BAC004115
Liberty Leisure Limited,http://statistics.data.gov.uk/id/local-authority/37UD,Leisure,LEIS,Leisure Management,LMAN,Liberty Leisure Limited / Kimberley Leisure Centre,Service Contracts,3056,Other Supplies & Services,OtherSS,05/11/2021,V006272,551,Complete Cooling Services Limited,661.2,BAC004104
Liberty Leisure Limited,http://statistics.data.gov.uk/id/local-authority/37UD,Leisure,LEIS,Leisure Management,LMAN,Liberty Leisure Limited / Liberty Leisure Development,Subscriptions,3730,Other Supplies & Services,OtherSS,05/11/2021,V006251,2900,ICO,2900,BAC004117
Liberty Leisure Limited,http://statistics.data.gov.uk/id/local-authority/37UD,Leisure,LEIS,Leisure Management,LMAN,Liberty Leisure Limited / Bramcote Leisure Centre,Repairs & Maintenance,1000,Central Pot,Central,05/11/2021,V006273,440,M A Technical Services Ltd,1068,BAC004105
Liberty Leisure Limited,http://statistics.data.gov.uk/id/local-authority/37UD,Leisure,LEIS,Leisure Management,LMAN,Liberty Leisure Limited / Bramcote Leisure Centre,Repairs & Maintenance,1000,Central Pot,Central,05/11/2021,V006273,450,M A Technical Services Ltd,1068,BAC004105
Liberty Leisure Limited,http://statistics.data.gov.uk/id/local-authority/37UD,Leisure,LEIS,Leisure Management,LMAN,Liberty Leisure Limited / Bramcote Leisure Centre,Cleaning Materials,1510,Other Prem,OthPrem,05/11/2021,V006254,39,Mark-Douglas Industrial Supplies Limited,1376.09,BAC004109
Liberty Leisure Limited,http://statistics.data.gov.uk/id/local-authority/37UD,Leisure,LEIS,Leisure Management,LMAN,Liberty Leisure Limited / Bramcote Leisure Centre,Cleaning Materials,1510,Other Prem,OthPrem,05/11/2021,V006253,21.25,Mark-Douglas Industrial Supplies Limited,1376.09,BAC004109
Liberty Leisure Limited,http://statistics.data.gov.uk/id/local-authority/37UD,Leisure,LEIS,Leisure Management,LMAN,Liberty Leisure Limited / Bramcote Leisure Centre,Cleaning Materials,1510,Other Prem,OthPrem,05/11/2021,V006253,12.48,Mark-Douglas Industrial Supplies Limited,1376.09,BAC004109
Liberty Leisure Limited,http://statistics.data.gov.uk/id/local-authority/37UD,Leisure,LEIS,Leisure Management,LMAN,Liberty Leisure Limited / Bramcote Leisure Centre,Cleaning Materials,1510,Other Prem,OthPrem,05/11/2021,V006254,130,Mark-Douglas Industrial Supplies Limited,1376.09,BAC004109
Liberty Leisure Limited,http://statistics.data.gov.uk/id/local-authority/37UD,Leisure,LEIS,Leisure Management,LMAN,Liberty Leisure Limited / Bramcote Leisure Centre,Cleaning Materials,1510,Other Prem,OthPrem,05/11/2021,V006254,35.85,Mark-Douglas Industrial Supplies Limited,1376.09,BAC004109
Liberty Leisure Limited,http://statistics.data.gov.uk/id/local-authority/37UD,Leisure,LEIS,Leisure Management,LMAN,Liberty Leisure Limited / Bramcote Leisure Centre,Cleaning Materials,1510,Other Prem,OthPrem,05/11/2021,V006270,7.27,Mark-Douglas Industrial Supplies Limited,1376.09,BAC004109
Liberty Leisure Limited,http://statistics.data.gov.uk/id/local-authority/37UD,Leisure,LEIS,Leisure Management,LMAN,Liberty Leisure Limited / Bramcote Leisure Centre,Cleaning Materials,1510,Other Prem,OthPrem,05/11/2021,V006254,60.88,Mark-Douglas Industrial Supplies Limited,1376.09,BAC004109
Liberty Leisure Limited,http://statistics.data.gov.uk/id/local-authority/37UD,Leisure,LEIS,Leisure Management,LMAN,Liberty Leisure Limited / Bramcote Leisure Centre,Cleaning Materials,1510,Other Prem,OthPrem,05/11/2021,V006254,2.6,Mark-Douglas Industrial Supplies Limited,1376.09,BAC004109
Liberty Leisure Limited,http://statistics.data.gov.uk/id/local-authority/37UD,Leisure,LEIS,Leisure Management,LMAN,Liberty Leisure Limited / Bramcote Leisure Centre,Cleaning Materials,1510,Other Prem,OthPrem,05/11/2021,V006254,58.44,Mark-Douglas Industrial Supplies Limited,1376.09,BAC004109
Liberty Leisure Limited,http://statistics.data.gov.uk/id/local-authority/37UD,Leisure,LEIS,Leisure Management,LMAN,Liberty Leisure Limited / Bramcote Leisure Centre,Cleaning Materials,1510,Other Prem,OthPrem,05/11/2021,V006253,12.28,Mark-Douglas Industrial Supplies Limited,1376.09,BAC004109
Liberty Leisure Limited,http://statistics.data.gov.uk/id/local-authority/37UD,Leisure,LEIS,Leisure Management,LMAN,Liberty Leisure Limited / Bramcote Leisure Centre,Cleaning Materials,1510,Other Prem,OthPrem,05/11/2021,V006254,51.6,Mark-Douglas Industrial Supplies Limited,1376.09,BAC004109
Liberty Leisure Limited,http://statistics.data.gov.uk/id/local-authority/37UD,Leisure,LEIS,Leisure Management,LMAN,Liberty Leisure Limited / Bramcote Leisure Centre,Cleaning Materials,1510,Other Prem,OthPrem,05/11/2021,V006270,21.9,Mark-Douglas Industrial Supplies Limited,1376.09,BAC004109
Liberty Leisure Limited,http://statistics.data.gov.uk/id/local-authority/37UD,Leisure,LEIS,Leisure Management,LMAN,Liberty Leisure Limited / Bramcote Leisure Centre,Cleaning Materials,1510,Other Prem,OthPrem,05/11/2021,V006270,21.9,Mark-Douglas Industrial Supplies Limited,1376.09,BAC004109
Liberty Leisure Limited,http://statistics.data.gov.uk/id/local-authority/37UD,Leisure,LEIS,Leisure Management,LMAN,Liberty Leisure Limited / Bramcote Leisure Centre,Cleaning Materials,1510,Other Prem,OthPrem,05/11/2021,V006253,25,Mark-Douglas Industrial Supplies Limited,1376.09,BAC004109
Liberty Leisure Limited,http://statistics.data.gov.uk/id/local-authority/37UD,Leisure,LEIS,Leisure Management,LMAN,Liberty Leisure Limited / Bramcote Leisure Centre,Cleaning Materials,1510,Other Prem,OthPrem,05/11/2021,V006267,12,Mark-Douglas Industrial Supplies Limited,1376.09,BAC004109
Liberty Leisure Limited,http://statistics.data.gov.uk/id/local-authority/37UD,Leisure,LEIS,Leisure Management,LMAN,Liberty Leisure Limited / Bramcote Leisure Centre,Cleaning Materials,1510,Other Prem,OthPrem,05/11/2021,V006267,86,Mark-Douglas Industrial Supplies Limited,1376.09,BAC004109
Liberty Leisure Limited,http://statistics.data.gov.uk/id/local-authority/37UD,Leisure,LEIS,Leisure Management,LMAN,Liberty Leisure Limited / Bramcote Leisure Centre,Cleaning Materials,1510,Other Prem,OthPrem,05/11/2021,V006268,39,Mark-Douglas Industrial Supplies Limited,1376.09,BAC004109
Liberty Leisure Limited,http://statistics.data.gov.uk/id/local-authority/37UD,Leisure,LEIS,Leisure Management,LMAN,Liberty Leisure Limited / Bramcote Leisure Centre,Cleaning Materials,1510,Other Prem,OthPrem,05/11/2021,V006267,10.28,Mark-Douglas Industrial Supplies Limited,1376.09,BAC004109
Liberty Leisure Limited,http://statistics.data.gov.uk/id/local-authority/37UD,Leisure,LEIS,Leisure Management,LMAN,Liberty Leisure Limited / Bramcote Leisure Centre,Cleaning Materials,1510,Other Prem,OthPrem,05/11/2021,V006267,9.04,Mark-Douglas Industrial Supplies Limited,1376.09,BAC004109
Liberty Leisure Limited,http://statistics.data.gov.uk/id/local-authority/37UD,Leisure,LEIS,Leisure Management,LMAN,Liberty Leisure Limited / Bramcote Leisure Centre,Cleaning Materials,1510,Other Prem,OthPrem,05/11/2021,V006267,8.5,Mark-Douglas Industrial Supplies Limited,1376.09,BAC004109
Liberty Leisure Limited,http://statistics.data.gov.uk/id/local-authority/37UD,Leisure,LEIS,Leisure Management,LMAN,Liberty Leisure Limited / Bramcote Leisure Centre,Cleaning Materials,1510,Other Prem,OthPrem,05/11/2021,V006268,30.44,Mark-Douglas Industrial Supplies Limited,1376.09,BAC004109
Liberty Leisure Limited,http://statistics.data.gov.uk/id/local-authority/37UD,Leisure,LEIS,Leisure Management,LMAN,Liberty Leisure Limited / Bramcote Leisure Centre,Cleaning Materials,1510,Other Prem,OthPrem,05/11/2021,V006267,30.44,Mark-Douglas Industrial Supplies Limited,1376.09,BAC004109
Liberty Leisure Limited,http://statistics.data.gov.uk/id/local-authority/37UD,Leisure,LEIS,Leisure Management,LMAN,Liberty Leisure Limited / Bramcote Leisure Centre,Cleaning Materials,1510,Other Prem,OthPrem,05/11/2021,V006268,65,Mark-Douglas Industrial Supplies Limited,1376.09,BAC004109
Liberty Leisure Limited,http://statistics.data.gov.uk/id/local-authority/37UD,Leisure,LEIS,Leisure Management,LMAN,Liberty Leisure Limited / Bramcote Leisure Centre,Cleaning Materials,1510,Other Prem,OthPrem,05/11/2021,V006267,65,Mark-Douglas Industrial Supplies Limited,1376.09,BAC004109
Liberty Leisure Limited,http://statistics.data.gov.uk/id/local-authority/37UD,Leisure,LEIS,Leisure Management,LMAN,Liberty Leisure Limited / Bramcote Leisure Centre,Cleaning Materials,1510,Other Prem,OthPrem,05/11/2021,V006267,25,Mark-Douglas Industrial Supplies Limited,1376.09,BAC004109
Liberty Leisure Limited,http://statistics.data.gov.uk/id/local-authority/37UD,Leisure,LEIS,Leisure Management,LMAN,Liberty Leisure Limited / Bramcote Leisure Centre,Cleaning Materials,1510,Other Prem,OthPrem,05/11/2021,V006268,24.96,Mark-Douglas Industrial Supplies Limited,1376.09,BAC004109
Liberty Leisure Limited,http://statistics.data.gov.uk/id/local-authority/37UD,Leisure,LEIS,Leisure Management,LMAN,Liberty Leisure Limited / Bramcote Leisure Centre,Cleaning Materials,1510,Other Prem,OthPrem,05/11/2021,V006268,24.56,Mark-Douglas Industrial Supplies Limited,1376.09,BAC004109
Liberty Leisure Limited,http://statistics.data.gov.uk/id/local-authority/37UD,Leisure,LEIS,Leisure Management,LMAN,Liberty Leisure Limited / Bramcote Leisure Centre,Cleaning Materials,1510,Other Prem,OthPrem,05/11/2021,V006267,10.28,Mark-Douglas Industrial Supplies Limited,1376.09,BAC004109
Liberty Leisure Limited,http://statistics.data.gov.uk/id/local-authority/37UD,Leisure,LEIS,Leisure Management,LMAN,Liberty Leisure Limited / Bramcote Leisure Centre,Cleaning Materials,1510,Other Prem,OthPrem,05/11/2021,V006268,68.8,Mark-Douglas Industrial Supplies Limited,1376.09,BAC004109
Liberty Leisure Limited,http://statistics.data.gov.uk/id/local-authority/37UD,Leisure,LEIS,Leisure Management,LMAN,Liberty Leisure Limited / Chilwell Olympia,Cleaning Materials,1510,Other Prem,OthPrem,05/11/2021,V006297,29.22,Mark-Douglas Industrial Supplies Limited,1376.09,BAC004109
Liberty Leisure Limited,http://statistics.data.gov.uk/id/local-authority/37UD,Leisure,LEIS,Leisure Management,LMAN,Liberty Leisure Limited / Chilwell Olympia,Cleaning Materials,1510,Other Prem,OthPrem,05/11/2021,V006297,31.6,Mark-Douglas Industrial Supplies Limited,1376.09,BAC004109
Liberty Leisure Limited,http://statistics.data.gov.uk/id/local-authority/37UD,Leisure,LEIS,Leisure Management,LMAN,Liberty Leisure Limited / Chilwell Olympia,Cleaning Materials,1510,Other Prem,OthPrem,05/11/2021,V006297,24.56,Mark-Douglas Industrial Supplies Limited,1376.09,BAC004109
Liberty Leisure Limited,http://statistics.data.gov.uk/id/local-authority/37UD,Leisure,LEIS,Leisure Management,LMAN,Liberty Leisure Limited / Chilwell Olympia,Cleaning Materials,1510,Other Prem,OthPrem,05/11/2021,V006297,51.6,Mark-Douglas Industrial Supplies Limited,1376.09,BAC004109
Liberty Leisure Limited,http://statistics.data.gov.uk/id/local-authority/37UD,Leisure,LEIS,Leisure Management,LMAN,Liberty Leisure Limited / Bramcote Leisure Centre,Repairs & Maintenance,1000,Central Pot,Central,05/11/2021,V006269,310,Merrin Builders & Landscaping,310,BAC004112
Liberty Leisure Limited,http://statistics.data.gov.uk/id/local-authority/37UD,Leisure,LEIS,Leisure Management,LMAN,Liberty Leisure Limited / Bramcote Leisure Centre,Repairs & Maintenance,1000,Central Pot,Central,05/11/2021,V006286,344.8,NBE Fire and Security Limited,413.76,BAC004114
Liberty Leisure Limited,http://statistics.data.gov.uk/id/local-authority/37UD,Leisure,LEIS,Leisure Management,LMAN,Liberty Leisure Limited / Bramcote Leisure Centre,Purchase of Miscellaneous Items for Sale,3160,Other Supplies & Services,OtherSS,05/11/2021,V006275,6.5,Swim England Trading Ltd,628.92,BAC004102
Liberty Leisure Limited,http://statistics.data.gov.uk/id/local-authority/37UD,Leisure,LEIS,Leisure Management,LMAN,Liberty Leisure Limited / Bramcote Leisure Centre,Purchase of Miscellaneous Items for Sale,3160,Other Supplies & Services,OtherSS,05/11/2021,V006291,8,Swim England Trading Ltd,628.92,BAC004102
Liberty Leisure Limited,http://statistics.data.gov.uk/id/local-authority/37UD,Leisure,LEIS,Leisure Management,LMAN,Liberty Leisure Limited / Bramcote Leisure Centre,Purchase of Miscellaneous Items for Sale,3160,Other Supplies & Services,OtherSS,05/11/2021,V006275,58.8,Swim England Trading Ltd,628.92,BAC004102
Liberty Leisure Limited,http://statistics.data.gov.uk/id/local-authority/37UD,Leisure,LEIS,Leisure Management,LMAN,Liberty Leisure Limited / Bramcote Leisure Centre,Purchase of Miscellaneous Items for Sale,3160,Other Supplies & Services,OtherSS,05/11/2021,V006275,58.8,Swim England Trading Ltd,628.92,BAC004102
Liberty Leisure Limited,http://statistics.data.gov.uk/id/local-authority/37UD,Leisure,LEIS,Leisure Management,LMAN,Liberty Leisure Limited / Bramcote Leisure Centre,Purchase of Miscellaneous Items for Sale,3160,Other Supplies & Services,OtherSS,05/11/2021,V006291,98,Swim England Trading Ltd,628.92,BAC004102
Liberty Leisure Limited,http://statistics.data.gov.uk/id/local-authority/37UD,Leisure,LEIS,Leisure Management,LMAN,Liberty Leisure Limited / Bramcote Leisure Centre,Purchase of Miscellaneous Items for Sale,3160,Other Supplies & Services,OtherSS,05/11/2021,V006291,98,Swim England Trading Ltd,628.92,BAC004102
Liberty Leisure Limited,http://statistics.data.gov.uk/id/local-authority/37UD,Leisure,LEIS,Leisure Management,LMAN,Liberty Leisure Limited / Bramcote Leisure Centre,Purchase of Miscellaneous Items for Sale,3160,Other Supplies & Services,OtherSS,05/11/2021,V006291,98,Swim England Trading Ltd,628.92,BAC004102
Liberty Leisure Limited,http://statistics.data.gov.uk/id/local-authority/37UD,Leisure,LEIS,Leisure Management,LMAN,Liberty Leisure Limited / Bramcote Leisure Centre,Purchase of Miscellaneous Items for Sale,3160,Other Supplies & Services,OtherSS,05/11/2021,V006291,98,Swim England Trading Ltd,628.92,BAC004102
Liberty Leisure Limited,http://statistics.data.gov.uk/id/local-authority/37UD,Leisure,LEIS,Leisure Management,LMAN,Liberty Leisure Limited / Bramcote Leisure Centre,Repairs & Maintenance,1000,Central Pot,Central,05/11/2021,V006274,253.84,Technogym UK Ltd,322.61,BAC004107
Liberty Leisure Limited,http://statistics.data.gov.uk/id/local-authority/37UD,Leisure,LEIS,Leisure Management,LMAN,Liberty Leisure Limited / Bramcote Leisure Centre,Repairs & Maintenance,1000,Central Pot,Central,05/11/2021,V006274,15,Technogym UK Ltd,322.61,BAC004107
Liberty Leisure Limited,http://statistics.data.gov.uk/id/local-authority/37UD,Leisure,LEIS,Leisure Management,LMAN,Liberty Leisure Limited / Bramcote Leisure Centre,Gas,1320,Utilities,Utility,05/11/2021,V006256,3216.89,TotalEnergies Gas & Power Ltd,3860.27,BAC004113
Liberty Leisure Limited,http://statistics.data.gov.uk/id/local-authority/37UD,Leisure,LEIS,Leisure Management,LMAN,Liberty Leisure Limited / Bramcote Leisure Centre,Water Charges,1410,Utilities,Utility,05/11/2021,V006293,1317.79,Waterplus,4781.85,BAC004118
Liberty Leisure Limited,http://statistics.data.gov.uk/id/local-authority/37UD,Leisure,LEIS,Leisure Management,LMAN,Liberty Leisure Limited / Bramcote Leisure Centre,Sewerage Charges,1420,Utilities,Utility,05/11/2021,V006271,3464.06,Waterplus,4781.85,BAC004118
Liberty Leisure Limited,http://statistics.data.gov.uk/id/local-authority/37UD,Leisure,LEIS,Leisure Management,LMAN,Liberty Leisure Limited / Kimberley Leisure Centre,Repairs & Maintenance,1000,Central Pot,Central,12/11/2021,V006329,300,Alpha Drain Services Ltd,360,BAC004121
Liberty Leisure Limited,http://statistics.data.gov.uk/id/local-authority/37UD,Leisure,LEIS,Leisure Management,LMAN,Liberty Leisure Limited / Chilwell Olympia,Vending Provisions  - Purchase,3204,Catering,Cat,12/11/2021,V006309,30.57,Automatic Retailing northern Ltd,1884.58,BAC004142
Liberty Leisure Limited,http://statistics.data.gov.uk/id/local-authority/37UD,Leisure,LEIS,Leisure Management,LMAN,Liberty Leisure Limited / Chilwell Olympia,Vending Provisions  - Purchase,3204,Catering,Cat,12/11/2021,V006309,497.44,Automatic Retailing northern Ltd,1884.58,BAC004142
Liberty Leisure Limited,http://statistics.data.gov.uk/id/local-authority/37UD,Leisure,LEIS,Leisure Management,LMAN,Liberty Leisure Limited / Chilwell Olympia,Vending Provisions  - Purchase,3204,Catering,Cat,12/11/2021,V006310,30.57,Automatic Retailing northern Ltd,1884.58,BAC004142
Liberty Leisure Limited,http://statistics.data.gov.uk/id/local-authority/37UD,Leisure,LEIS,Leisure Management,LMAN,Liberty Leisure Limited / Chilwell Olympia,Vending Provisions  - Purchase,3204,Catering,Cat,12/11/2021,V006310,504.41,Automatic Retailing northern Ltd,1884.58,BAC004142
Liberty Leisure Limited,http://statistics.data.gov.uk/id/local-authority/37UD,Leisure,LEIS,Leisure Management,LMAN,Liberty Leisure Limited / Kimberley Leisure Centre,Vending Provisions  - Purchase,3204,Catering,Cat,12/11/2021,V006287,44.72,Automatic Retailing northern Ltd,1884.58,BAC004142
Liberty Leisure Limited,http://statistics.data.gov.uk/id/local-authority/37UD,Leisure,LEIS,Leisure Management,LMAN,Liberty Leisure Limited / Kimberley Leisure Centre,Vending Provisions  - Purchase,3204,Catering,Cat,12/11/2021,V006287,480.42,Automatic Retailing northern Ltd,1884.58,BAC004142
Liberty Leisure Limited,http://statistics.data.gov.uk/id/local-authority/37UD,Leisure,LEIS,Leisure Management,LMAN,Liberty Leisure Limited / Kimberley Leisure Centre,Uniforms,3221,Other Supplies & Services,OtherSS,12/11/2021,V006315,38,Corporate Trends,2469.24,BAC004132
Liberty Leisure Limited,http://statistics.data.gov.uk/id/local-authority/37UD,Leisure,LEIS,Leisure Management,LMAN,Liberty Leisure Limited / Kimberley Leisure Centre,Uniforms,3221,Other Supplies & Services,OtherSS,12/11/2021,V006316,64,Corporate Trends,2469.24,BAC004132
Liberty Leisure Limited,http://statistics.data.gov.uk/id/local-authority/37UD,Leisure,LEIS,Leisure Management,LMAN,Liberty Leisure Limited / Kimberley Leisure Centre,Uniforms,3221,Other Supplies & Services,OtherSS,12/11/2021,V006312,381,Corporate Trends,2469.24,BAC004132
Liberty Leisure Limited,http://statistics.data.gov.uk/id/local-authority/37UD,Leisure,LEIS,Leisure Management,LMAN,Liberty Leisure Limited / Kimberley Leisure Centre,Uniforms,3221,Other Supplies & Services,OtherSS,12/11/2021,V006322,77.7,Corporate Trends,2469.24,BAC004132
Liberty Leisure Limited,http://statistics.data.gov.uk/id/local-authority/37UD,Leisure,LEIS,Leisure Management,LMAN,Liberty Leisure Limited / Kimberley Leisure Centre,Uniforms,3221,Other Supplies & Services,OtherSS,12/11/2021,V006313,558,Corporate Trends,2469.24,BAC004132
Liberty Leisure Limited,http://statistics.data.gov.uk/id/local-authority/37UD,Leisure,LEIS,Leisure Management,LMAN,Liberty Leisure Limited / Kimberley Leisure Centre,Uniforms,3221,Other Supplies & Services,OtherSS,12/11/2021,V006321,38,Corporate Trends,2469.24,BAC004132
Liberty Leisure Limited,http://statistics.data.gov.uk/id/local-authority/37UD,Leisure,LEIS,Leisure Management,LMAN,Liberty Leisure Limited / Kimberley Leisure Centre,Uniforms,3221,Other Supplies & Services,OtherSS,12/11/2021,V006311,901,Corporate Trends,2469.24,BAC004132
Liberty Leisure Limited,http://statistics.data.gov.uk/id/local-authority/37UD,Leisure,LEIS,Leisure Management,LMAN,Liberty Leisure Limited / Bramcote Leisure Centre,Chemicals,3152,Other Supplies & Services,OtherSS,12/11/2021,V006317,748,Gaffey Technical Services,897.6,BAC004124
Liberty Leisure Limited,http://statistics.data.gov.uk/id/local-authority/37UD,Leisure,LEIS,Leisure Management,LMAN,Liberty Leisure Limited / Kimberley Leisure Centre,Repairs & Maintenance,1000,Central Pot,Central,12/11/2021,V006290,275,Geoff Green Joinery,330,BAC004130
Liberty Leisure Limited,http://statistics.data.gov.uk/id/local-authority/37UD,Leisure,LEIS,Leisure Management,LMAN,Liberty Leisure Limited / Bramcote Leisure Centre,Cleaning Materials,1510,Other Prem,OthPrem,12/11/2021,V006302,29.2,Mark-Douglas Industrial Supplies Limited,791.46,BAC004131
Liberty Leisure Limited,http://statistics.data.gov.uk/id/local-authority/37UD,Leisure,LEIS,Leisure Management,LMAN,Liberty Leisure Limited / Bramcote Leisure Centre,Cleaning Materials,1510,Other Prem,OthPrem,12/11/2021,V006302,18.08,Mark-Douglas Industrial Supplies Limited,791.46,BAC004131
Liberty Leisure Limited,http://statistics.data.gov.uk/id/local-authority/37UD,Leisure,LEIS,Leisure Management,LMAN,Liberty Leisure Limited / Bramcote Leisure Centre,Cleaning Materials,1510,Other Prem,OthPrem,12/11/2021,V006302,37.44,Mark-Douglas Industrial Supplies Limited,791.46,BAC004131
Liberty Leisure Limited,http://statistics.data.gov.uk/id/local-authority/37UD,Leisure,LEIS,Leisure Management,LMAN,Liberty Leisure Limited / Bramcote Leisure Centre,Cleaning Materials,1510,Other Prem,OthPrem,12/11/2021,V006302,17,Mark-Douglas Industrial Supplies Limited,791.46,BAC004131
Liberty Leisure Limited,http://statistics.data.gov.uk/id/local-authority/37UD,Leisure,LEIS,Leisure Management,LMAN,Liberty Leisure Limited / Bramcote Leisure Centre,Cleaning Materials,1510,Other Prem,OthPrem,12/11/2021,V006302,60.88,Mark-Douglas Industrial Supplies Limited,791.46,BAC004131
Liberty Leisure Limited,http://statistics.data.gov.uk/id/local-authority/37UD,Leisure,LEIS,Leisure Management,LMAN,Liberty Leisure Limited / Bramcote Leisure Centre,Cleaning Materials,1510,Other Prem,OthPrem,12/11/2021,V006302,36.84,Mark-Douglas Industrial Supplies Limited,791.46,BAC004131
Liberty Leisure Limited,http://statistics.data.gov.uk/id/local-authority/37UD,Leisure,LEIS,Leisure Management,LMAN,Liberty Leisure Limited / Bramcote Leisure Centre,Cleaning Materials,1510,Other Prem,OthPrem,12/11/2021,V006302,2.88,Mark-Douglas Industrial Supplies Limited,791.46,BAC004131
Liberty Leisure Limited,http://statistics.data.gov.uk/id/local-authority/37UD,Leisure,LEIS,Leisure Management,LMAN,Liberty Leisure Limited / Bramcote Leisure Centre,Cleaning Materials,1510,Other Prem,OthPrem,12/11/2021,V006302,4.5,Mark-Douglas Industrial Supplies Limited,791.46,BAC004131
Liberty Leisure Limited,http://statistics.data.gov.uk/id/local-authority/37UD,Leisure,LEIS,Leisure Management,LMAN,Liberty Leisure Limited / Bramcote Leisure Centre,Cleaning Materials,1510,Other Prem,OthPrem,12/11/2021,V006302,86,Mark-Douglas Industrial Supplies Limited,791.46,BAC004131
Liberty Leisure Limited,http://statistics.data.gov.uk/id/local-authority/37UD,Leisure,LEIS,Leisure Management,LMAN,Liberty Leisure Limited / Kimberley Leisure Centre,Cleaning Materials,1510,Other Prem,OthPrem,12/11/2021,V006304,366.72,Mark-Douglas Industrial Supplies Limited,791.46,BAC004131
Liberty Leisure Limited,http://statistics.data.gov.uk/id/local-authority/37UD,Leisure,LEIS,Leisure Management,LMAN,Liberty Leisure Limited / Bramcote Leisure Centre,Annual Projects Contingency,3710,Other Supplies & Services,OtherSS,12/11/2021,V006332,8493,Rijo 42 Machines Ltd,10191.6,BAC004147
Liberty Leisure Limited,http://statistics.data.gov.uk/id/local-authority/37UD,Leisure,LEIS,Leisure Management,LMAN,Liberty Leisure Limited / Kimberley Leisure Centre,Repairs & Maintenance,1000,Central Pot,Central,12/11/2021,V006279,444,Slater Electrical Serv Limited,604.8,BAC004127
Liberty Leisure Limited,http://statistics.data.gov.uk/id/local-authority/37UD,Leisure,LEIS,Leisure Management,LMAN,Liberty Leisure Limited / Kimberley Leisure Centre,Repairs & Maintenance,1000,Central Pot,Central,12/11/2021,V006279,60,Slater Electrical Serv Limited,604.8,BAC004127
Liberty Leisure Limited,http://statistics.data.gov.uk/id/local-authority/37UD,Culture and Heritage,CULT,Events,LEVE,Liberty Leisure Limited / Events,Promotion of The Arts,3066,Office Supplies,Offsup,12/11/2021,V006300,110,Targettip T/A Phase,322.8,BAC004126
Liberty Leisure Limited,http://statistics.data.gov.uk/id/local-authority/37UD,Culture and Heritage,CULT,Events,LEVE,Liberty Leisure Limited / Events,Promotion of The Arts,3066,Office Supplies,Offsup,12/11/2021,V006299,159,Targettip T/A Phase,322.8,BAC004126
Liberty Leisure Limited,http://statistics.data.gov.uk/id/local-authority/37UD,Leisure,LEIS,Leisure Management,LMAN,Liberty Leisure Limited / Kimberley Leisure Centre,Repairs & Maintenance,1000,Central Pot,Central,12/11/2021,V006327,37.53,Technogym UK Ltd,1602.78,BAC004129
Liberty Leisure Limited,http://statistics.data.gov.uk/id/local-authority/37UD,Leisure,LEIS,Leisure Management,LMAN,Liberty Leisure Limited / Kimberley Leisure Centre,Repairs & Maintenance,1000,Central Pot,Central,12/11/2021,V006324,41.38,Technogym UK Ltd,1602.78,BAC004129
Liberty Leisure Limited,http://statistics.data.gov.uk/id/local-authority/37UD,Leisure,LEIS,Leisure Management,LMAN,Liberty Leisure Limited / Kimberley Leisure Centre,Repairs & Maintenance,1000,Central Pot,Central,12/11/2021,V006323,123,Technogym UK Ltd,1602.78,BAC004129
Liberty Leisure Limited,http://statistics.data.gov.uk/id/local-authority/37UD,Leisure,LEIS,Leisure Management,LMAN,Liberty Leisure Limited / Kimberley Leisure Centre,Repairs & Maintenance,1000,Central Pot,Central,12/11/2021,V006324,123,Technogym UK Ltd,1602.78,BAC004129
Liberty Leisure Limited,http://statistics.data.gov.uk/id/local-authority/37UD,Leisure,LEIS,Leisure Management,LMAN,Liberty Leisure Limited / Kimberley Leisure Centre,Repairs & Maintenance,1000,Central Pot,Central,12/11/2021,V006323,41.38,Technogym UK Ltd,1602.78,BAC004129
Liberty Leisure Limited,http://statistics.data.gov.uk/id/local-authority/37UD,Leisure,LEIS,Leisure Management,LMAN,Liberty Leisure Limited / Kimberley Leisure Centre,Repairs & Maintenance,1000,Central Pot,Central,12/11/2021,V006323,76.61,Technogym UK Ltd,1602.78,BAC004129
Liberty Leisure Limited,http://statistics.data.gov.uk/id/local-authority/37UD,Leisure,LEIS,Leisure Management,LMAN,Liberty Leisure Limited / Kimberley Leisure Centre,Repairs & Maintenance,1000,Central Pot,Central,12/11/2021,V006325,15,Technogym UK Ltd,1602.78,BAC004129
Liberty Leisure Limited,http://statistics.data.gov.uk/id/local-authority/37UD,Leisure,LEIS,Leisure Management,LMAN,Liberty Leisure Limited / Kimberley Leisure Centre,Repairs & Maintenance,1000,Central Pot,Central,12/11/2021,V006326,15,Technogym UK Ltd,1602.78,BAC004129
Liberty Leisure Limited,http://statistics.data.gov.uk/id/local-authority/37UD,Leisure,LEIS,Leisure Management,LMAN,Liberty Leisure Limited / Kimberley Leisure Centre,Repairs & Maintenance,1000,Central Pot,Central,12/11/2021,V006327,15,Technogym UK Ltd,1602.78,BAC004129
Liberty Leisure Limited,http://statistics.data.gov.uk/id/local-authority/37UD,Leisure,LEIS,Leisure Management,LMAN,Liberty Leisure Limited / Kimberley Leisure Centre,Repairs & Maintenance,1000,Central Pot,Central,12/11/2021,V006324,171.36,Technogym UK Ltd,1602.78,BAC004129
Liberty Leisure Limited,http://statistics.data.gov.uk/id/local-authority/37UD,Leisure,LEIS,Leisure Management,LMAN,Liberty Leisure Limited / Kimberley Leisure Centre,Repairs & Maintenance,1000,Central Pot,Central,12/11/2021,V006324,193.58,Technogym UK Ltd,1602.78,BAC004129
Liberty Leisure Limited,http://statistics.data.gov.uk/id/local-authority/37UD,Leisure,LEIS,Leisure Management,LMAN,Liberty Leisure Limited / Kimberley Leisure Centre,Repairs & Maintenance,1000,Central Pot,Central,12/11/2021,V006326,17.28,Technogym UK Ltd,1602.78,BAC004129
Liberty Leisure Limited,http://statistics.data.gov.uk/id/local-authority/37UD,Leisure,LEIS,Leisure Management,LMAN,Liberty Leisure Limited / Kimberley Leisure Centre,Repairs & Maintenance,1000,Central Pot,Central,12/11/2021,V006326,19.36,Technogym UK Ltd,1602.78,BAC004129
Liberty Leisure Limited,http://statistics.data.gov.uk/id/local-authority/37UD,Leisure,LEIS,Leisure Management,LMAN,Liberty Leisure Limited / Kimberley Leisure Centre,Repairs & Maintenance,1000,Central Pot,Central,12/11/2021,V006326,14.64,Technogym UK Ltd,1602.78,BAC004129
Liberty Leisure Limited,http://statistics.data.gov.uk/id/local-authority/37UD,Leisure,LEIS,Leisure Management,LMAN,Liberty Leisure Limited / Kimberley Leisure Centre,Repairs & Maintenance,1000,Central Pot,Central,12/11/2021,V006325,303.4,Technogym UK Ltd,1602.78,BAC004129
Liberty Leisure Limited,http://statistics.data.gov.uk/id/local-authority/37UD,Leisure,LEIS,Leisure Management,LMAN,Liberty Leisure Limited / Kimberley Leisure Centre,Repairs & Maintenance,1000,Central Pot,Central,12/11/2021,V006327,126.92,Technogym UK Ltd,1602.78,BAC004129
Liberty Leisure Limited,http://statistics.data.gov.uk/id/local-authority/37UD,Leisure,LEIS,Leisure Management,LMAN,Liberty Leisure Limited / Kimberley Leisure Centre,Repairs & Maintenance,1000,Central Pot,Central,12/11/2021,V006326,1.2,Technogym UK Ltd,1602.78,BAC004129
Liberty Leisure Limited,http://statistics.data.gov.uk/id/local-authority/37UD,Leisure,LEIS,Leisure Management,LMAN,Liberty Leisure Limited / Liberty Leisure Development,Advertising,3412,Advertising,Advert,12/11/2021,V006294,280,Three65 Media Solutions Ltd,280,BAC004144
Liberty Leisure Limited,http://statistics.data.gov.uk/id/local-authority/37UD,Leisure,LEIS,Leisure Management,LMAN,Liberty Leisure Limited / Kimberley Leisure Centre,Service Contracts,3056,Other Supplies & Services,OtherSS,12/11/2021,V006278,97.5,Tramp Tech,633.18,BAC004138
Liberty Leisure Limited,http://statistics.data.gov.uk/id/local-authority/37UD,Leisure,LEIS,Leisure Management,LMAN,Liberty Leisure Limited / Kimberley Leisure Centre,Service Contracts,3056,Other Supplies & Services,OtherSS,12/11/2021,V006278,10.15,Tramp Tech,633.18,BAC004138
Liberty Leisure Limited,http://statistics.data.gov.uk/id/local-authority/37UD,Leisure,LEIS,Leisure Management,LMAN,Liberty Leisure Limited / Kimberley Leisure Centre,Service Contracts,3056,Other Supplies & Services,OtherSS,12/11/2021,V006278,150,Tramp Tech,633.18,BAC004138
Liberty Leisure Limited,http://statistics.data.gov.uk/id/local-authority/37UD,Leisure,LEIS,Leisure Management,LMAN,Liberty Leisure Limited / Kimberley Leisure Centre,Service Contracts,3056,Other Supplies & Services,OtherSS,12/11/2021,V006278,270,Tramp Tech,633.18,BAC004138
Liberty Leisure Limited,http://statistics.data.gov.uk/id/local-authority/37UD,Leisure,LEIS,Leisure Management,LMAN,Liberty Leisure Limited / Kimberley Leisure Centre,Licences,3613,Other Supplies & Services,OtherSS,12/11/2021,V006307,130,Virgin Media Business Ltd,254.1,BAC004145
Liberty Leisure Limited,http://statistics.data.gov.uk/id/local-authority/37UD,Leisure,LEIS,Leisure Management,LMAN,Liberty Leisure Limited / Kimberley Leisure Centre,Licences,3613,Other Supplies & Services,OtherSS,12/11/2021,V006292,81.75,Virgin Media Business Ltd,254.1,BAC004145
Liberty Leisure Limited,http://statistics.data.gov.uk/id/local-authority/37UD,Leisure,LEIS,Leisure Management,LMAN,Liberty Leisure Limited / Bramcote Leisure Centre,Purchase of Miscellaneous Items for Sale,3160,Other Supplies & Services,OtherSS,12/11/2021,V006319,219.25,ZOGGS International Limited,508.5,BAC004141
Liberty Leisure Limited,http://statistics.data.gov.uk/id/local-authority/37UD,Leisure,LEIS,Leisure Management,LMAN,Liberty Leisure Limited / Bramcote Leisure Centre,Purchase of Miscellaneous Items for Sale,3160,Other Supplies & Services,OtherSS,12/11/2021,V006320,-97.5,ZOGGS International Limited,508.5,BAC004141
Liberty Leisure Limited,http://statistics.data.gov.uk/id/local-authority/37UD,Leisure,LEIS,Leisure Management,LMAN,Liberty Leisure Limited / Bramcote Leisure Centre,Purchase of Miscellaneous Items for Sale,3160,Other Supplies & Services,OtherSS,12/11/2021,V006318,14.4,ZOGGS International Limited,508.5,BAC004141
Liberty Leisure Limited,http://statistics.data.gov.uk/id/local-authority/37UD,Leisure,LEIS,Leisure Management,LMAN,Liberty Leisure Limited / Bramcote Leisure Centre,Purchase of Miscellaneous Items for Sale,3160,Other Supplies & Services,OtherSS,12/11/2021,V006318,290,ZOGGS International Limited,508.5,BAC004141
Liberty Leisure Limited,http://statistics.data.gov.uk/id/local-authority/37UD,Leisure,LEIS,Leisure Management,LMAN,Liberty Leisure Limited / Chilwell Olympia,Repairs & Maintenance,1000,Central Pot,Central,19/11/2021,V006344,2222,Attenborough Industrial Doors,2666.4,BAC004149
Liberty Leisure Limited,http://statistics.data.gov.uk/id/local-authority/37UD,Culture and Heritage,CULT,Events,LEVE,Liberty Leisure Limited / DHL Museum,Promotion of The Arts,3066,Office Supplies,Offsup,19/11/2021,V006337,210,Broxtowe Borough Council,678,BAC004150
Liberty Leisure Limited,http://statistics.data.gov.uk/id/local-authority/37UD,Culture and Heritage,CULT,Events,LEVE,Liberty Leisure Limited / DHL Museum,Promotion of The Arts,3066,Office Supplies,Offsup,19/11/2021,V006339,165,Broxtowe Borough Council,678,BAC004150
Liberty Leisure Limited,http://statistics.data.gov.uk/id/local-authority/37UD,Culture and Heritage,CULT,Events,LEVE,Liberty Leisure Limited / DHL Museum,Promotion of The Arts,3066,Office Supplies,Offsup,19/11/2021,V006338,190,Broxtowe Borough Council,678,BAC004150
Liberty Leisure Limited,http://statistics.data.gov.uk/id/local-authority/37UD,Leisure,LEIS,Leisure Management,LMAN,Liberty Leisure Limited / Kimberley Leisure Centre,Chemicals,3152,Other Supplies & Services,OtherSS,19/11/2021,V006333,787.46,Cryoservice Limited,944.95,BAC004151
Liberty Leisure Limited,http://statistics.data.gov.uk/id/local-authority/37UD,Leisure,LEIS,Leisure Management,LMAN,Liberty Leisure Limited / Bramcote Leisure Centre,Repairs & Maintenance,1000,Central Pot,Central,19/11/2021,V006348,1342.3,D and J Selby,1610.76,BAC004161
Liberty Leisure Limited,http://statistics.data.gov.uk/id/local-authority/37UD,Leisure,LEIS,Leisure Management,LMAN,Liberty Leisure Limited / Bramcote Leisure Centre,Sports Equipment,3002,Equipment,Equip,19/11/2021,V006350,368.85,FitServe Ltd,442.62,BAC004158
Liberty Leisure Limited,http://statistics.data.gov.uk/id/local-authority/37UD,Leisure,LEIS,Leisure Management,LMAN,Liberty Leisure Limited / Kimberley Leisure Centre,Service Contracts,3056,Other Supplies & Services,OtherSS,19/11/2021,V006354,1512,Kohler Mira Ltd,1814.4,BAC004163
Liberty Leisure Limited,http://statistics.data.gov.uk/id/local-authority/37UD,Leisure,LEIS,Leisure Management,LMAN,Liberty Leisure Limited / Bramcote Leisure Centre,Service Contracts,3056,Other Supplies & Services,OtherSS,19/11/2021,V006349,284.4,Local Vending,341.28,BAC004155
Liberty Leisure Limited,http://statistics.data.gov.uk/id/local-authority/37UD,Leisure,LEIS,Leisure Management,LMAN,Liberty Leisure Limited / Bramcote Leisure Centre,Licences,3613,Other Supplies & Services,OtherSS,19/11/2021,V006347,326.13,Motion Picture Licensing Company,782.72,BAC004162
Liberty Leisure Limited,http://statistics.data.gov.uk/id/local-authority/37UD,Leisure,LEIS,Leisure Management,LMAN,Liberty Leisure Limited / Chilwell Olympia,Licences,3613,Other Supplies & Services,OtherSS,19/11/2021,V006334,326.13,Motion Picture Licensing Company,782.72,BAC004162
Liberty Leisure Limited,http://statistics.data.gov.uk/id/local-authority/37UD,Leisure,LEIS,Leisure Management,LMAN,Liberty Leisure Limited / Bramcote Leisure Centre,Purchase of Miscellaneous Items for Sale,3160,Other Supplies & Services,OtherSS,19/11/2021,V006345,13.5,Swim England Trading Ltd,1678.8,BAC004148
Liberty Leisure Limited,http://statistics.data.gov.uk/id/local-authority/37UD,Leisure,LEIS,Leisure Management,LMAN,Liberty Leisure Limited / Bramcote Leisure Centre,Purchase of Miscellaneous Items for Sale,3160,Other Supplies & Services,OtherSS,19/11/2021,V006346,13.5,Swim England Trading Ltd,1678.8,BAC004148
Liberty Leisure Limited,http://statistics.data.gov.uk/id/local-authority/37UD,Leisure,LEIS,Leisure Management,LMAN,Liberty Leisure Limited / Bramcote Leisure Centre,Purchase of Miscellaneous Items for Sale,3160,Other Supplies & Services,OtherSS,19/11/2021,V006346,98,Swim England Trading Ltd,1678.8,BAC004148
Liberty Leisure Limited,http://statistics.data.gov.uk/id/local-authority/37UD,Leisure,LEIS,Leisure Management,LMAN,Liberty Leisure Limited / Bramcote Leisure Centre,Purchase of Miscellaneous Items for Sale,3160,Other Supplies & Services,OtherSS,19/11/2021,V006346,98,Swim England Trading Ltd,1678.8,BAC004148
Liberty Leisure Limited,http://statistics.data.gov.uk/id/local-authority/37UD,Leisure,LEIS,Leisure Management,LMAN,Liberty Leisure Limited / Bramcote Leisure Centre,Purchase of Miscellaneous Items for Sale,3160,Other Supplies & Services,OtherSS,19/11/2021,V006346,98,Swim England Trading Ltd,1678.8,BAC004148
Liberty Leisure Limited,http://statistics.data.gov.uk/id/local-authority/37UD,Leisure,LEIS,Leisure Management,LMAN,Liberty Leisure Limited / Bramcote Leisure Centre,Purchase of Miscellaneous Items for Sale,3160,Other Supplies & Services,OtherSS,19/11/2021,V006345,98,Swim England Trading Ltd,1678.8,BAC004148
Liberty Leisure Limited,http://statistics.data.gov.uk/id/local-authority/37UD,Leisure,LEIS,Leisure Management,LMAN,Liberty Leisure Limited / Bramcote Leisure Centre,Purchase of Miscellaneous Items for Sale,3160,Other Supplies & Services,OtherSS,19/11/2021,V006346,98,Swim England Trading Ltd,1678.8,BAC004148
Liberty Leisure Limited,http://statistics.data.gov.uk/id/local-authority/37UD,Leisure,LEIS,Leisure Management,LMAN,Liberty Leisure Limited / Bramcote Leisure Centre,Purchase of Miscellaneous Items for Sale,3160,Other Supplies & Services,OtherSS,19/11/2021,V006345,98,Swim England Trading Ltd,1678.8,BAC004148
Liberty Leisure Limited,http://statistics.data.gov.uk/id/local-authority/37UD,Leisure,LEIS,Leisure Management,LMAN,Liberty Leisure Limited / Bramcote Leisure Centre,Purchase of Miscellaneous Items for Sale,3160,Other Supplies & Services,OtherSS,19/11/2021,V006346,98,Swim England Trading Ltd,1678.8,BAC004148
Liberty Leisure Limited,http://statistics.data.gov.uk/id/local-authority/37UD,Leisure,LEIS,Leisure Management,LMAN,Liberty Leisure Limited / Bramcote Leisure Centre,Purchase of Miscellaneous Items for Sale,3160,Other Supplies & Services,OtherSS,19/11/2021,V006345,98,Swim England Trading Ltd,1678.8,BAC004148
Liberty Leisure Limited,http://statistics.data.gov.uk/id/local-authority/37UD,Leisure,LEIS,Leisure Management,LMAN,Liberty Leisure Limited / Bramcote Leisure Centre,Purchase of Miscellaneous Items for Sale,3160,Other Supplies & Services,OtherSS,19/11/2021,V006345,98,Swim England Trading Ltd,1678.8,BAC004148
Liberty Leisure Limited,http://statistics.data.gov.uk/id/local-authority/37UD,Leisure,LEIS,Leisure Management,LMAN,Liberty Leisure Limited / Bramcote Leisure Centre,Purchase of Miscellaneous Items for Sale,3160,Other Supplies & Services,OtherSS,19/11/2021,V006346,98,Swim England Trading Ltd,1678.8,BAC004148
Liberty Leisure Limited,http://statistics.data.gov.uk/id/local-authority/37UD,Leisure,LEIS,Leisure Management,LMAN,Liberty Leisure Limited / Bramcote Leisure Centre,Purchase of Miscellaneous Items for Sale,3160,Other Supplies & Services,OtherSS,19/11/2021,V006346,98,Swim England Trading Ltd,1678.8,BAC004148
Liberty Leisure Limited,http://statistics.data.gov.uk/id/local-authority/37UD,Leisure,LEIS,Leisure Management,LMAN,Liberty Leisure Limited / Bramcote Leisure Centre,Purchase of Miscellaneous Items for Sale,3160,Other Supplies & Services,OtherSS,19/11/2021,V006345,98,Swim England Trading Ltd,1678.8,BAC004148
Liberty Leisure Limited,http://statistics.data.gov.uk/id/local-authority/37UD,Leisure,LEIS,Leisure Management,LMAN,Liberty Leisure Limited / Bramcote Leisure Centre,Purchase of Miscellaneous Items for Sale,3160,Other Supplies & Services,OtherSS,19/11/2021,V006345,98,Swim England Trading Ltd,1678.8,BAC004148
Liberty Leisure Limited,http://statistics.data.gov.uk/id/local-authority/37UD,Leisure,LEIS,Leisure Management,LMAN,Liberty Leisure Limited / Bramcote Leisure Centre,Purchase of Miscellaneous Items for Sale,3160,Other Supplies & Services,OtherSS,19/11/2021,V006345,98,Swim England Trading Ltd,1678.8,BAC004148
Liberty Leisure Limited,http://statistics.data.gov.uk/id/local-authority/37UD,Leisure,LEIS,Leisure Management,LMAN,Liberty Leisure Limited / Bramcote Leisure Centre,Repairs & Maintenance,1000,Central Pot,Central,19/11/2021,V006335,268.84,Technogym UK Ltd,456.76,BAC004153
Liberty Leisure Limited,http://statistics.data.gov.uk/id/local-authority/37UD,Leisure,LEIS,Leisure Management,LMAN,Liberty Leisure Limited / Bramcote Leisure Centre,Repairs & Maintenance,1000,Central Pot,Central,19/11/2021,V006336,111.79,Technogym UK Ltd,456.76,BAC004153
Liberty Leisure Limited,http://statistics.data.gov.uk/id/local-authority/37UD,Leisure,LEIS,Leisure Management,LMAN,Liberty Leisure Limited / Bramcote Leisure Centre,Electricity,1310,Utilities,Utility,19/11/2021,V006351,1402.31,TotalEnergies Gas & Power Ltd,11329.87,BAC004159
Liberty Leisure Limited,http://statistics.data.gov.uk/id/local-authority/37UD,Leisure,LEIS,Leisure Management,LMAN,Liberty Leisure Limited / Bramcote Leisure Centre,Gas,1320,Utilities,Utility,19/11/2021,V006352,3791.55,TotalEnergies Gas & Power Ltd,11329.87,BAC004159
Liberty Leisure Limited,http://statistics.data.gov.uk/id/local-authority/37UD,Leisure,LEIS,Leisure Management,LMAN,Liberty Leisure Limited / Kimberley Leisure Centre,Electricity,1310,Utilities,Utility,19/11/2021,V006356,4247.7,TotalEnergies Gas & Power Ltd,11329.87,BAC004159
Liberty Leisure Limited,http://statistics.data.gov.uk/id/local-authority/37UD,Leisure,LEIS,Leisure Management,LMAN,Liberty Leisure Limited / Chilwell Olympia,Repairs & Maintenance,1000,Central Pot,Central,19/11/2021,V006340,617.85,Tramp Tech,741.42,BAC004160
Liberty Leisure Limited,http://statistics.data.gov.uk/id/local-authority/37UD,Leisure,LEIS,Leisure Management,LMAN,Liberty Leisure Limited / Bramcote Leisure Centre,Chemicals,3152,Other Supplies & Services,OtherSS,19/11/2021,V006342,59.45,Univar Solutions BV,271.38,BAC004154
Liberty Leisure Limited,http://statistics.data.gov.uk/id/local-authority/37UD,Leisure,LEIS,Leisure Management,LMAN,Liberty Leisure Limited / Bramcote Leisure Centre,Chemicals,3152,Other Supplies & Services,OtherSS,19/11/2021,V006342,60.05,Univar Solutions BV,271.38,BAC004154
Liberty Leisure Limited,http://statistics.data.gov.uk/id/local-authority/37UD,Leisure,LEIS,Leisure Management,LMAN,Liberty Leisure Limited / Bramcote Leisure Centre,Chemicals,3152,Other Supplies & Services,OtherSS,19/11/2021,V006342,67.15,Univar Solutions BV,271.38,BAC004154
Liberty Leisure Limited,http://statistics.data.gov.uk/id/local-authority/37UD,Leisure,LEIS,Leisure Management,LMAN,Liberty Leisure Limited / Bramcote Leisure Centre,Chemicals,3152,Other Supplies & Services,OtherSS,19/11/2021,V006342,39.5,Univar Solutions BV,271.38,BAC004154
Liberty Leisure Limited,http://statistics.data.gov.uk/id/local-authority/37UD,Leisure,LEIS,Leisure Management,LMAN,Liberty Leisure Limited / Liberty Leisure Development,Licences,3613,Other Supplies & Services,OtherSS,19/11/2021,V006341,1274.14,Verifone,2167.29,BAC004165
Liberty Leisure Limited,http://statistics.data.gov.uk/id/local-authority/37UD,Leisure,LEIS,Leisure Management,LMAN,Liberty Leisure Limited / Liberty Leisure Development,Licences,3613,Other Supplies & Services,OtherSS,19/11/2021,V006341,531.93,Verifone,2167.29,BAC004165
Liberty Leisure Limited,http://statistics.data.gov.uk/id/local-authority/37UD,Leisure,LEIS,Leisure Management,LMAN,Liberty Leisure Limited / Bramcote Leisure Centre,Repairs & Maintenance,1000,Central Pot,Central,24/11/2021,V006274,-253.84,Technogym UK Ltd,-322.61,BAC004107
Liberty Leisure Limited,http://statistics.data.gov.uk/id/local-authority/37UD,Leisure,LEIS,Leisure Management,LMAN,Liberty Leisure Limited / Bramcote Leisure Centre,Repairs & Maintenance,1000,Central Pot,Central,24/11/2021,V006274,-15,Technogym UK Ltd,-322.61,BAC004107
Liberty Leisure Limited,http://statistics.data.gov.uk/id/local-authority/37UD,Leisure,LEIS,Leisure Management,LMAN,Liberty Leisure Limited / Bramcote Leisure Centre,Repairs & Maintenance,1000,Central Pot,Central,24/11/2021,V006335,-268.84,Technogym UK Ltd,-456.76,BAC004153
Liberty Leisure Limited,http://statistics.data.gov.uk/id/local-authority/37UD,Leisure,LEIS,Leisure Management,LMAN,Liberty Leisure Limited / Bramcote Leisure Centre,Repairs & Maintenance,1000,Central Pot,Central,24/11/2021,V006336,-111.79,Technogym UK Ltd,-456.76,BAC004153
Liberty Leisure Limited,http://statistics.data.gov.uk/id/local-authority/37UD,Leisure,LEIS,Leisure Management,LMAN,Liberty Leisure Limited / Kimberley Leisure Centre,Repairs & Maintenance,1000,Central Pot,Central,24/11/2021,V006327,-37.53,Technogym UK Ltd,-1602.78,BAC004129
Liberty Leisure Limited,http://statistics.data.gov.uk/id/local-authority/37UD,Leisure,LEIS,Leisure Management,LMAN,Liberty Leisure Limited / Kimberley Leisure Centre,Repairs & Maintenance,1000,Central Pot,Central,24/11/2021,V006324,-41.38,Technogym UK Ltd,-1602.78,BAC004129
Liberty Leisure Limited,http://statistics.data.gov.uk/id/local-authority/37UD,Leisure,LEIS,Leisure Management,LMAN,Liberty Leisure Limited / Kimberley Leisure Centre,Repairs & Maintenance,1000,Central Pot,Central,24/11/2021,V006323,-123,Technogym UK Ltd,-1602.78,BAC004129
Liberty Leisure Limited,http://statistics.data.gov.uk/id/local-authority/37UD,Leisure,LEIS,Leisure Management,LMAN,Liberty Leisure Limited / Kimberley Leisure Centre,Repairs & Maintenance,1000,Central Pot,Central,24/11/2021,V006324,-123,Technogym UK Ltd,-1602.78,BAC004129
Liberty Leisure Limited,http://statistics.data.gov.uk/id/local-authority/37UD,Leisure,LEIS,Leisure Management,LMAN,Liberty Leisure Limited / Kimberley Leisure Centre,Repairs & Maintenance,1000,Central Pot,Central,24/11/2021,V006323,-41.38,Technogym UK Ltd,-1602.78,BAC004129
Liberty Leisure Limited,http://statistics.data.gov.uk/id/local-authority/37UD,Leisure,LEIS,Leisure Management,LMAN,Liberty Leisure Limited / Kimberley Leisure Centre,Repairs & Maintenance,1000,Central Pot,Central,24/11/2021,V006323,-76.61,Technogym UK Ltd,-1602.78,BAC004129
Liberty Leisure Limited,http://statistics.data.gov.uk/id/local-authority/37UD,Leisure,LEIS,Leisure Management,LMAN,Liberty Leisure Limited / Kimberley Leisure Centre,Repairs & Maintenance,1000,Central Pot,Central,24/11/2021,V006325,-15,Technogym UK Ltd,-1602.78,BAC004129
Liberty Leisure Limited,http://statistics.data.gov.uk/id/local-authority/37UD,Leisure,LEIS,Leisure Management,LMAN,Liberty Leisure Limited / Kimberley Leisure Centre,Repairs & Maintenance,1000,Central Pot,Central,24/11/2021,V006326,-15,Technogym UK Ltd,-1602.78,BAC004129
Liberty Leisure Limited,http://statistics.data.gov.uk/id/local-authority/37UD,Leisure,LEIS,Leisure Management,LMAN,Liberty Leisure Limited / Kimberley Leisure Centre,Repairs & Maintenance,1000,Central Pot,Central,24/11/2021,V006327,-15,Technogym UK Ltd,-1602.78,BAC004129
Liberty Leisure Limited,http://statistics.data.gov.uk/id/local-authority/37UD,Leisure,LEIS,Leisure Management,LMAN,Liberty Leisure Limited / Kimberley Leisure Centre,Repairs & Maintenance,1000,Central Pot,Central,24/11/2021,V006324,-171.36,Technogym UK Ltd,-1602.78,BAC004129
Liberty Leisure Limited,http://statistics.data.gov.uk/id/local-authority/37UD,Leisure,LEIS,Leisure Management,LMAN,Liberty Leisure Limited / Kimberley Leisure Centre,Repairs & Maintenance,1000,Central Pot,Central,24/11/2021,V006324,-193.58,Technogym UK Ltd,-1602.78,BAC004129
Liberty Leisure Limited,http://statistics.data.gov.uk/id/local-authority/37UD,Leisure,LEIS,Leisure Management,LMAN,Liberty Leisure Limited / Kimberley Leisure Centre,Repairs & Maintenance,1000,Central Pot,Central,24/11/2021,V006326,-17.28,Technogym UK Ltd,-1602.78,BAC004129
Liberty Leisure Limited,http://statistics.data.gov.uk/id/local-authority/37UD,Leisure,LEIS,Leisure Management,LMAN,Liberty Leisure Limited / Kimberley Leisure Centre,Repairs & Maintenance,1000,Central Pot,Central,24/11/2021,V006326,-19.36,Technogym UK Ltd,-1602.78,BAC004129
Liberty Leisure Limited,http://statistics.data.gov.uk/id/local-authority/37UD,Leisure,LEIS,Leisure Management,LMAN,Liberty Leisure Limited / Kimberley Leisure Centre,Repairs & Maintenance,1000,Central Pot,Central,24/11/2021,V006326,-14.64,Technogym UK Ltd,-1602.78,BAC004129
Liberty Leisure Limited,http://statistics.data.gov.uk/id/local-authority/37UD,Leisure,LEIS,Leisure Management,LMAN,Liberty Leisure Limited / Kimberley Leisure Centre,Repairs & Maintenance,1000,Central Pot,Central,24/11/2021,V006325,-303.4,Technogym UK Ltd,-1602.78,BAC004129
Liberty Leisure Limited,http://statistics.data.gov.uk/id/local-authority/37UD,Leisure,LEIS,Leisure Management,LMAN,Liberty Leisure Limited / Kimberley Leisure Centre,Repairs & Maintenance,1000,Central Pot,Central,24/11/2021,V006327,-126.92,Technogym UK Ltd,-1602.78,BAC004129
Liberty Leisure Limited,http://statistics.data.gov.uk/id/local-authority/37UD,Leisure,LEIS,Leisure Management,LMAN,Liberty Leisure Limited / Kimberley Leisure Centre,Repairs & Maintenance,1000,Central Pot,Central,24/11/2021,V006326,-1.2,Technogym UK Ltd,-1602.78,BAC004129
Liberty Leisure Limited,http://statistics.data.gov.uk/id/local-authority/37UD,Leisure,LEIS,Leisure Management,LMAN,Liberty Leisure Limited / Bramcote Leisure Centre,Purchase of Miscellaneous Items for Sale,3160,Other Supplies & Services,OtherSS,24/11/2021,V006319,-219.25,ZOGGS International Limited,-508.5,BAC004141
Liberty Leisure Limited,http://statistics.data.gov.uk/id/local-authority/37UD,Leisure,LEIS,Leisure Management,LMAN,Liberty Leisure Limited / Bramcote Leisure Centre,Purchase of Miscellaneous Items for Sale,3160,Other Supplies & Services,OtherSS,24/11/2021,V006320,-97.5,ZOGGS International Limited,-508.5,BAC004141
Liberty Leisure Limited,http://statistics.data.gov.uk/id/local-authority/37UD,Leisure,LEIS,Leisure Management,LMAN,Liberty Leisure Limited / Bramcote Leisure Centre,Purchase of Miscellaneous Items for Sale,3160,Other Supplies & Services,OtherSS,24/11/2021,V006318,-290,ZOGGS International Limited,-508.5,BAC004141
Liberty Leisure Limited,http://statistics.data.gov.uk/id/local-authority/37UD,Leisure,LEIS,Leisure Management,LMAN,Liberty Leisure Limited / Bramcote Leisure Centre,Purchase of Miscellaneous Items for Sale,3160,Other Supplies & Services,OtherSS,24/11/2021,V006318,-14.4,ZOGGS International Limited,-508.5,BAC004141
Liberty Leisure Limited,http://statistics.data.gov.uk/id/local-authority/37UD,Culture and Heritage,CULT,Heritage,LHER,Liberty Leisure Limited / DHL Museum,Service Contracts,3056,Other Supplies & Services,OtherSS,26/11/2021,V006371,108.48,Broxtowe Borough Council,4543.58,BAC004166
Liberty Leisure Limited,http://statistics.data.gov.uk/id/local-authority/37UD,Culture and Heritage,CULT,Heritage,LHER,Liberty Leisure Limited / Liberty Leisure Development,Licences,3613,Other Supplies & Services,OtherSS,26/11/2021,V006369,97.5,Broxtowe Borough Council,4543.58,BAC004166
Liberty Leisure Limited,http://statistics.data.gov.uk/id/local-authority/37UD,Culture and Heritage,CULT,Events,LEVE,Liberty Leisure Limited / DHL Museum,Promotion of The Arts,3066,Office Supplies,Offsup,26/11/2021,V006370,6,Broxtowe Borough Council,4543.58,BAC004166
Liberty Leisure Limited,http://statistics.data.gov.uk/id/local-authority/37UD,Leisure,LEIS,Leisure Management,LMAN,Liberty Leisure Limited / Liberty Leisure Development,Licences,3613,Other Supplies & Services,OtherSS,26/11/2021,V006369,1536.99,Broxtowe Borough Council,4543.58,BAC004166
Liberty Leisure Limited,http://statistics.data.gov.uk/id/local-authority/37UD,Leisure,LEIS,Leisure Management,LMAN,Liberty Leisure Limited / Liberty Leisure Development,Licences,3613,Other Supplies & Services,OtherSS,26/11/2021,V006369,1410.84,Broxtowe Borough Council,4543.58,BAC004166
Liberty Leisure Limited,http://statistics.data.gov.uk/id/local-authority/37UD,Leisure,LEIS,Leisure Management,LMAN,Liberty Leisure Limited / Liberty Leisure Development,Licences,3613,Other Supplies & Services,OtherSS,26/11/2021,V006369,1382.57,Broxtowe Borough Council,4543.58,BAC004166
Liberty Leisure Limited,http://statistics.data.gov.uk/id/local-authority/37UD,Leisure,LEIS,Leisure Management,LMAN,Liberty Leisure Limited / Liberty Leisure Development,Licences,3613,Other Supplies & Services,OtherSS,26/11/2021,V006367,333.94,Omnico Group UK Ltd,8850.32,BAC004172
Liberty Leisure Limited,http://statistics.data.gov.uk/id/local-authority/37UD,Leisure,LEIS,Leisure Management,LMAN,Liberty Leisure Limited / Liberty Leisure Development,Licences,3613,Other Supplies & Services,OtherSS,26/11/2021,V006367,979.08,Omnico Group UK Ltd,8850.32,BAC004172
Liberty Leisure Limited,http://statistics.data.gov.uk/id/local-authority/37UD,Leisure,LEIS,Leisure Management,LMAN,Liberty Leisure Limited / Liberty Leisure Development,Licences,3613,Other Supplies & Services,OtherSS,26/11/2021,V006367,6062.25,Omnico Group UK Ltd,8850.32,BAC004172
Liberty Leisure Limited,http://statistics.data.gov.uk/id/local-authority/37UD,Culture and Heritage,CULT,Heritage,LHER,Liberty Leisure Limited / Liberty Leisure Development,Licences,3613,Other Supplies & Services,OtherSS,26/11/2021,V006362,901.83,PPL PRS LTD,32700.16,BAC004178
Liberty Leisure Limited,http://statistics.data.gov.uk/id/local-authority/37UD,Culture and Heritage,CULT,Events,LEVE,Liberty Leisure Limited / Liberty Leisure Development,Promotion of The Arts,3066,Office Supplies,Offsup,26/11/2021,V006362,3448.85,PPL PRS LTD,32700.16,BAC004178
Liberty Leisure Limited,http://statistics.data.gov.uk/id/local-authority/37UD,Leisure,LEIS,Leisure Management,LMAN,Liberty Leisure Limited / Liberty Leisure Development,Licences,3613,Other Supplies & Services,OtherSS,26/11/2021,V006362,12373.6,PPL PRS LTD,32700.16,BAC004178
Liberty Leisure Limited,http://statistics.data.gov.uk/id/local-authority/37UD,Leisure,LEIS,Leisure Management,LMAN,Liberty Leisure Limited / Liberty Leisure Development,Licences,3613,Other Supplies & Services,OtherSS,26/11/2021,V006362,4210.76,PPL PRS LTD,32700.16,BAC004178
Liberty Leisure Limited,http://statistics.data.gov.uk/id/local-authority/37UD,Leisure,LEIS,Leisure Management,LMAN,Liberty Leisure Limited / Liberty Leisure Development,Licences,3613,Other Supplies & Services,OtherSS,26/11/2021,V006362,6315.09,PPL PRS LTD,32700.16,BAC004178
Liberty Leisure Limited,http://statistics.data.gov.uk/id/local-authority/37UD,Culture and Heritage,CULT,Events,LEVE,Liberty Leisure Limited / DHL Museum,Promotion of The Arts,3066,Office Supplies,Offsup,26/11/2021,V006372,188.48,Showsec International Limited,1230.19,BAC004170
Liberty Leisure Limited,http://statistics.data.gov.uk/id/local-authority/37UD,Culture and Heritage,CULT,Events,LEVE,Liberty Leisure Limited / DHL Museum,Promotion of The Arts,3066,Office Supplies,Offsup,26/11/2021,V006372,125.65,Showsec International Limited,1230.19,BAC004170
Liberty Leisure Limited,http://statistics.data.gov.uk/id/local-authority/37UD,Culture and Heritage,CULT,Events,LEVE,Liberty Leisure Limited / DHL Museum,Promotion of The Arts,3066,Office Supplies,Offsup,26/11/2021,V006372,125.65,Showsec International Limited,1230.19,BAC004170
Liberty Leisure Limited,http://statistics.data.gov.uk/id/local-authority/37UD,Culture and Heritage,CULT,Events,LEVE,Liberty Leisure Limited / DHL Museum,Promotion of The Arts,3066,Office Supplies,Offsup,26/11/2021,V006372,125.65,Showsec International Limited,1230.19,BAC004170
Liberty Leisure Limited,http://statistics.data.gov.uk/id/local-authority/37UD,Culture and Heritage,CULT,Events,LEVE,Liberty Leisure Limited / DHL Museum,Promotion of The Arts,3066,Office Supplies,Offsup,26/11/2021,V006372,125.65,Showsec International Limited,1230.19,BAC004170
Liberty Leisure Limited,http://statistics.data.gov.uk/id/local-authority/37UD,Culture and Heritage,CULT,Events,LEVE,Liberty Leisure Limited / DHL Museum,Promotion of The Arts,3066,Office Supplies,Offsup,26/11/2021,V006372,125.65,Showsec International Limited,1230.19,BAC004170
Liberty Leisure Limited,http://statistics.data.gov.uk/id/local-authority/37UD,Culture and Heritage,CULT,Events,LEVE,Liberty Leisure Limited / DHL Museum,Promotion of The Arts,3066,Office Supplies,Offsup,26/11/2021,V006372,208.43,Showsec International Limited,1230.19,BAC004170
Liberty Leisure Limited,http://statistics.data.gov.uk/id/local-authority/37UD,Culture and Heritage,CULT,Events,LEVE,Liberty Leisure Limited / DHL Museum,Promotion of The Arts,3066,Office Supplies,Offsup,26/11/2021,V006372,0,Showsec International Limited,1230.19,BAC004170
Liberty Leisure Limited,http://statistics.data.gov.uk/id/local-authority/37UD,Leisure,LEIS,Leisure Management,LMAN,Liberty Leisure Limited / Bramcote Leisure Centre,Repairs & Maintenance,1000,Central Pot,Central,26/11/2021,V006274,253.84,Technogym UK Ltd,2382.15,BAC004169
Liberty Leisure Limited,http://statistics.data.gov.uk/id/local-authority/37UD,Leisure,LEIS,Leisure Management,LMAN,Liberty Leisure Limited / Bramcote Leisure Centre,Repairs & Maintenance,1000,Central Pot,Central,26/11/2021,V006335,268.84,Technogym UK Ltd,2382.15,BAC004169
Liberty Leisure Limited,http://statistics.data.gov.uk/id/local-authority/37UD,Leisure,LEIS,Leisure Management,LMAN,Liberty Leisure Limited / Bramcote Leisure Centre,Repairs & Maintenance,1000,Central Pot,Central,26/11/2021,V006274,15,Technogym UK Ltd,2382.15,BAC004169
Liberty Leisure Limited,http://statistics.data.gov.uk/id/local-authority/37UD,Leisure,LEIS,Leisure Management,LMAN,Liberty Leisure Limited / Bramcote Leisure Centre,Repairs & Maintenance,1000,Central Pot,Central,26/11/2021,V006336,111.79,Technogym UK Ltd,2382.15,BAC004169
Liberty Leisure Limited,http://statistics.data.gov.uk/id/local-authority/37UD,Leisure,LEIS,Leisure Management,LMAN,Liberty Leisure Limited / Kimberley Leisure Centre,Repairs & Maintenance,1000,Central Pot,Central,26/11/2021,V006327,37.53,Technogym UK Ltd,2382.15,BAC004169
Liberty Leisure Limited,http://statistics.data.gov.uk/id/local-authority/37UD,Leisure,LEIS,Leisure Management,LMAN,Liberty Leisure Limited / Kimberley Leisure Centre,Repairs & Maintenance,1000,Central Pot,Central,26/11/2021,V006324,41.38,Technogym UK Ltd,2382.15,BAC004169
Liberty Leisure Limited,http://statistics.data.gov.uk/id/local-authority/37UD,Leisure,LEIS,Leisure Management,LMAN,Liberty Leisure Limited / Kimberley Leisure Centre,Repairs & Maintenance,1000,Central Pot,Central,26/11/2021,V006323,123,Technogym UK Ltd,2382.15,BAC004169
Liberty Leisure Limited,http://statistics.data.gov.uk/id/local-authority/37UD,Leisure,LEIS,Leisure Management,LMAN,Liberty Leisure Limited / Kimberley Leisure Centre,Repairs & Maintenance,1000,Central Pot,Central,26/11/2021,V006324,123,Technogym UK Ltd,2382.15,BAC004169
Liberty Leisure Limited,http://statistics.data.gov.uk/id/local-authority/37UD,Leisure,LEIS,Leisure Management,LMAN,Liberty Leisure Limited / Kimberley Leisure Centre,Repairs & Maintenance,1000,Central Pot,Central,26/11/2021,V006323,41.38,Technogym UK Ltd,2382.15,BAC004169
Liberty Leisure Limited,http://statistics.data.gov.uk/id/local-authority/37UD,Leisure,LEIS,Leisure Management,LMAN,Liberty Leisure Limited / Kimberley Leisure Centre,Repairs & Maintenance,1000,Central Pot,Central,26/11/2021,V006323,76.61,Technogym UK Ltd,2382.15,BAC004169
Liberty Leisure Limited,http://statistics.data.gov.uk/id/local-authority/37UD,Leisure,LEIS,Leisure Management,LMAN,Liberty Leisure Limited / Kimberley Leisure Centre,Repairs & Maintenance,1000,Central Pot,Central,26/11/2021,V006325,15,Technogym UK Ltd,2382.15,BAC004169
Liberty Leisure Limited,http://statistics.data.gov.uk/id/local-authority/37UD,Leisure,LEIS,Leisure Management,LMAN,Liberty Leisure Limited / Kimberley Leisure Centre,Repairs & Maintenance,1000,Central Pot,Central,26/11/2021,V006326,15,Technogym UK Ltd,2382.15,BAC004169
Liberty Leisure Limited,http://statistics.data.gov.uk/id/local-authority/37UD,Leisure,LEIS,Leisure Management,LMAN,Liberty Leisure Limited / Kimberley Leisure Centre,Repairs & Maintenance,1000,Central Pot,Central,26/11/2021,V006327,15,Technogym UK Ltd,2382.15,BAC004169
